Workbook

Sheet add_count
A1: trader_id | B1: token_hold | C1: token_b_M | D1: token_s_M | E1: eth_b | F1: eth_s | G1: b_count | H1: s_count | I1: avg_b_pri | J1: url | K1: beizhu
A2: BSiDqUAmGc5He9FBEanZMAjZ1UxEa6tpjcxoLTz7wwC5 | B2: 0 | C2: 48.14841721 | D2: 48.14841721 | E2: 56.49 | F2: 56.53 | G2: 1 | H2: 1 | I2: 1.1732e-06 | J2: =HYPERLINK("https://www.defined.fi/sol/4GULMPKBJLruChBZWksZzukAg1AjSCmCTMn9ny2Xpump?maker="&A2,"defined") -> defined | K2: 机器人
A3: ARSCiosCLkiwYGd8TXmj41tpbLvfHmmjVJXLJZfxjLoX | B3: 0.01183389 | C3: 11.00817956 | D3: 10.99634567 | E3: 40.59 | F3: 41.33 | G3: 1 | H3: 1 | I3: 3.6876e-06 | J3: defined | K3: 机器人
A4: Hg8cQChQzy6VmnyNwLB5KstFx39TNfvRYL4RYfyjVcba | B4: 3.60334528 | C4: 36.22604829 | D4: 32.62270302 | E4: 36.63 | F4: 72 | G4: 33 | H4: 4 | I4: 1.0112e-06 | J4: defined | K4: 可能是sa 也可能是各种操作用于砸盘吸筹 这个address 的tokenswap很多 偏向于认为是sm
A5: HdxkiXqeN6qpK2YbG51W23QSWj3Yygc1eEk2zwmKJExp | B5: 24.43771158 | C5: 24.43771158 | D5: 0 | E5: 33 | F5: 0 | G5: 1 | H5: 0 | I5: 1.3504e-06 | J5: defined | K5: sa 大额拉升 这个address tokenswap很多
A6: EPhajSZLeZ9n1JMbExrzJjY7Z5q1sFseuHmWs2LEr4Bi | B6: 11.70490433 | C6: 11.70490433 | D6: 0 | E6: 30 | F6: 0 | G6: 2 | H6: 0 | I6: 2.563e-06 | J6: defined
A7: 3QbJp2NG3qbqqbQksv5aMG3JnWhNjqXpWoBsJdbSTTKD | B7: 8.74656363 | C7: 8.74656363 | D7: 0 | E7: 25 | F7: 0 | G7: 3 | H7: 0 | I7: 2.8583e-06 | J7: defined
A8: ERh7HSrtdnzSpMHTiY5mSJQdG7sQzir16FUC9vc9YmTT | B8: 0.0952905 | C8: 9.5290498 | D8: 9.4337593 | E8: 24 | F8: 25.25 | G8: 12 | H8: 8 | I8: 2.5186e-06 | J8: defined
A9: DtMDNsj1bmoDcNQ2ietp3Pv1VcouqfDFdCeS2Tb8pXye | B9: 6.06275691 | C9: 8.74961957 | D9: 2.68686266 | E9: 20.33 | F9: 7.13 | G9: 3 | H9: 1 | I9: 2.323e-06 | J9: defined
A10: 7gvXCVYzxNeTmq7yD4MGykQxxC9rLUAY49Rq9yJgf3SD | B10: 7.72447432 | C10: 7.72447432 | D10: 0 | E10: 20 | F10: 0 | G10: 1 | H10: 0 | I10: 2.5892e-06 | J10: defined
A11: 9nCWUbutcx6ZuWqfHQrN4SVqc28oe5nkBtTTAZSgGE4X | B11: 1.20149179 | C11: 8.97703683 | D11: 7.77554504 | E11: 19.24 | F11: 17.78 | G11: 8 | H11: 7 | I11: 2.1434e-06 | J11: defined
A12: EtQaZk79fRU5ftU9cXVYsqfsaWphTxk3LrsSyWNf4wv8 | B12: 16.4185352 | C12: 16.4185352 | D12: 0 | E12: 19 | F12: 0 | G12: 4 | H12: 0 | I12: 1.1572e-06 | J12: defined
A13: HoBf48qerqV2etkg1igKRVpHSR4mh6rkCs1BYpg6i1JP | B13: 8.90122421 | C13: 8.90122421 | D13: 0 | E13: 17 | F13: 0 | G13: 2 | H13: 0 | I13: 1.9098e-06 | J13: defined
A14: 296oAuc3HpnWgTTnt5U1Z5Tj2H4UVmiaN8XLmMENVrFX | B14: 2.22464613 | C14: 8.41508426 | D14: 6.19043813 | E14: 15.86 | F14: 13.69 | G14: 3 | H14: 2 | I14: 1.8852e-06 | J14: defined
A15: AQjs57RkYcTPCfSYBdgFPpvsV5CKHMGu4Qq9YbD3Peow | B15: 0 | C15: 6.91891209 | D15: 6.91891209 | E15: 15 | F15: 17.47 | G15: 3 | H15: 2 | I15: 2.168e-06 | J15: defined
A16: ARSCioZQ9wr9gFczLPCQJB73QHCKMGuXfz2bY7K7wh78 | B16: 0.00763023 | C16: 7.86051317 | D16: 7.85288295 | E16: 14.84 | F16: 15.12 | G16: 3 | H16: 3 | I16: 1.8875e-06 | J16: defined
A17: FtnFweTgBRZB8BEq5Eo6SnAiSWwftNXD8ZY154VcDQgW | B17: 0 | C17: 21.44478559 | D17: 21.44478559 | E17: 13.85 | F17: 14.39 | G17: 1 | H17: 1 | I17: 6.458e-07 | J17: defined
A18: ARSCiouyjv3ZDXVoUKk7gFgJ7mMs5gmmwAsJCvv3pn2E | B18: 0.00348869 | C18: 4.93521196 | D18: 4.93172327 | E18: 13.4 | F18: 13.57 | G18: 1 | H18: 1 | I18: 2.7148e-06 | J18: defined
A19: ARSCioNBfRyKmWxSGDUz4p9jUc8Ac3rQy454mWffjCav | B19: 0.00738538 | C19: 6.6750006 | D19: 6.66761522 | E19: 13.17 | F19: 13.44 | G19: 1 | H19: 1 | I19: 1.9732e-06 | J19: defined
A20: 5ci8DDNfyBhcrV7aqbNRRwQRNSGeZMrtt5xvj79TQMqw | B20: 7.08645995 | C20: 10.76245998 | D20: 3.67600003 | E20: 12 | F20: 7.82 | G20: 3 | H20: 1 | I20: 1.115e-06 | J20: defined
A21: 3KA2ejsbrbhVuYpL4Xtf2BBgyd7yxm2FfSGaFYVemEBq | B21: 4.57138171 | C21: 4.57138171 | D21: 0 | E21: 12 | F21: 0 | G21: 3 | H21: 0 | I21: 2.625e-06 | J21: defined
A22: Gx3wwVA4wU54QPtAWSP9mU85yqqxytkD1L9in66pbsxf | B22: 0 | C22: 4.3631593 | D22: 4.3631593 | E22: 12 | F22: 12.49 | G22: 6 | H22: 6 | I22: 2.7503e-06 | J22: defined
A23: 3eJkwFDZVB27emciij1oWUVodmFhFdnkpmzKHjDzH34o | B23: 0 | C23: 5.73205238 | D23: 5.73205238 | E23: 11.95 | F23: 12.27 | G23: 4 | H23: 4 | I23: 2.085e-06 | J23: defined
A24: 4N3onKB8GFzCbGBgQTX1ebGmDd15G1KgXYkwJAqZydKw | B24: 4.42544537 | C24: 4.42544537 | D24: 0 | E24: 11.88 | F24: 0 | G24: 4 | H24: 0 | I24: 2.6847e-06 | J24: defined
A25: 9Yjr9BhdFthLzQMW4kY7j6rcDKXC3Wvj74p7bCsFVyyJ | B25: 0 | C25: 10.05739654 | D25: 10.05739654 | E25: 10.89 | F25: 14.83 | G25: 2 | H25: 2 | I25: 1.0828e-06 | J25: defined
A26: 6vdXD7uu4zBXMjWecqMPWGsy5H7dSQXSYJS4gNqGbvTt | B26: 5.68093298 | C26: 5.68093298 | D26: 0 | E26: 10 | F26: 0 | G26: 1 | H26: 0 | I26: 1.7603e-06 | J26: defined
A27: 81nTDVdocgwZRXtDoX9waDGdYQJQYzAyNuRhx9QSt4nc | B27: 3.60417826 | C27: 3.60417826 | D27: 0 | E27: 10 | F27: 0 | G27: 1 | H27: 0 | I27: 2.7746e-06 | J27: defined
A28: CkoLh6gdbqgDuMheqr3HRJq9cNUNCxfk3Vuo7cUbzx3k | B28: 0 | C28: 4.14936118 | D28: 4.14936118 | E28: 10 | F28: 7.02 | G28: 1 | H28: 2 | I28: 2.41e-06 | J28: defined
A29: 7QGEZSRXQkhPz4ExBGxGSWg38DoGYr1mkTCo9K8GXpvn | B29: 4.66027283 | C29: 4.66027283 | D29: 0 | E29: 9.9 | F29: 0 | G29: 2 | H29: 0 | I29: 2.1243e-06 | J29: defined
A30: 14DmCqR8bVtmaGAMcCYx48CvRaTzTUFK3pxcCZLcEmJT | B30: 3.84188344 | C30: 3.84188344 | D30: 0 | E30: 9.9 | F30: 0 | G30: 1 | H30: 0 | I30: 2.5769e-06 | J30: defined
A31: AtXooCAszvtWmk5wkzV4XPgAzNsyUyqShizZW5TVNcPA | B31: 3.61668721 | C31: 3.61668721 | D31: 0 | E31: 9.9 | F31: 0 | G31: 1 | H31: 0 | I31: 2.7373e-06 | J31: defined
A32: 5E7G5aiJcsNa6euqxEXgZdwGM3fu9sAVpqY8S5Hz2ETY | B32: -10.69945168 | C32: 9.11294225 | D32: 19.81239393 | E32: 8.76 | F32: 20.25 | G32: 7 | H32: 12 | I32: 9.616e-07 | J32: defined
A33: G1NRqmzEpXQichXzf6EQN33biWLZJMEYD2nd7H75rA9c | B33: 8.4723396 | C33: 8.4723396 | D33: 0 | E33: 8.65 | F33: 0 | G33: 2 | H33: 0 | I33: 1.0208e-06 | J33: defined
A34: 74egW6JhALD3DGwq9MsvcoVjc4eCHXJTAv2LePoU2HyY | B34: 4.8127734 | C34: 4.8127734 | D34: 0 | E34: 8.25 | F34: 0 | G34: 1 | H34: 0 | I34: 1.7142e-06 | J34: defined
A35: BDFMkurHjWM8HCibLRncxaSF8eQ3oJJztPSr4jUEo3nZ | B35: 0 | C35: 3.43582127 | D35: 3.43582126 | E35: 8.05 | F35: 7.41 | G35: 3 | H35: 3 | I35: 2.3433e-06 | J35: defined
A36: 7W8n2yhVkHz5Mjatkcj1CvrH85DgTidsBnGMmXCuUYty | B36: 0.85403065 | C36: 4.04550495 | D36: 3.19147429 | E36: 8 | F36: 6.47 | G36: 2 | H36: 2 | I36: 1.9775e-06 | J36: defined
A37: DvkSvYX2PvUQiAX54Rar6ZjnxrCCAF4y3jMHy1tJkmx | B37: 23.28450693 | C37: 23.28450693 | D37: 0 | E37: 7.92 | F37: 0 | G37: 1 | H37: 0 | I37: 3.402e-07 | J37: defined | K37: relation A4nTzSw1oZKK846zGv8diWw6dGXqnGPJwbxyJ85WM4Sg HdxkiXqeN6qpK2YbG51W23QSWj3Yygc1eEk2zwmKJExp
A38: HZKNi5RtCM16monmyFPjkSpJNFCKV7mjn3zeL2m7h4c9 | B38: 16.459513 | C38: 16.459513 | D38: 0 | E38: 7.92 | F38: 0 | G38: 1 | H38: 0 | I38: 4.812e-07 | J38: defined
A39: DHHno94HvvhWWvy4oScMbzjtgsbTaVGDeaWd4dGT9rHS | B39: 3.53836921 | C39: 3.53836921 | D39: 0 | E39: 7.92 | F39: 0 | G39: 3 | H39: 0 | I39: 2.2383e-06 | J39: defined
A40: Efqoo7tUd9bhrA8kEZ6YhtBbo2mhr6VLAKzQEsBTyUsk | B40: 3.0701739 | C40: 3.0701739 | D40: 0 | E40: 7.92 | F40: 0 | G40: 1 | H40: 0 | I40: 2.5797e-06 | J40: defined
A41: 9KJGz9PfmdNwhSQFHQMChVMxvvtE7arwukY8KdPEgBqE | B41: 2.77431528 | C41: 2.77431528 | D41: 0 | E41: 7.92 | F41: 0 | G41: 1 | H41: 0 | I41: 2.8548e-06 | J41: defined
A42: 9kTx1no1d1C81N8zFT6ck4S5zvKsgpbbLEUf5KZJeC32 | B42: -0.02735194 | C42: 11.02441474 | D42: 11.05176668 | E42: 7.08 | F42: 8.18 | G42: 6 | H42: 6 | I42: 6.426e-07 | J42: defined
A43: FkJSZJ5K6MCgGN9jLgXTvYTqp6n5VWAyhKLSdZmPuB7F | B43: 3.46156133 | C43: 3.46156133 | D43: 0 | E43: 7 | F43: 0 | G43: 3 | H43: 0 | I43: 2.0222e-06 | J43: defined
A44: BinKKHZwfi9skZCNaWUFS91du8JZURqgFQCFrZBGTcWq | B44: 0 | C44: 3.54029004 | D44: 3.54029004 | E44: 7 | F44: 6.25 | G44: 1 | H44: 1 | I44: 1.9772e-06 | J44: defined
A45: 6JVzVU1FjAL2PeTsNvMU5tYCwhkoQn4SbnwACHscwHWU | B45: 0 | C45: 3.49138562 | D45: 3.49138562 | E45: 7 | F45: 10.47 | G45: 5 | H45: 4 | I45: 2.0049e-06 | J45: defined
A46: 6YqZ5c9fF2B7xcWQX54RyY5QckrJTRbPBt5sppsBw8L3 | B46: 0 | C46: 2.26300532 | D46: 2.26300532 | E46: 6.9 | F46: 5.28 | G46: 1 | H46: 1 | I46: 3.049e-06 | J46: defined
A47: 5d2PUxoqCcRSThzgtHx8gEH3zeqZsWbAEpzaM5zmGFF5 | B47: 20.9487331 | C47: 20.9487331 | D47: 0 | E47: 5 | F47: 0 | G47: 1 | H47: 0 | I47: 2.387e-07 | J47: =HYPERLINK("https://www.defined.fi/sol/4GULMPKBJLruChBZWksZzukAg1AjSCmCTMn9ny2Xpump?maker="&A47,"defined") -> defined | K47: tokenswap也不少 不知道是不是
A48: H2SfwK7QXCh7gsSg92VC37zyjfUWKaR87u2cs8wooBwu | B48: 18.32052588 | C48: 18.32052588 | D48: 0 | E48: 5 | F48: 0 | G48: 1 | H48: 0 | I48: 2.729e-07 | J48: defined | K48: 廷像的
A49: 5m2rFD49qe6QoYih89mA5vgAs3br3qqXUtff5LRNxzsC | B49: 4.14324664 | C49: 4.14324664 | D49: 0 | E49: 5 | F49: 0 | G49: 2 | H49: 0 | I49: 1.2068e-06 | J49: defined
A50: AUp7cjjqSwcqihiCxT5r4fbemZVm3CFaEyfwqeDg8Gdy | B50: 2.62235665 | C50: 2.62235665 | D50: 0 | E50: 5 | F50: 0 | G50: 1 | H50: 0 | I50: 1.9067e-06 | J50: defined
A51: 5hR5M4QDNj1LTDzKyrnGFQzo8s7PoDhQfbBCGn57b54W | B51: 1.84718513 | C51: 1.84718513 | D51: 0 | E51: 5 | F51: 0 | G51: 1 | H51: 0 | I51: 2.7068e-06 | J51: defined
A52: CVV41542cpLewNGR92S8aHBkHztruF77GohLiTE4ks9o | B52: 1.7350491 | C52: 1.7350491 | D52: 0 | E52: 5 | F52: 0 | G52: 1 | H52: 0 | I52: 2.8818e-06 | J52: defined
A53: FudbEsQWhoHgvnvcqjB36KLF8EwCAsjgXFVSZ6aHCC9p | B53: 1.72200082 | C53: 1.72200082 | D53: 0 | E53: 5 | F53: 0 | G53: 1 | H53: 0 | I53: 2.9036e-06 | J53: defined
A54: DoPcqLUbLWS5odeGUUFkM6XbWYEvVkuzdBepgCnc4T8G | B54: 1.60537404 | C54: 1.60537404 | D54: 0 | E54: 5 | F54: 0 | G54: 1 | H54: 0 | I54: 3.1145e-06 | J54: defined
A55: 5VXvg5nXWtpjsNQvt6EXQPQ5ziZBnxhoXDYaz9ZBbXao | B55: 1.32482701 | C55: 1.32482701 | D55: 0 | E55: 5 | F55: 0 | G55: 2 | H55: 0 | I55: 3.7741e-06 | J55: defined
A56: 3vsjyseoDwEFfRPmQRqETfazNEYKEijUFn5bTjVUdMA3 | B56: 0 | C56: 2.24921609 | D56: 2.24921609 | E56: 5 | F56: 5.28 | G56: 1 | H56: 1 | I56: 2.223e-06 | J56: defined
A57: DuMUewBeWiomHdsBDWjkg5PhuufoQifTFf2mVRbYD6mW | B57: 0 | C57: 2.38005348 | D57: 2.38005348 | E57: 5 | F57: 4.93 | G57: 1 | H57: 1 | I57: 2.1008e-06 | J57: defined
A58: 5FZ6h28UnFkZ43PRFvMcwSE9kcdT4YNmcxvqdpHe6MuW | B58: 0 | C58: 8.0788401 | D58: 8.0788401 | E58: 5 | F58: 15.13 | G58: 1 | H58: 1 | I58: 6.189e-07 | J58: defined
A59: 9x7jHWXJo6rwFJaaWAp8z6qn4Qm58ss1SQbPVmpq2aBv | B59: 2.51494112 | C59: 2.51494112 | D59: 0 | E59: 4.95 | F59: 0 | G59: 1 | H59: 0 | I59: 1.9682e-06 | J59: defined
A60: HFAG73DH8WSJ2nTy6ZU5PUngJTxu4chFpwzxyUtBKpZB | B60: 2.34500994 | C60: 2.34500994 | D60: 0 | E60: 4.95 | F60: 0 | G60: 1 | H60: 0 | I60: 2.1109e-06 | J60: defined
A61: JD6bByMUH8m3tdHreSqN644KcydPw449sXCdfuB15fKG | B61: 1.7989845 | C61: 1.7989845 | D61: 0 | E61: 4.95 | F61: 0 | G61: 1 | H61: 0 | I61: 2.7516e-06 | J61: defined
A62: 2D8XFdGwLcL5VEapayjdEa7VQAfvvWbYbJwqxmKJM36U | B62: 0 | C62: 2.2721536 | D62: 2.2721536 | E62: 4.41 | F62: 4.5 | G62: 8 | H62: 8 | I62: 1.9414e-06 | J62: defined
A63: 4up59VJU1zYbzMYoN9BZS1wHDE4AtRzpPJdRV7TRLbZb | B63: 2.91658871 | C63: 2.91658871 | D63: 0 | E63: 4 | F63: 0 | G63: 2 | H63: 0 | I63: 1.3715e-06 | J63: defined
A64: CSAPZtvfinpfhT3F18n7ypQiLirSc7RCZG2h7J1YA23T | B64: 0 | C64: 1.60887 | D64: 1.60887 | E64: 4 | F64: 4.06 | G64: 2 | H64: 1 | I64: 2.4862e-06 | J64: defined
A65: 2F8bc1YcoAdaBLLVa626kzjqwqAaoE6KBh9TaB1xbWxQ | B65: 0 | C65: 2.38741232 | D65: 2.38741232 | E65: 4 | F65: 4.61 | G65: 1 | H65: 1 | I65: 1.6755e-06 | J65: defined
A66: BrRLtfbts6kWxj3wgNMAXxPTxzLn6G3UvKuCDSKdqGBR | B66: 0 | C66: 2.06287772 | D66: 2.06287772 | E66: 4 | F66: 3.9 | G66: 2 | H66: 1 | I66: 1.939e-06 | J66: =HYPERLINK("https://www.defined.fi/sol/4GULMPKBJLruChBZWksZzukAg1AjSCmCTMn9ny2Xpump?maker="&A66,"defined") -> defined
A67: D9vd23oVuxkAaAnFgdjXwvGKV3cSxTKthWRGYhKNNhC9 | B67: 4.98919993 | C67: 4.98919993 | D67: 0 | E67: 3.97 | F67: 0 | G67: 1 | H67: 0 | I67: 7.949e-07 | J67: defined
A68: FRP9Q5LamSb5w96yE1o6oT6TK3wu2GSi3w3URriLgFc5 | B68: 0 | C68: 4.03153975 | D68: 4.03153975 | E68: 3.8 | F68: 5.1 | G68: 5 | H68: 7 | I68: 9.426e-07 | J68: defined
A69: 3PBiA4dXqLW6eG1H5U6LMBDEq5aFBt3FtMBCPE8end99 | B69: 0 | C69: 1.79100299 | D69: 1.79100299 | E69: 3.5 | F69: 4.88 | G69: 1 | H69: 1 | I69: 1.9542e-06 | J69: defined
A70: ASRGdCwqhUTzp5senCAt2NysjbPi8KRV9s5UpMKBp84H | B70: 0.75530276 | C70: 1.37711676 | D70: 0.621814 | E70: 3.35 | F70: 1.59 | G70: 2 | H70: 1 | I70: 2.4326e-06 | J70: defined
A71: 7TwCAjeCkyrVmL9khDEj8oMnJpqxgNzZxgXitojufEXK | B71: 5.217758 | C71: 5.217758 | D71: 0 | E71: 3.25 | F71: 0 | G71: 3 | H71: 0 | I71: 6.229e-07 | J71: defined
A72: 7heu5KZ1PoXmxia5dD51hayBBCRFVEtknpPUbfoYseNP | B72: 1.56325215 | C72: 4.03966954 | D72: 2.47641739 | E72: 3.2 | F72: 2.98 | G72: 4 | H72: 3 | I72: 7.921e-07 | J72: defined
A73: DPM88u5nzCC532cCDsQPfkXYcdCNEauVFj9TEdaHvTSu | B73: 4.05957573 | C73: 4.05957573 | D73: 0 | E73: 3 | F73: 0 | G73: 1 | H73: 0 | I73: 7.39e-07 | J73: defined
A74: GLLuRyHBzcR2xQuyWLkStVTuoPw3nhD5KPCWY3FVkJt4 | B74: 3.2884917 | C74: 3.2884917 | D74: 0 | E74: 3 | F74: 0 | G74: 2 | H74: 0 | I74: 9.123e-07 | J74: defined
A75: EjBJ7QHRxjXYLxNUgF4HkE3AR378b1R6WFJint6v3LtM | B75: 1.54862602 | C75: 1.54862602 | D75: 0 | E75: 3 | F75: 0 | G75: 1 | H75: 0 | I75: 1.9372e-06 | J75: defined
A76: 6Q9c9P7DaTfABCUkumHBtsVBPBgzVHT2T1AkQZh3LbFL | B76: 1.41183167 | C76: 1.41183167 | D76: 0 | E76: 3 | F76: 0 | G76: 1 | H76: 0 | I76: 2.1249e-06 | J76: defined
A77: A82xgiTBC1Xxiqp5qk4hFXrpzcMFa6JUkpaCbakHXw8Z | B77: 1.23430877 | C77: 3.27052507 | D77: 2.0362163 | E77: 3 | F77: 4.19 | G77: 1 | H77: 2 | I77: 9.173e-07 | J77: defined
A78: FVAMtGMx8SKAjxrda6idDkKc16Gi1MCfuQnzBEwoxbxe | B78: 1.1563896 | C78: 1.1563896 | D78: 0 | E78: 3 | F78: 0 | G78: 1 | H78: 0 | I78: 2.5943e-06 | J78: defined
A79: HqVxz1ve5YgFW3xyxrj6PyPgWm4cYutfnewJ3kUoYrNZ | B79: 0 | C79: 4.42075139 | D79: 4.42075139 | E79: 3 | F79: 11.61 | G79: 1 | H79: 2 | I79: 6.786e-07 | J79: defined
A80: ExfQJJc87z9tPNrUYGRZQmPit6pVPV8gze8VXKubYSxM | B80: 0 | C80: 1.54430109 | D80: 1.54430109 | E80: 3 | F80: 2.87 | G80: 1 | H80: 1 | I80: 1.9426e-06 | J80: defined
A81: 3dVXK572GvmzXD8rz6Xjfm7TRUQFDG69UNuqnoVootX4 | B81: 0 | C81: 1.17141873 | D81: 1.17141873 | E81: 3 | F81: 3.55 | G81: 1 | H81: 1 | I81: 2.561e-06 | J81: defined
A82: NAas6ay3GpKHqZHSnCvfp3dkQ75HYWgKr6mEJvgMhci | B82: 0 | C82: 1.52640481 | D82: 1.52640481 | E82: 3 | F82: 2.81 | G82: 1 | H82: 1 | I82: 1.9654e-06 | J82: defined
A83: 41oDYZSKPJo3GLWLzUeKGq1eChyyPykd2rfpWUazHa7H | B83: 0 | C83: 1.57114449 | D83: 1.57114449 | E83: 3 | F83: 4.31 | G83: 1 | H83: 3 | I83: 1.9094e-06 | J83: defined
A84: 6LxiLdPzEpBxGNwMGiXJ53fb27wGVj1ZxH7GNvzZvPZN | B84: 1.53514371 | C84: 6.93246349 | D84: 5.39731978 | E84: 2.97 | F84: 7.42 | G84: 4 | H84: 5 | I84: 4.284e-07 | J84: defined
A85: CtfBJF7DhTdr5CyJMbvFJ9DGK4skfV1iNP5YQ3jfJDYF | B85: 0 | C85: 1.80798128 | D85: 1.80798128 | E85: 2.97 | F85: 4.84 | G85: 2 | H85: 2 | I85: 1.6427e-06 | J85: defined
A86: 7ti77iFqKbFvEtmgzdobwYxSDNcfnkEwFtv5RUzpiKbc | B86: 0.03261137 | C86: 1.97535696 | D86: 1.94274558 | E86: 2.77 | F86: 2.8 | G86: 12 | H86: 11 | I86: 1.4001e-06 | J86: defined
A87: 4bHhWkQ6VL2xF7QsXS9Hqmmid18Uzn8Lzj9suKBGrAWE | B87: 1.29739091 | C87: 1.29739091 | D87: 0 | E87: 2.57 | F87: 0 | G87: 1 | H87: 0 | I87: 1.9838e-06 | J87: defined
A88: ARSCioNhrcg7nFr1xk5Whfn4AfNvhYhU3fxXpHi2gmwX | B88: 0.00750544 | C88: 1.04023508 | D88: 1.03272964 | E88: 2.46 | F88: 2.85 | G88: 1 | H88: 1 | I88: 2.365e-06 | J88: defined
A89: 59DbbvkL5y4tJ3T4sfeKWfxineoM7YCuqapwFFUu5zek | B89: 0 | C89: 1.22577004 | D89: 1.22577004 | E89: 2.36 | F89: 2.4 | G89: 2 | H89: 2 | I89: 1.9214e-06 | J89: defined
A90: B9tNReDM9vP2WWrcmKFUKu9FW3kbjvFU8hC7woa1NGmA | B90: 0 | C90: 4.00036174 | D90: 4.00036174 | E90: 2.24 | F90: 2.68 | G90: 10 | H90: 6 | I90: 5.599e-07 | J90: defined
A91: AtNWDhTmRYDs2drnMcz7rXEztRx9oFnv36RMzoHb1Y1c | B91: 0 | C91: 3.27030616 | D91: 3.27030616 | E91: 2.04 | F91: 2.56 | G91: 9 | H91: 12 | I91: 6.235e-07 | J91: defined
A92: 2RqRJqh8F3dAa4U81WPQDWAHhWv1j2RpwE5rtJKMG6At | B92: 0.95706156 | C92: 0.95706156 | D92: 0 | E92: 2.03 | F92: 0 | G92: 2 | H92: 0 | I92: 2.1214e-06 | J92: defined
A93: 4Q7KUg2mTacPrrPLXKz3PsQANQJc3bbPNMJRmcGKP7H7 | B93: 2.01171481 | C93: 3.35727153 | D93: 1.34555672 | E93: 2 | F93: 3.9 | G93: 1 | H93: 1 | I93: 5.957e-07 | J93: defined
A94: FFKPns5ukH2yY6jW3iuHH2K4meTVssZXCC4WUQVr7fxe | B94: 1.07426007 | C94: 1.07426007 | D94: 0 | E94: 2 | F94: 0 | G94: 1 | H94: 0 | I94: 1.8617e-06 | J94: defined
A95: DWkLmizLcJ9xwfQwTThGi6BjJeu962VKhLX2QbVowRgD | B95: 0.93372431 | C95: 0.93372431 | D95: 0 | E95: 2 | F95: 0 | G95: 1 | H95: 0 | I95: 2.142e-06 | J95: defined
A96: BPhyjPyZyCordB56SiCuYW7qUgC98NnDqPiQDkm7Hijc | B96: 0.9174089 | C96: 0.9174089 | D96: 0 | E96: 2 | F96: 0 | G96: 1 | H96: 0 | I96: 2.1801e-06 | J96: defined
A97: DfgfeUYo5CgtMttaxJWBTS72VPsPv4dCnvHgDNKoiTGA | B97: 0.90246434 | C97: 0.90246434 | D97: 0 | E97: 2 | F97: 0 | G97: 10 | H97: 0 | I97: 2.2162e-06 | J97: defined
A98: GRjd8TWxSPXsgrZn6rMQWjBuZoHJNSpaTZoyrtKr7EAa | B98: 0.75096345 | C98: 0.75096345 | D98: 0 | E98: 2 | F98: 0 | G98: 1 | H98: 0 | I98: 2.6632e-06 | J98: defined
A99: 98ZdLjq1vNqdR9qZMJ4bKbrKoR1DABJbPwz5tqAeWhaD | B99: 0.74128766 | C99: 0.74128766 | D99: 0 | E99: 2 | F99: 0 | G99: 2 | H99: 0 | I99: 2.698e-06 | J99: defined
A100: 5vrX4aLvwhTzYCh6LpXX5bJbwrgkcjTVQiUBN8DF7n2q | B100: 0.7256665 | C100: 0.7256665 | D100: 0 | E100: 2 | F100: 0 | G100: 1 | H100: 0 | I100: 2.7561e-06 | J100: defined
A101: DrZqzSithxSpjwLvM642S5oCq6G2aLMKjXg9hBBB9HTL | B101: 0.30338079 | C101: 0.98821104 | D101: 0.68483025 | E101: 2 | F101: 2.07 | G101: 1 | H101: 1 | I101: 2.0239e-06 | J101: defined
A102: GRQV68VbgR33nFyodZzQwLAuAaq9XN1YmN36o6DBk4eJ | B102: 0 | C102: 3.78444251 | D102: 3.78444251 | E102: 2 | F102: 2.49 | G102: 1 | H102: 1 | I102: 5.285e-07 | J102: defined
A103: 23VrCq6mpxoztjnand2MuW5eDgpznKtwwDKEps47S5qF | B103: 0 | C103: 2.25888808 | D103: 2.25888808 | E103: 2 | F103: 2.13 | G103: 1 | H103: 1 | I103: 8.854e-07 | J103: defined
A104: DhQ3horXkjrumqjM6nDVbxXQFaFFHMYjDPhGbYmrGx9k | B104: 0 | C104: 0.94096688 | D104: 0.94096688 | E104: 2 | F104: 2.55 | G104: 1 | H104: 1 | I104: 2.1255e-06 | J104: defined
A105: GECiHatSQ6ZVnXA4dRA2VU5F9sSx7o8VSySe6P253BHH | B105: 0 | C105: 3.70130855 | D105: 3.70130855 | E105: 2 | F105: 2.06 | G105: 1 | H105: 1 | I105: 5.403e-07 | J105: defined
A106: 2EgEWCPCNaq6DEMqjLaz7cTc3kW9FGmGxeWqHNyxwL6i | B106: 0 | C106: 0.9637194 | D106: 0.9637194 | E106: 2 | F106: 1.81 | G106: 1 | H106: 1 | I106: 2.0753e-06 | J106: defined
A107: BV9y3QfNJf5pMK1B4BGZk72FbjXqMjQnGYgdodh1rzBZ | B107: 0 | C107: 0.91955734 | D107: 0.91955734 | E107: 2 | F107: 1.58 | G107: 1 | H107: 1 | I107: 2.175e-06 | J107: defined
A108: F4LyrkbZzBJQcGju3zkDs4q3feCGDAzdET4mrQhzVQ72 | B108: 0.93944417 | C108: 0.93944417 | D108: 0 | E108: 1.98 | F108: 0 | G108: 1 | H108: 0 | I108: 2.1076e-06 | J108: defined
A109: Cknjnqkh3wdz2sCniYJo1evn16LFwtKsHuFKmii9cRNc | B109: 0.7812519 | C109: 0.7812519 | D109: 0 | E109: 1.98 | F109: 0 | G109: 1 | H109: 0 | I109: 2.5382e-06 | J109: defined
A110: AUh8j6ctvdsDVW84oWXBvZf43SbHaKnfPg9EMaemU9wo | B110: 0 | C110: 1.82722165 | D110: 1.82722165 | E110: 1.98 | F110: 2.93 | G110: 1 | H110: 1 | I110: 1.0836e-06 | J110: defined
A111: DH2ab1LjL45HsQysXDrbdb5BQPTqnhFmTA8c1A1zXRKm | B111: 0.7189685 | C111: 0.7189685 | D111: 0 | E111: 1.88 | F111: 0 | G111: 3 | H111: 0 | I111: 2.6174e-06 | J111: defined
A112: 7hARSicdYvWR9saun1F3JDQjnnHY3k6wvNH2XXp2EA6A | B112: 0 | C112: 0.71625407 | D112: 0.71625407 | E112: 1.86 | F112: 1.82 | G112: 3 | H112: 3 | I112: 2.603e-06 | J112: defined
A113: 8QAurtEohFiiLqDTfWtePNjGr6asMgZTZFXiCquotzpa | B113: 2.84687381 | C113: 3.47179733 | D113: 0.62492352 | E113: 1.84 | F113: 1.58 | G113: 5 | H113: 1 | I113: 5.3e-07 | J113: defined
A114: AQaUXKHsEWisCC9JfcVZSLmCTSUWRit2P2PEqBNd29aX | B114: -1.11663734 | C114: 2.21848744 | D114: 3.33512478 | E114: 1.83 | F114: 5.38 | G114: 3 | H114: 4 | I114: 8.268e-07 | J114: defined
A115: 4LtJy4F51GuzpWxPbCFNXbWz7MEVxpkJM63a95nSMHR7 | B115: 0.91022539 | C115: 0.91022539 | D115: 0 | E115: 1.8 | F115: 0 | G115: 1 | H115: 0 | I115: 1.9775e-06 | J115: defined
A116: AzbG55URJk3KQQZsSezQh86g4U6PKr8NH8fFUrQBb9CF | B116: 1.48509479 | C116: 1.48509479 | D116: 0 | E116: 1.77 | F116: 0 | G116: 11 | H116: 0 | I116: 1.1916e-06 | J116: defined
A117: 6gNWYyX5zp4S5wXhiEhFNDnvLK8a8u4o89e5NpnVTqak | B117: 0 | C117: 3.66060316 | D117: 3.66060316 | E117: 1.73 | F117: 1.98 | G117: 2 | H117: 2 | I117: 4.732e-07 | J117: defined
A118: 3NaampwmQyTmSTKcTbRACQspxPUPp62SA19ssgiUXci9 | B118: 0 | C118: 0.8731985 | D118: 0.8731985 | E118: 1.69 | F118: 1.81 | G118: 6 | H118: 6 | I118: 1.9302e-06 | J118: defined
A119: ATbQCLnqdUv6uhDnZPjNBRLVGqxtwZUvEdFe8Z1GacRY | B119: 0.57924444 | C119: 0.57924444 | D119: 0 | E119: 1.66 | F119: 0 | G119: 1 | H119: 0 | I119: 2.8661e-06 | J119: defined
A120: 9DgLmQ2hhmxZwUNWrG3VzbVYqnGh2hbG5cShWi45ffyW | B120: 0.90580035 | C120: 0.90580035 | D120: 0 | E120: 1.65 | F120: 0 | G120: 1 | H120: 0 | I120: 1.8216e-06 | J120: defined
A121: GtbMPwYJ73oUeERWugtNnYfYw87gyXCVrh3p8S5PfJjt | B121: 0.6499231 | C121: 0.6499231 | D121: 0 | E121: 1.5 | F121: 0 | G121: 2 | H121: 0 | I121: 2.308e-06 | J121: defined
A122: Hd68Lt8N7txfoqCUea99qXg3tm6V8zqDDFrfD6aogEpC | B122: 0 | C122: 0.56082256 | D122: 0.56082256 | E122: 1.5 | F122: 1.49 | G122: 1 | H122: 1 | I122: 2.6746e-06 | J122: defined
A123: 8vgRpuRfRLgRN81LDuEnRCCzjFGjmPxaqCH4CVzExuQa | B123: 0 | C123: 0.97629286 | D123: 0.97629286 | E123: 1.5 | F123: 1.34 | G123: 3 | H123: 3 | I123: 1.5364e-06 | J123: defined
A124: DigYWiHrExbdd8htBQWS4KhxfhUEDW2YxuuVcR4LdkVH | B124: 0.74463746 | C124: 0.74463746 | D124: 0 | E124: 1.49 | F124: 0 | G124: 1 | H124: 0 | I124: 1.9943e-06 | J124: defined
A125: ARSCio4oq5RUYJXLdFJxGCppe87VZuj56tor2spXKqBZ | B125: 2.182e-05 | C125: 0.45597479 | D125: 0.45595297 | E125: 1.48 | F125: 1.5 | G125: 1 | H125: 1 | I125: 3.2498e-06 | J125: defined
A126: 5U89F211PGHH846rZhukXmweJuTtiNKhjvZPubhv2yTA | B126: 0 | C126: 2.49022967 | D126: 2.49022967 | E126: 1.38 | F126: 1.34 | G126: 1 | H126: 1 | I126: 5.542e-07 | J126: defined
A127: 6JJwJ15dtZs33AyAozaQcHnQBdy1vSqArNyWdoFwytkg | B127: 0.30850443 | C127: 2.3864562 | D127: 2.07795178 | E127: 1.3 | F127: 1.67 | G127: 3 | H127: 3 | I127: 5.447e-07 | J127: defined
A128: 4xsS9zr2rN7cou1oTdJNGJX5a5Kb13aUixs7KYAKoDrV | B128: 0.43961104 | C128: 0.43961104 | D128: 0 | E128: 1.16 | F128: 0 | G128: 2 | H128: 0 | I128: 2.6387e-06 | J128: defined
A129: ARSCio42dUTGQ5j1KEWUTf4XmzduGVGtbA1J1M3h5Xvi | B129: 0.00012996 | C129: 0.43673937 | D129: 0.43660941 | E129: 1.13 | F129: 1.2 | G129: 1 | H129: 1 | I129: 2.5896e-06 | J129: defined
A130: FmqA1xKhziPGdUc1g998KbpEkCAU7gsp6nHgs9kdumtP | B130: 0.00457548 | C130: 0.53806861 | D130: 0.53349313 | E130: 1.1 | F130: 1.22 | G130: 2 | H130: 3 | I130: 2.0393e-06 | J130: =HYPERLINK("https://www.defined.fi/sol/4GULMPKBJLruChBZWksZzukAg1AjSCmCTMn9ny2Xpump?maker="&A130,"defined") -> defined
A131: 41H2QetbiZzjjcWj6bvadhizRshDVcsnDwrLium65uQL | B131: 0 | C131: 0.62212541 | D131: 0.62212541 | E131: 1.04 | F131: 1.21 | G131: 2 | H131: 2 | I131: 1.6755e-06 | J131: defined
A132: 7JhWNtEfK2chVsLiwF9M7nLn73uLTwFndw1F5i9T7KbS | B132: 0 | C132: 0.62244675 | D132: 0.62244675 | E132: 1.04 | F132: 1.21 | G132: 2 | H132: 2 | I132: 1.6668e-06 | J132: defined
A133: DTLJmZn4SEpx8xRYcqCTxNEEd6WyjLfctBJuD9qQbjGe | B133: 0 | C133: 0.59044771 | D133: 0.59044771 | E133: 1.01 | F133: 1.15 | G133: 2 | H133: 2 | I133: 1.7116e-06 | J133: defined
A134: 2qRvQR5kQepYCkzj3BRokFskM8nRuTUsXLKokaxkxbRd | B134: 0.87329771 | C134: 1.74659541 | D134: 0.87329771 | E134: 1 | F134: 1.61 | G134: 1 | H134: 1 | I134: 5.725e-07 | J134: defined
A135: 6Pt1RfEceD4YKL7ixufZt1hbUPVhjSB5bquiy4WKKe1W | B135: 0.55623741 | C135: 0.55623741 | D135: 0 | E135: 1 | F135: 0 | G135: 1 | H135: 0 | I135: 1.7978e-06 | J135: defined
A136: GPPx9fby9CfMrZ5wLVAbCwAh6ntDNDPgb1rCgamE3B7M | B136: 0.51807561 | C136: 0.51807561 | D136: 0 | E136: 1 | F136: 0 | G136: 1 | H136: 0 | I136: 1.9302e-06 | J136: defined
A137: GdW87NmMpMsYgLAMxNTBERxFTUVC2F92HmDtpBUMU24Y | B137: 0.47969442 | C137: 0.47969442 | D137: 0 | E137: 1 | F137: 0 | G137: 1 | H137: 0 | I137: 2.0847e-06 | J137: defined
A138: 3auFR9pxvfEubtE5Y8J5jdQhjFhixbqaMt52DVDBcYZF | B138: 0.47311448 | C138: 0.47311448 | D138: 0 | E138: 1 | F138: 0 | G138: 1 | H138: 0 | I138: 2.1137e-06 | J138: defined
A139: 6YWMT24UTpxLPsCgSaFPR8BN9aDXcgphcyT5DNEt6ZTD | B139: 0.39587644 | C139: 0.39587644 | D139: 0 | E139: 1 | F139: 0 | G139: 1 | H139: 0 | I139: 2.526e-06 | J139: defined
A140: D4LcpxEj5ryL6ZPikTABGkEa5846KATEmJd9ANNJGAyk | B140: 0.30272079 | C140: 0.30272079 | D140: 0 | E140: 1 | F140: 0 | G140: 1 | H140: 0 | I140: 3.3034e-06 | J140: defined
A141: 3K1D8FhoWcocjP3TaXZ8MJ5GYjEbMMg4DnuBfAEfw9J3 | B141: 0.18407108 | C141: 0.61357027 | D141: 0.42949919 | E141: 1 | F141: 1.32 | G141: 2 | H141: 1 | I141: 1.63e-06 | J141: defined
A142: E3hscp88Hmp4tp8E6rXKdhxTWVCLKpHFQQSPuKNQxi3N | B142: 0.00376162 | C142: 0.37616201 | D142: 0.37240039 | E142: 1 | F142: 1.05 | G142: 1 | H142: 1 | I142: 2.6584e-06 | J142: defined
A143: DNBRsfgRTJhmuBFxkzxNZ4NtfRF4RdFwyjFcq3NeQ826 | B143: 0 | C143: 1.77470564 | D143: 1.77470564 | E143: 1 | F143: 0.95 | G143: 1 | H143: 1 | I143: 5.635e-07 | J143: defined
A144: FKN7L2GQmyxUdXjteaPY3xVYCx8z1XipVwKtt85zCEE8 | B144: 0 | C144: 0.53183319 | D144: 0.53183319 | E144: 1 | F144: 1.35 | G144: 1 | H144: 1 | I144: 1.8803e-06 | J144: defined
A145: D74wVNAP7nZ29hC14A4P7EtRML86pKgd56UVULKKyGaQ | B145: 0 | C145: 0.57856524 | D145: 0.57856524 | E145: 1 | F145: 1.13 | G145: 1 | H145: 1 | I145: 1.7284e-06 | J145: defined
A146: 5maoLqFTfy5wKevfLELYFAsWuSiMSbdSVT6HLFtSwg5m | B146: 0 | C146: 0.57055017 | D146: 0.57055017 | E146: 1 | F146: 1.04 | G146: 1 | H146: 1 | I146: 1.7527e-06 | J146: defined
A147: 8wv7NFGEz5p2mRbEhmWbSkHTvkqv11Y6YqkBzSjrNKUZ | B147: 0 | C147: 1.13416376 | D147: 1.13416376 | E147: 1 | F147: 1.06 | G147: 2 | H147: 1 | I147: 8.817e-07 | J147: defined
A148: 7XegKTXQgeDKcNmtVYvvaRq91yAYwqLUdMa5kyfMopk7 | B148: 0 | C148: 1.91455592 | D148: 1.91455592 | E148: 1 | F148: 1.19 | G148: 1 | H148: 1 | I148: 5.223e-07 | J148: defined
A149: CjAGwwnFwFmrMhmbzT5Y9qwxhKaC19TdxqpZRNpr8USM | B149: 0 | C149: 1.73169125 | D149: 1.73169125 | E149: 1 | F149: 0.9 | G149: 1 | H149: 1 | I149: 5.775e-07 | J149: defined
A150: HdcEzK3FjDDzmRs8a9ivF5MwsBdHyBp7iU8N7bB6D5qr | B150: 0 | C150: 0.5362829 | D150: 0.5362829 | E150: 1 | F150: 0.96 | G150: 1 | H150: 1 | I150: 1.8647e-06 | J150: defined
A151: 2QPophMG9bRHf58JtUHgJWnVtVv2aWSrSDDFX7QrWX97 | B151: 0 | C151: 1.636919 | D151: 1.636919 | E151: 1 | F151: 1.03 | G151: 1 | H151: 1 | I151: 6.109e-07 | J151: defined
A152: A5g9f6HzLEJgQeAwBkhRGABVsHys2gz8Lh6rp3LEZfKV | B152: 2.61292834 | C152: 2.61292834 | D152: 0 | E152: 0.99 | F152: 0 | G152: 1 | H152: 0 | I152: 3.789e-07 | J152: defined
A153: 6ebfkqiwsEmbV7poWZFxWqkMxHr7XFm4WTjC2qN3oaSX | B153: 0.58924262 | C153: 0.58924262 | D153: 0 | E153: 0.99 | F153: 0 | G153: 1 | H153: 0 | I153: 1.6722e-06 | J153: defined
A154: 8BFf6P78trgPmCC3crsEFngobB494UiXuj2s9nZtUvxu | B154: 0.53596921 | C154: 0.53596921 | D154: 0 | E154: 0.99 | F154: 0 | G154: 1 | H154: 0 | I154: 1.8471e-06 | J154: defined
A155: 4zrpiest6wvqic2q2c3A65kV5WiSg825NqTxRZoZG2id | B155: 0.51882995 | C155: 0.51882995 | D155: 0 | E155: 0.99 | F155: 0 | G155: 1 | H155: 0 | I155: 1.9081e-06 | J155: defined
A156: DBo8MmxQrpg79D4UNyAhhL9fKzh7KpX86vdvFcAi6duv | B156: 0.38100998 | C156: 0.38100998 | D156: 0 | E156: 0.99 | F156: 0 | G156: 2 | H156: 0 | I156: 2.5984e-06 | J156: defined
A157: 73GJmaUqcUUJQ2FLNSTfRSdRk13aKZkx1TSNnGAh8pk3 | B157: 0 | C157: 0.52161234 | D157: 0.52161234 | E157: 0.99 | F157: 1.02 | G157: 1 | H157: 1 | I157: 1.9008e-06 | J157: defined
A158: 6gqFJh4FUgCTrKz6sZt6kjzJDQKmjRumB2PWpU6Lc1Hm | B158: 0 | C158: 0.47460785 | D158: 0.47460785 | E158: 0.99 | F158: 0.96 | G158: 2 | H158: 1 | I158: 2.0859e-06 | J158: defined
A159: HshjAKBheiY18Aa2nfXKLrKHscErKHnstj9rVmdjgBG8 | B159: 0 | C159: 1.82402134 | D159: 1.82402134 | E159: 0.99 | F159: 1.02 | G159: 1 | H159: 1 | I159: 5.428e-07 | J159: defined
A160: 6RQAE4oeii71wQh6wtsQ4Jq7vSy8bowddZ3aLpAj2fU7 | B160: 0.38754965 | C160: 0.38754965 | D160: 0 | E160: 0.97 | F160: 0 | G160: 1 | H160: 0 | I160: 2.5029e-06 | J160: defined
A161: ARSCioA3WfLQQ9gAAeunFNSGX6otyrH4jwFxpNGtBC9i | B161: 2.68e-06 | C161: 0.31683579 | D161: 0.31683311 | E161: 0.95 | F161: 0.95 | G161: 1 | H161: 1 | I161: 3.0044e-06 | J161: defined
A162: ARsCioBCdY96VqiNsfueQrTXt8H5ZXGiGH3TBueocAVA | B162: 3.928e-05 | C162: 0.3168388 | D162: 0.31679952 | E162: 0.91 | F162: 0.94 | G162: 1 | H162: 1 | I162: 2.8831e-06 | J162: defined
A163: ARSCio7ZyMWKq9QtEw1gcVPtSS3tLYwSoQ1nNbQKzxfm | B163: 1.758e-05 | C163: 0.31680207 | D163: 0.31678449 | E163: 0.9 | F163: 0.91 | G163: 1 | H163: 1 | I163: 2.8285e-06 | J163: defined
A164: ARsCioCEonXTmHSVDZzbjNNJctAL8zdN7AFEqGKGwrkc | B164: 7.72e-06 | C164: 0.42657958 | D164: 0.42657186 | E164: 0.87 | F164: 0.87 | G164: 1 | H164: 1 | I164: 2.0278e-06 | J164: defined
A165: H9ZRVEDXbFJfksrR9VcD8U96wL4z7ybSwARNntsPfEzb | B165: 0 | C165: 0.34084448 | D165: 0.34084448 | E165: 0.87 | F165: 0.87 | G165: 3 | H165: 3 | I165: 2.5633e-06 | J165: defined
A166: ARSCiohjv1EZYQzmQSfxdhmMmR26vNPG8ijyRiBWYrQ | B166: 0.00012538 | C166: 0.2659226 | D166: 0.26579722 | E166: 0.83 | F166: 0.84 | G166: 1 | H166: 1 | I166: 3.1382e-06 | J166: defined
A167: ARSCioPrEmrzoW8TxBsaw9SPQXC6MKkHy27GaL5JVTak | B167: 1.998e-05 | C167: 0.31685538 | D167: 0.3168354 | E167: 0.83 | F167: 0.84 | G167: 1 | H167: 1 | I167: 2.6239e-06 | J167: defined
A168: BFmcGvvjh7yEKhgeG58ZioWNzustgZhHjEBk7nsPsCNg | B168: 0.44095641 | C168: 0.44095641 | D168: 0 | E168: 0.81 | F168: 0 | G168: 1 | H168: 0 | I168: 1.8334e-06 | J168: defined
A169: 8enRw6pvtRrRreU9kJrY7q9nBoUiH5d4EFaztEDojfHg | B169: 0.30846061 | C169: 0.30846061 | D169: 0 | E169: 0.81 | F169: 0 | G169: 3 | H169: 0 | I169: 2.6313e-06 | J169: defined
A170: ARSCio38FDi3V6ygkiYTfaLEWqYyB99HBNmiE6GhdByg | B170: 2.778e-05 | C170: 0.42660624 | D170: 0.42657846 | E170: 0.81 | F170: 0.82 | G170: 1 | H170: 1 | I170: 1.9005e-06 | J170: defined
A171: 72yc3UXjRaKc24E4HjUpQ6pyhdGg7z9MzvsAzDKgiEwM | B171: 0.28207495 | C171: 0.28207495 | D171: 0 | E171: 0.8 | F171: 0 | G171: 4 | H171: 0 | I171: 2.8361e-06 | J171: defined
A172: ARSCiocnt18SorRp5onTS2KV1AAVt7BK9nYGaGRKrAfr | B172: 2.777e-05 | C172: 0.31688025 | D172: 0.31685248 | E172: 0.78 | F172: 0.8 | G172: 1 | H172: 1 | I172: 2.4727e-06 | J172: defined
A173: GxijPi5vsxzaSAFmMaXYQUxt86ZoJ6zTLaJdNLt9Yx2a | B173: 0 | C173: 0.39640155 | D173: 0.39640155 | E173: 0.76 | F173: 0.73 | G173: 1 | H173: 1 | I173: 1.9078e-06 | J173: defined
A174: 5nULKjqyeteJwPfp2Uc1DJnhnuxXx3BSosVu2S4N8xEW | B174: 0 | C174: 0.45865716 | D174: 0.45865716 | E174: 0.76 | F174: 0.87 | G174: 2 | H174: 2 | I174: 1.6618e-06 | J174: defined
A175: ARsCioBgH9yWaDneGUGBoA1P49TYo3vQmQ9XY9ZSy1Lt | B175: 2.577e-05 | C175: 0.4265756 | D175: 0.42654983 | E175: 0.75 | F175: 0.76 | G175: 1 | H175: 1 | I175: 1.7694e-06 | J175: defined
A176: BJ8BhvEHRqZz4gK4BDiNh9o3qhMBcpY6uyB4NNnQpQyJ | B176: 0 | C176: 0.81967417 | D176: 0.81967417 | E176: 0.72 | F176: 0.74 | G176: 1 | H176: 1 | I176: 8.833e-07 | J176: defined
A177: 8AUJW7N6KFjw2NXJ7x2KcQDexnBWgPQ68xsFJkQiPzjF | B177: 0.24773485 | C177: 0.30339028 | D177: 0.05565544 | E177: 0.7 | F177: 0.17 | G177: 2 | H177: 1 | I177: 2.3073e-06 | J177: defined
A178: Gb3FXJULpRiHoeYfBD8xTJywCKJTvFE2dBp2mApqF84W | B178: 0.24429827 | C178: 0.24429827 | D178: 0 | E178: 0.69 | F178: 0 | G178: 1 | H178: 0 | I178: 2.8304e-06 | J178: defined
A179: 3bxcdf1nAaUzMTMfFmEVcvsCJUwmvefrmNMRvJuEgAGk | B179: 0.27411994 | C179: 0.27411994 | D179: 0 | E179: 0.65 | F179: 0 | G179: 1 | H179: 0 | I179: 2.3839e-06 | J179: defined
A180: 3zPoVDDj47m6nSjEJygQnjrKZydLmVBJYMwDAFwrEdWQ | B180: 0.25721224 | C180: 0.25721224 | D180: 0 | E180: 0.65 | F180: 0 | G180: 1 | H180: 0 | I180: 2.5092e-06 | J180: defined
A181: Sby18RQNwYSR41L61SA3Mzx2UsCQvzRo7Nh1WgmGq9h | B181: 0.22749239 | C181: 0.22749239 | D181: 0 | E181: 0.65 | F181: 0 | G181: 2 | H181: 0 | I181: 2.8572e-06 | J181: defined
A182: ARSCiocqpiT1QH9TEH2wHHpM5Nf9977hokipkYHGKRk4 | B182: 0.00023307 | C182: 1.00489085 | D182: 1.00465778 | E182: 0.64 | F182: 0.64 | G182: 1 | H182: 1 | I182: 6.351e-07 | J182: defined
A183: 5srv5Z6xavjwc7ftg8azYfjikgJvKsw8BcnynzFqbU6e | B183: 0.00177861 | C183: 0.21188758 | D183: 0.21010897 | E183: 0.63 | F183: 0.48 | G183: 1 | H183: 1 | I183: 2.9732e-06 | J183: defined
A184: 2AiEua9Uas2hT1TRWNxSgQZN5ytQ6D9pFzCfHLNph24h | B184: 0 | C184: 0.28976321 | D184: 0.28976321 | E184: 0.63 | F184: 0.69 | G184: 2 | H184: 2 | I184: 2.1715e-06 | J184: defined
A185: Czosq3SmDiD95XFHK7YsLFzWxpFGo9Z7S8tctyDXAoiQ | B185: 0.38357121 | C185: 0.95892802 | D185: 0.57535681 | E185: 0.55 | F185: 1.55 | G185: 1 | H185: 2 | I185: 5.736e-07 | J185: defined
A186: 4CAGWjFwdv9n3mzexdZyAZVWKrvvEeu9kRhzDt1oHeug | B186: 0.1244815 | C186: 0.38130274 | D186: 0.25682124 | E186: 0.54 | F186: 0.24 | G186: 2 | H186: 1 | I186: 1.4165e-06 | J186: defined
A187: Dr4RVJFdV6p4RGbgbDeuHgwSDMHP2squm43ZcYCCxkAE | B187: 0 | C187: 0.31127651 | D187: 0.31127651 | E187: 0.52 | F187: 0.61 | G187: 2 | H187: 2 | I187: 1.6643e-06 | J187: defined
A188: 7PXAh12kVHji6FRdtpnZprZog9zC5aboVZRt5UnP961n | B188: 0.76961115 | C188: 0.76961115 | D188: 0 | E188: 0.5 | F188: 0 | G188: 1 | H188: 0 | I188: 6.497e-07 | J188: defined
A189: C111J9bqmoshNuyaDsGdrzc69sDsDdA35a3f3pSvY888 | B189: 0.58332474 | C189: 0.58332474 | D189: 0 | E189: 0.5 | F189: 0 | G189: 1 | H189: 0 | I189: 8.572e-07 | J189: defined
A190: EXfwxm9khoXU7qdZCMBLUarbxcDRnxFQuSSmjNZsBndG | B190: 0.51689858 | C190: 0.51689858 | D190: 0 | E190: 0.5 | F190: 0 | G190: 1 | H190: 0 | I190: 9.673e-07 | J190: defined
A191: 5UJn1p3UdvmJKEQqZmhr697j6wS72FeQq5fmTyF15S7C | B191: 0.3033146 | C191: 0.3033146 | D191: 0 | E191: 0.5 | F191: 0 | G191: 1 | H191: 0 | I191: 1.6485e-06 | J191: defined
A192: AtJjWxcSP12pi7VH7hJA6MuF1Ahtu13gE33XNveH5no9 | B192: 0.29109647 | C192: 0.29109647 | D192: 0 | E192: 0.5 | F192: 0 | G192: 1 | H192: 0 | I192: 1.7176e-06 | J192: defined
A193: HoqTVdvQD2MXRWesy5pPgHdWvjLbd4i5KuH8DwXfeKZ4 | B193: 0.27648506 | C193: 0.27648506 | D193: 0 | E193: 0.5 | F193: 0 | G193: 1 | H193: 0 | I193: 1.8084e-06 | J193: defined
A194: E5ezMkggr8ZwbhA18XATgKmwV3jSHAkbjze7Rkufhj73 | B194: 0.26986529 | C194: 0.26986529 | D194: 0 | E194: 0.5 | F194: 0 | G194: 1 | H194: 0 | I194: 1.8528e-06 | J194: =HYPERLINK("https://www.defined.fi/sol/4GULMPKBJLruChBZWksZzukAg1AjSCmCTMn9ny2Xpump?maker="&A194,"defined") -> defined
A195: 53xoCG6wMMPF1Up4iTP5NPJdu4fq69FU6TKwDaSuVFHL | B195: 0.26845431 | C195: 0.53690863 | D195: 0.26845431 | E195: 0.5 | F195: 0.58 | G195: 1 | H195: 1 | I195: 9.313e-07 | J195: defined
A196: 5aBUMhYe5r1mwVWLYPNawxHqmLypKPPfYr6DCn8MLEv5 | B196: 0.25413842 | C196: 0.25413842 | D196: 0 | E196: 0.5 | F196: 0 | G196: 1 | H196: 0 | I196: 1.9674e-06 | J196: defined
A197: FbyifofAXNdrRJx78TBRZBnncvkvrFMD31a49PG3mAYa | B197: 0.24850564 | C197: 0.24850564 | D197: 0 | E197: 0.5 | F197: 0 | G197: 1 | H197: 0 | I197: 2.012e-06 | J197: defined
A198: 6zQ6PZSStwNhNJZ5u9DVEXnRE37SHCxQQ4hYF2NobYAL | B198: 0.24831995 | C198: 0.24831995 | D198: 0 | E198: 0.5 | F198: 0 | G198: 1 | H198: 0 | I198: 2.0135e-06 | J198: defined
A199: FYcmR4hLHD4TPGp9eWe9bWJr9mrNV1bttk6BxnCV1U7Z | B199: 0.24141506 | C199: 0.24141506 | D199: 0 | E199: 0.5 | F199: 0 | G199: 1 | H199: 0 | I199: 2.0711e-06 | J199: defined
A200: F2JVBtxSW6jtbZD6Gok7ZtMtK6EuoY7PdnbzjLQLpQx6 | B200: 0.23924429 | C200: 0.23924429 | D200: 0 | E200: 0.5 | F200: 0 | G200: 1 | H200: 0 | I200: 2.0692e-06 | J200: defined
... 303 more rows

Sheet special_time_row
A1: trader_id | B1: tx_id | C1: block_time | D1: block_slot | E1: project_main_id | F1: trade_source | G1: action_type | H1: token_swap_M | I1: eth_swap | J1: pri | K1: ready | L1: 319884982 | M1: 73.74 | N1: =L1*M1 -> 2.358831857e+10
A2: 93B9gxNzc1gTyiTjjbdLhwUUpUR1R2nupTL6JNJ6xUGz | B2: 4xp67gUS3zt85z9MbqcYTm6agiCicZKAcGH1HGj5UgJS66xHZ6QPep8Upur8SSV9tK8vWaD9EjSW6Csqhi5HiJBt | C2: 2024-10-18T10:15:00 | D2: 296295879 | E2: 675kPX9MHTjS2zt1qfr1NYHuzeLXfQM9H24wFSUt1Mp8 | F2: direct | G2: s | H2: -0.93921303 | I2: 0.22 | J2: 2.293e-07 | L2: =L1-H2*1000000 -> 320824195 | M2: =M1-I2 -> 73.52 | N2: =L2*M2 -> 2.358699482e+10
A3: 9kTx1no1d1C81N8zFT6ck4S5zvKsgpbbLEUf5KZJeC32 | B3: 3xWwhYwrhLpNWxGdPikn2paydBBtPjmQRQMHPvc9SmWNiobL7iKyPhqPCQiPC52TsGQRAA9LuJpSS5GeEvMNWAtX | C3: 2024-10-18T10:16:00 | D3: 296295961 | E3: 675kPX9MHTjS2zt1qfr1NYHuzeLXfQM9H24wFSUt1Mp8 | F3: OKX_v2 | G3: s | H3: -5.03621268 | I3: 1.13 | J3: 2.251e-07 | L3: =L2-H3*1000000 -> 325860407.7 | M3: =M2-I3 -> 72.39 | N3: =L3*M3 -> 2.358903491e+10
A4: F2XYxLUR9rURfRnf8fDpQdWUxRXBfBAFZS1rioRjbNw2 | B4: 2e5zFp3Ajj5rBe6Ss5iu1vjde2nypoRejE3rHaMKXkw5tDfuWjfqByQsPpniGX1y1MzZTNfodzZLQhp54c5FnDCt | C4: 2024-10-18T10:16:00 | D4: 296295972 | E4: 675kPX9MHTjS2zt1qfr1NYHuzeLXfQM9H24wFSUt1Mp8 | F4: direct | G4: b | H4: 0.44842103 | I4: -0.1 | J4: 2.23e-07 | L4: 325411986.7 | M4: 72.49 | N4: =L4*M4 -> 2.358911491e+10
A5: 5d2PUxoqCcRSThzgtHx8gEH3zeqZsWbAEpzaM5zmGFF5 | B5: pmPij6y8jGiU9KLtJpQJQCWsT9JyPGZnWPNLSFFTXZA8tnMBbxt2V8WD7mUUtvRrW8HR9xGTJ5k64QaQUTSM3Ra | C5: 2024-10-18T10:17:00 | D5: 296296057 | E5: 675kPX9MHTjS2zt1qfr1NYHuzeLXfQM9H24wFSUt1Mp8 | F5: direct | G5: b | H5: 20.9487331 | I5: -5 | J5: 2.387e-07 | L5: 304463253.6 | M5: 77.49 | N5: =L5*M5 -> 2.359285752e+10
A6: DGidUEMPqjxJnQaMqVUtJUN1gHkRM7bvzhcy7RT6XTbi | B6: 2U5zpcsBx9tyaEcVTpDjseBCpFHuNUVs74Bp6GqgUBMEjc3nt7z37LKsZiSnyUFw9ZeZ95TSLb1teWrxVdBiGcTN | C6: 2024-10-18T10:22:00 | D6: 296296694 | E6: 675kPX9MHTjS2zt1qfr1NYHuzeLXfQM9H24wFSUt1Mp8 | F6: 45wPVSFEiEyqRiMWjkqdrZLddb5fqiuP3haKU9DAFWMP | G6: s | H6: -0.69126069 | I6: 0.2 | J6: 2.883e-07 | L6: 305154514.3 | M6: 77.29 | N6: =L6*M6 -> 2.358539241e+10
A7: H2SfwK7QXCh7gsSg92VC37zyjfUWKaR87u2cs8wooBwu | B7: 3Vpe54ST8vvDZ9avd3FedffMWQYWwWqnnz4fNfC5JXP6SLtzgzBvWtccbXkF3h7BvF7xn5xkWYJGBGPJdxcJKh54 | C7: 2024-10-18T10:22:00 | D7: 296296694 | E7: 675kPX9MHTjS2zt1qfr1NYHuzeLXfQM9H24wFSUt1Mp8 | F7: ray_amm | G7: b | H7: 18.32052588 | I7: -5 | J7: 2.729e-07 | L7: 286833988.4 | M7: 82.29 | N7: =L7*M7 -> 2.36035689e+10
A8: DGidUEMPqjxJnQaMqVUtJUN1gHkRM7bvzhcy7RT6XTbi | B8: 3Bs11jgU1zgPeXWRE51zdwZD5xPSx9tjH353FWiWHe3tGs5cJb7P24ywZXncWmG5KU7AHbNAfn6KoSr4NiE3Yu9H | C8: 2024-10-18T10:22:00 | D8: 296296694 | E8: 675kPX9MHTjS2zt1qfr1NYHuzeLXfQM9H24wFSUt1Mp8 | F8: 45wPVSFEiEyqRiMWjkqdrZLddb5fqiuP3haKU9DAFWMP | G8: b | H8: 0.77886166 | I8: -0.2 | J8: 2.558e-07 | L8: 286055126.7 | M8: 82.49 | N8: 2.35966874e+10
A9: F1eSPc1xhWikUiGv4jSUcXE7Vbm5iLwSK5dvzATXGi5p | B9: 4jnauGFHCQqEao7wNuubG4cBsgyhaZW9uMomA6wCrE2Q14cjFHJcxx7YAL5VevMT1EzTKEMbL35oNvsRYykQe7of | C9: 2024-10-18T10:22:00 | D9: 296296704 | E9: 675kPX9MHTjS2zt1qfr1NYHuzeLXfQM9H24wFSUt1Mp8 | F9: direct | G9: b | H9: 1.20562278 | I9: -0.35 | J9: 2.903e-07 | L9: 284849503.9 | M9: 82.84 | N9: 2.359693291e+10
A10: AD84qVTwuLBD9YBm8wy7tT4a9E7aQR5YLrNNf8XLwXjz | B10: 2tRKiFGxNLev6tNin6aeaJ1eVuuh42Z5fbuh3jViRHUc8sgEpLXQoyuxeW4jp8xWNNzzC5v5KG3AqLjTbmLeRBCx | C10: 2024-10-18T10:23:00 | D10: 296296879 | E10: 675kPX9MHTjS2zt1qfr1NYHuzeLXfQM9H24wFSUt1Mp8 | F10: 45wPVSFEiEyqRiMWjkqdrZLddb5fqiuP3haKU9DAFWMP | G10: s | H10: -0.08760097 | I10: 0.03 | J10: 2.9e-07 | L10: 284937104.9 | M10: 82.81 | N10: 2.359564166e+10
A11: DPE41MUY4pmpJWm1T9DSzAjxQ5E7QaMexLtszktFuo3N | B11: Vik9ymZtCXiH9ro8EVSvWDkFDGkaj9cnKwR8UvNXvemYkbjrP8fUrr4551XBxVRdSekrC6X37bCPLRefZXgkTii | C11: 2024-10-18T10:24:00 | D11: 296296899 | E11: 675kPX9MHTjS2zt1qfr1NYHuzeLXfQM9H24wFSUt1Mp8 | F11: direct | G11: b | H11: 0.34280605 | I11: -0.1 | J11: 2.917e-07 | L11: 284594298.9 | M11: 82.91 | N11: 2.359571332e+10
A12: AtNWDhTmRYDs2drnMcz7rXEztRx9oFnv36RMzoHb1Y1c | B12: 4NJyv3mkNwnwXnubYFwjot8stD17FY7dFEQ7BR8dHbANRZw2CtquXUy4jacSd8S7QAwvJjejR7WH28yZ4P5i3fnP | C12: 2024-10-18T10:24:00 | D12: 296296916 | E12: 675kPX9MHTjS2zt1qfr1NYHuzeLXfQM9H24wFSUt1Mp8 | F12: direct | G12: b | H12: 0.36246949 | I12: -0.11 | J12: 2.924e-07 | L12: 284231829.4 | M12: 83.02 | N12: 2.359692648e+10
A13: B9tNReDM9vP2WWrcmKFUKu9FW3kbjvFU8hC7woa1NGmA | B13: 2QGC5y6ph4V5KCBEDbaa88SFctu625Fgvjij2Uart3mSZfuJKVSv98GEKoSb9scgFgLA63eaF6Fc9yUTcvBtX4D2 | C13: 2024-10-18T10:24:00 | D13: 296296929 | E13: 675kPX9MHTjS2zt1qfr1NYHuzeLXfQM9H24wFSUt1Mp8 | F13: direct | G13: b | H13: 0.36198224 | I13: -0.11 | J13: 2.932e-07 | L13: 283869847.1 | M13: 83.13 | N13: 2.359810039e+10
A14: 6LxiLdPzEpBxGNwMGiXJ53fb27wGVj1ZxH7GNvzZvPZN | B14: 4vUTA3zhwocFsDAeRYGRF77JrkWuwdkLFNnaBRz27R23vL1DqEUZFBy45oGMdEAF5yQgFx38BfoKuxyeVD8nCFzz | C14: 2024-10-18T10:24:00 | D14: 296296964 | E14: 675kPX9MHTjS2zt1qfr1NYHuzeLXfQM9H24wFSUt1Mp8 | F14: direct | G14: b | H14: 3.33283505 | I14: -0.99 | J14: 2.97e-07 | L14: 280537012.1 | M14: 84.12 | N14: 2.359877346e+10
A15: AtNWDhTmRYDs2drnMcz7rXEztRx9oFnv36RMzoHb1Y1c | B15: 4jbr67uxTx77kwyewRPzbstLaHz3HuxuwL3TtCXFK68nAwUthpPRZzVkTpKRPKwoxTCjdJvkXKSFjMTQ2dPqb1Vf | C15: 2024-10-18T10:24:00 | D15: 296296988 | E15: 675kPX9MHTjS2zt1qfr1NYHuzeLXfQM9H24wFSUt1Mp8 | F15: direct | G15: b | H15: 0.35352776 | I15: -0.11 | J15: 3.01e-07 | L15: 280183484.3 | M15: 84.23 | N15: 2.359985489e+10
A16: B9tNReDM9vP2WWrcmKFUKu9FW3kbjvFU8hC7woa1NGmA | B16: 63LNkrN75GxqGRDHqJuTvjKvwNoXJeomahXfVfusF2kUKdrtvJfLJMgs6kJBeg4X4ET9fuA1SNDPmHzxXfqBPTfr | C16: 2024-10-18T10:25:00 | D16: 296297017 | E16: 675kPX9MHTjS2zt1qfr1NYHuzeLXfQM9H24wFSUt1Mp8 | F16: direct | G16: b | H16: 0.71275486 | I16: -0.22 | J16: 3.021e-07 | L16: 279470729.5 | M16: 84.45 | N16: 2.36013031e+10
A17: 49wTvcmWH1rZmMxMDRT5DgXTs7YATZ7WnnuyhxGEpRyT | B17: 3zRFE18DBPoJ9YtGcr7XSiR2xWWuZD6uFy3wiTYb635AE2SpNKrYe32Rcei1Zdx6JfQWWx1N2F696vLxM1kUEzQv | C17: 2024-10-18T10:25:00 | D17: 296297027 | E17: 675kPX9MHTjS2zt1qfr1NYHuzeLXfQM9H24wFSUt1Mp8 | F17: Jupiter_v6 | G17: b | H17: 0.64316263 | I17: -0.2 | J17: 3.036e-07 | L17: 278827566.8 | M17: 84.65 | N17: 2.360275353e+10
A18: 6LxiLdPzEpBxGNwMGiXJ53fb27wGVj1ZxH7GNvzZvPZN | B18: 4WPf1as9TBB83nZk4sPJf5nB7AweXsknEeX89XDAEytDei59Pqtyf7oRyzbzykci635Q3RXPx6B1o1JiYiu5rV52 | C18: 2024-10-18T10:25:00 | D18: 296297031 | E18: 675kPX9MHTjS2zt1qfr1NYHuzeLXfQM9H24wFSUt1Mp8 | F18: direct | G18: b | H18: 3.21601517 | I18: -0.99 | J18: 3.078e-07 | L18: 275611551.7 | M18: 85.64 | N18: 2.360337329e+10
A19: DvkSvYX2PvUQiAX54Rar6ZjnxrCCAF4y3jMHy1tJkmx | B19: 2PiwuNiS18mmRMGrqJpmPwUsL1diimpGqUz2WGPHT3PaYhfBBKAJN8ksj38KK34nGArC81G7CMXiNsPrRJqSTHNm | C19: 2024-10-18T10:26:00 | D19: 296297149 | E19: 675kPX9MHTjS2zt1qfr1NYHuzeLXfQM9H24wFSUt1Mp8 | F19: Banana_Gun | G19: b | H19: 23.28450693 | I19: -7.92 | J19: 3.402e-07 | L19: 252327044.7 | M19: 93.56 | N19: 2.360771831e+10
A20: 6JJwJ15dtZs33AyAozaQcHnQBdy1vSqArNyWdoFwytkg | B20: 2Ts2xVT1ZDT6t7BjP2vsWKkfBwzFYgtJiWpZeGzn8gEHSk5oMnPo486sJqvQGQHfwvH8QbWmHo6izX9zAMBXaz22 | C20: 2024-10-18T10:26:00 | D20: 296297156 | E20: 675kPX9MHTjS2zt1qfr1NYHuzeLXfQM9H24wFSUt1Mp8 | F20: MaestroAAe9ge5HTc64VbBQZ6fP77pwvrhM8i1XWSAx | G20: b | H20: 1.33823822 | I20: -0.5 | J20: 3.736e-07 | L20: 250988806.5 | M20: 94.06 | N20: 2.360800714e+10
A21: 49wTvcmWH1rZmMxMDRT5DgXTs7YATZ7WnnuyhxGEpRyT | B21: 5MigLugfmHdGQB1TMjmRtc3ryrryXKnsQjFoWWpY31tMwNEv6F8CyErz2egbFa9KFUSqzQFBjRJt9N9aindHWB4g | C21: 2024-10-18T10:28:00 | D21: 296297465 | E21: 675kPX9MHTjS2zt1qfr1NYHuzeLXfQM9H24wFSUt1Mp8 | F21: Jupiter_v6 | G21: s | H21: -0.64316263 | I21: 0.24 | J21: 3.728e-07 | L21: 251631969.2 | M21: 93.82 | N21: 2.360811135e+10
A22: BaBQ5Sv2Tmfa1osAeTsyGqA5TqD19Ggsej4ydekqtVRs | B22: wdkNhovZMpvptJK6FyZqdhkvNDsKouUMXtcTsY3apRzW9JpN8zKLSoqYwgK1rbqa3g9F7imYt6eh7tx4VP8C27X | C22: 2024-10-18T10:29:00 | D22: 296297536 | E22: 675kPX9MHTjS2zt1qfr1NYHuzeLXfQM9H24wFSUt1Mp8 | F22: Jupiter_v6 | G22: b | H22: 0.42741526 | I22: -0.16 | J22: 3.743e-07 | L22: 251204553.9 | M22: 93.98 | N22: 2.360820397e+10
A23: A5g9f6HzLEJgQeAwBkhRGABVsHys2gz8Lh6rp3LEZfKV | B23: v7JT9CbUDkVNVsNRjXiin2EZ25BSSXzPih8Yxi51DYPHDcsYWXMhhW5cLpLgHos1DPmKXHqf3aDNBNnN173GzZ6 | C23: 2024-10-18T10:31:00 | D23: 296297776 | E23: 675kPX9MHTjS2zt1qfr1NYHuzeLXfQM9H24wFSUt1Mp8 | F23: Banana_Gun | G23: b | H23: 2.61292834 | I23: -0.99 | J23: 3.789e-07 | L23: 248591625.6 | M23: 94.97 | N23: 2.360874668e+10
A24: 8QAurtEohFiiLqDTfWtePNjGr6asMgZTZFXiCquotzpa | B24: 2x7kqbNnHAiM5SyzjRxxaFnQXTpEfYaDh3nL6sDcn1zpoK7GR8ceiRcTyPFbzg8BtW8rFyX6wpG4Vd2zLyNnvnP2 | C24: 2024-10-18T10:31:00 | D24: 296297814 | E24: 675kPX9MHTjS2zt1qfr1NYHuzeLXfQM9H24wFSUt1Mp8 | F24: direct | G24: b | H24: 0.72908636 | I24: -0.28 | J24: 3.84e-07 | L24: 247862539.2 | M24: 95.25 | N24: 2.360890686e+10
A25: 66i8zoehRxtysS1y2YLMbv3zBwQnfLnAr9w3k6TBJGHC | B25: 4C7XzD5pdjoh7BQ7SuaodPXWn3sog2EWcYbp3B45jBkMVTKZ8LJt1qVD93igw61N2Xn6y6RxBACzpv7psdw9iHrE | C25: 2024-10-18T10:31:00 | D25: 296297820 | E25: 675kPX9MHTjS2zt1qfr1NYHuzeLXfQM9H24wFSUt1Mp8 | F25: OKX_v2 | G25: b | H25: 0.10042979 | I25: -0.04 | J25: 3.853e-07 | L25: 247762109.4 | M25: 95.29 | N25: 2.36092514e+10
A26: 6gNWYyX5zp4S5wXhiEhFNDnvLK8a8u4o89e5NpnVTqak | B26: 5WLGZnNWe4VCDUGeqbajj6LioKmG4yMpncNfT61dKmN1EaVwYpUWJimA6bGHCLJdWhdbZxtvcb3TzCLa9dDXz5d3 | C26: 2024-10-18T10:31:00 | D26: 296297856 | E26: 675kPX9MHTjS2zt1qfr1NYHuzeLXfQM9H24wFSUt1Mp8 | F26: Banana_Gun | G26: b | H26: 1.91146368 | I26: -0.74 | J26: 3.885e-07 | L26: 245850645.7 | M26: 96.03 | N26: 2.360903751e+10
A27: F1eSPc1xhWikUiGv4jSUcXE7Vbm5iLwSK5dvzATXGi5p | B27: 3as2SN7V7qsCwSPioHxvPnKgjpp1P7W5Msii8zx9EEFCobm3yt97911vN3AwYZ1zTdYXpgXi684Fr4RVqRepj1wf | C27: 2024-10-18T10:31:00 | D27: 296297878 | E27: 675kPX9MHTjS2zt1qfr1NYHuzeLXfQM9H24wFSUt1Mp8 | F27: direct | G27: s | H27: -1.20562278 | I27: 0.47 | J27: 3.877e-07 | L27: 247056268.5 | M27: 95.56 | N27: 2.360869702e+10
A28: Ej3FEonSePpoNv1ak8fW59sCW4idqh3sKPsb9UMZ4gr6 | B28: 4z3V6QN1bHUxVhefmAS4VBBArweZPvgkHsKj66SWVnVs9W3wiHGSswn4RkN9wX5nR2Jz6q7awuUwczi72cCKzj9h | C28: 2024-10-18T10:32:00 | D28: 296297952 | E28: 675kPX9MHTjS2zt1qfr1NYHuzeLXfQM9H24wFSUt1Mp8 | F28: OKX_v2 | G28: b | H28: 0.25547086 | I28: -0.1 | J28: 3.881e-07 | L28: 246800797.6 | M28: 95.66 | N28: 2.36089643e+10
A29: Hg8cQChQzy6VmnyNwLB5KstFx39TNfvRYL4RYfyjVcba | B29: 563ZXM1BWFjQZWv8kKydYsyMs285cQHLCzQb8AQoWhbX761uefkrXCpDze5fsWWza1hA4TdHLji25k7w5BjFinMk | C29: 2024-10-18T10:33:00 | D29: 296298093 | E29: 675kPX9MHTjS2zt1qfr1NYHuzeLXfQM9H24wFSUt1Mp8 | F29: direct | G29: b | H29: 2.52215831 | I29: -0.99 | J29: 3.925e-07 | L29: 244278639.3 | M29: 96.65 | N29: 2.360953049e+10
A30: Hg8cQChQzy6VmnyNwLB5KstFx39TNfvRYL4RYfyjVcba | B30: 317DbMFzKWvqAVANKen6QFMfAxEtxiP6Qj1WBYbvzR6hpbFZmUvRUwJDjZEV3wzYoRGkCPUEz6fwUG38YKDQqP7k | C30: 2024-10-18T10:33:00 | D30: 296298094 | E30: 675kPX9MHTjS2zt1qfr1NYHuzeLXfQM9H24wFSUt1Mp8 | F30: direct | G30: b | H30: 2.42151357 | I30: -0.99 | J30: 4.088e-07 | L30: 241857125.8 | M30: 97.64 | N30: =L30*M30 -> 2.361492976e+10
A31: Hg8cQChQzy6VmnyNwLB5KstFx39TNfvRYL4RYfyjVcba | B31: 4oJ2YFPQk7faGH5S7hdEUUXiuZRWoztntUgitmRAPAEvzFg3jj8hGfhxQkXuV2RBGXcwiqNheiNd2qRYLPgLJMm1 | C31: 2024-10-18T10:33:00 | D31: 296298094 | E31: 675kPX9MHTjS2zt1qfr1NYHuzeLXfQM9H24wFSUt1Mp8 | F31: direct | G31: b | H31: 2.4710672 | I31: -0.99 | J31: 4.006e-07 | L31: 239386058.6 | M31: 98.63 | N31: 2.361064696e+10
A32: Hg8cQChQzy6VmnyNwLB5KstFx39TNfvRYL4RYfyjVcba | B32: 2ZyyV2spjd1HfRYpdWtMtgZUBUBKFXjFBesSCCxz9pNSaAU9BTVp2TZxjoMTBLTfXC18o9bSgJBEH27CZQJghMd8 | C32: 2024-10-18T10:33:00 | D32: 296298100 | E32: 675kPX9MHTjS2zt1qfr1NYHuzeLXfQM9H24wFSUt1Mp8 | F32: direct | G32: b | H32: 2.37343633 | I32: -0.99 | J32: 4.171e-07 | L32: 237012622.2 | M32: 99.62 | N32: 2.361119743e+10
A33: Hg8cQChQzy6VmnyNwLB5KstFx39TNfvRYL4RYfyjVcba | B33: 5a5zoTc6umo7PTpUSEAaccFwp9V9HnF2mGjUsWcYscUPY7XqqbWp2s4NanbFBeua8av8LzNCb5GgQYNXdxRFeWCD | C33: 2024-10-18T10:33:00 | D33: 296298121 | E33: 675kPX9MHTjS2zt1qfr1NYHuzeLXfQM9H24wFSUt1Mp8 | F33: direct | G33: b | H33: 2.3267774 | I33: -0.99 | J33: 4.255e-07 | L33: 234685844.8 | M33: 100.61 | N33: 2.361174285e+10
A34: Hg8cQChQzy6VmnyNwLB5KstFx39TNfvRYL4RYfyjVcba | B34: qhBuHTtakGiWBEpRF2N3VFgUbFK37mWjLsJNWjLuEf51W626SCNzgqLXnGmZhUN8Dg6Qecq7k2mDZcdknMApiPe | C34: 2024-10-18T10:33:00 | D34: 296298125 | E34: 675kPX9MHTjS2zt1qfr1NYHuzeLXfQM9H24wFSUt1Mp8 | F34: direct | G34: b | H34: 2.28148151 | I34: -0.99 | J34: 4.339e-07 | L34: 232404363.3 | M34: 101.6 | N34: 2.361228331e+10
A35: Hg8cQChQzy6VmnyNwLB5KstFx39TNfvRYL4RYfyjVcba | B35: 28Hhwo7UjMoDRezSQQkVPvX2R7wpYRgnwuMoLeA2D9oM88ZCMQ7KemV3kWXksxzcb3h4RUNfXE4ti7wFCVuF541U | C35: 2024-10-18T10:33:00 | D35: 296298126 | E35: 675kPX9MHTjS2zt1qfr1NYHuzeLXfQM9H24wFSUt1Mp8 | F35: direct | G35: b | H35: 2.23749608 | I35: -0.99 | J35: 4.425e-07 | L35: 230166867.2 | M35: 102.59 | N35: 2.361281891e+10
A36: HZKNi5RtCM16monmyFPjkSpJNFCKV7mjn3zeL2m7h4c9 | B36: 52q1yHr65SjZE29QQEmPgizEimFL4XgAnjHJdJDwJq2KJzrhqHi9W5jjfkehEMn1Xpcod5rjGUksso39fXnpTiMc | C36: 2024-10-18T10:33:00 | D36: 296298144 | E36: 675kPX9MHTjS2zt1qfr1NYHuzeLXfQM9H24wFSUt1Mp8 | F36: direct | G36: b | H36: 16.459513 | I36: -7.92 | J36: 4.812e-07 | L36: 213707354.2 | M36: 110.51 | N36: 2.361679972e+10
A37: Hg8cQChQzy6VmnyNwLB5KstFx39TNfvRYL4RYfyjVcba | B37: r9x68U3dTf8XNHaSsmChnWZCvsyqKTjezYQramZoCXEivC9FftLoQitW4Ttd26REwzeKLiQAwZ5YaJ7Q9WzZYeT | C37: 2024-10-18T10:34:00 | D37: 296298168 | E37: 675kPX9MHTjS2zt1qfr1NYHuzeLXfQM9H24wFSUt1Mp8 | F37: direct | G37: b | H37: 1.8597639 | I37: -0.99 | J37: 5.323e-07 | L37: 211847590.3 | M37: 111.5 | N37: 2.362100632e+10
A38: Hg8cQChQzy6VmnyNwLB5KstFx39TNfvRYL4RYfyjVcba | B38: 32mrsa46goYfdaLxDk1JRkcyxAFjZFou6bmhQQNCnsKMH44aeMnuytbAeSn8nr8ags9Ke8BPXtktTi74QMghaAAt | C38: 2024-10-18T10:34:00 | D38: 296298168 | E38: 675kPX9MHTjS2zt1qfr1NYHuzeLXfQM9H24wFSUt1Mp8 | F38: direct | G38: b | H38: 1.89304809 | I38: -0.99 | J38: 5.23e-07 | L38: 209954542.2 | M38: 112.49 | N38: 2.361778646e+10
A39: j1oAbxxiDUWvoHxEDhWE7THLjEkDQW2cSHYn2vttxTF | B39: 4j61UUogCyBCrARSV2She4sBuNcjupaAk5KUr6yWiqAnkzNHM3yAxDDmGy5ZMj47psnNuR46zmYaeESBDzFUSQn2 | C39: 2024-10-18T10:34:00 | D39: 296298181 | E39: 675kPX9MHTjS2zt1qfr1NYHuzeLXfQM9H24wFSUt1Mp8 | F39: Jupiter_v6 | G39: s | H39: -1.07160766 | I39: 0.57 | J39: 5.317e-07 | L39: 211026149.9 | M39: 111.92 | N39: 2.36180467e+10
A40: 8QAurtEohFiiLqDTfWtePNjGr6asMgZTZFXiCquotzpa | B40: 2YQAycZdiTz9WAFbFA9SsUvby3LWupj2dKos6iiEtZEBThxmprTxiAjwPN7dx5b46n5w3N4TdAcUtAF1PAefU8qm | C40: 2024-10-18T10:34:00 | D40: 296298248 | E40: 675kPX9MHTjS2zt1qfr1NYHuzeLXfQM9H24wFSUt1Mp8 | F40: direct | G40: b | H40: 0.52538174 | I40: -0.28 | J40: 5.329e-07 | L40: 210500768.2 | M40: 112.2 | N40: 2.361818619e+10
A41: 6JJwJ15dtZs33AyAozaQcHnQBdy1vSqArNyWdoFwytkg | B41: 5EVrvye8CPUvZ6qbrNi83HQBVt8sUdqYoq6sFk58LKaP7broexrYyFcsD5i9VH5Hn4ZfPDUYZLfPwmD3xtvZDGxu | C41: 2024-10-18T10:34:00 | D41: 296298286 | E41: 675kPX9MHTjS2zt1qfr1NYHuzeLXfQM9H24wFSUt1Mp8 | F41: MaestroAAe9ge5HTc64VbBQZ6fP77pwvrhM8i1XWSAx | G41: s | H41: -1.33823822 | I41: 0.71 | J41: 5.283e-07 | L41: 211839006.4 | M41: 111.49 | N41: 2.361793082e+10
A42: 6gNWYyX5zp4S5wXhiEhFNDnvLK8a8u4o89e5NpnVTqak | B42: fJy6gN1nN9cKb34amHLEraQT58RaYcVanqAFFoa3jfiBK2a1KoecejZzDDWoXvzxiuFcB1ZnLqdCdRaMkCA31C3 | C42: 2024-10-18T10:35:00 | D42: 296298293 | E42: 675kPX9MHTjS2zt1qfr1NYHuzeLXfQM9H24wFSUt1Mp8 | F42: Jupiter_v6 | G42: s | H42: -1.91146368 | I42: 0.99 | J42: 5.202e-07 | L42: 213750470.1 | M42: 110.5 | N42: 2.361942694e+10
A43: EWjvccrNFPbBUiic9zWo7x5zn2hDupTjz6Ap4xNNWUx | B43: 2DZXSxjM4T7ruPpXCjACpdJ7QXNo7WPHQa7ipXGYNeT7HSoSyG9cU7AShqcAWLX9kCXGUudnU47Vf6EmaGxzCYk2 | C43: 2024-10-18T10:35:00 | D43: 296298301 | E43: 675kPX9MHTjS2zt1qfr1NYHuzeLXfQM9H24wFSUt1Mp8 | F43: Jupiter_v6 | G43: b | H43: 0.19281017 | I43: -0.1 | J43: 5.186e-07 | L43: 213557659.9 | M43: 110.6 | N43: 2.361947718e+10
A44: GRQV68VbgR33nFyodZzQwLAuAaq9XN1YmN36o6DBk4eJ | B44: 26gKpjeLkCVxVnGQLD5wLu5D5MxuyP74vbgkspLRqbqjPp2khHagbSTyePoTtiT8Z6rJwmdDdHCG3MErgEgfZkeQ | C44: 2024-10-18T10:35:00 | D44: 296298306 | E44: 675kPX9MHTjS2zt1qfr1NYHuzeLXfQM9H24wFSUt1Mp8 | F44: direct | G44: b | H44: 3.78444251 | I44: -2 | J44: 5.285e-07 | L44: 209773217.4 | M44: 112.6 | N44: 2.362046428e+10
A45: HshjAKBheiY18Aa2nfXKLrKHscErKHnstj9rVmdjgBG8 | B45: 43EA78j9QADsXxKp6YBXjABYnJFr4FG1VvBHqvstqbDA6qDZrZTcdqqXtVF2v9oWracRiNPCesKQeHgzquzSqAzf | C45: 2024-10-18T10:35:00 | D45: 296298320 | E45: 675kPX9MHTjS2zt1qfr1NYHuzeLXfQM9H24wFSUt1Mp8 | F45: direct | G45: b | H45: 1.82402134 | I45: -0.99 | J45: 5.428e-07 | L45: 207949196.1 | M45: 113.59 | N45: 2.362094918e+10
A46: 5U89F211PGHH846rZhukXmweJuTtiNKhjvZPubhv2yTA | B46: vM97bjGWJfNP1HPtKJCzemLLiKPwbyhqJWsorRxCbQdpUbZEoSpdr8gMHEwTDzAzB8Q3c5vCNogW5jGiz4XQHay | C46: 2024-10-18T10:35:00 | D46: 296298321 | E46: 675kPX9MHTjS2zt1qfr1NYHuzeLXfQM9H24wFSUt1Mp8 | F46: direct | G46: b | H46: 2.49022967 | I46: -1.38 | J46: 5.542e-07 | L46: 205458966.4 | M46: 114.97 | N46: 2.362161736e+10
A47: 6gNWYyX5zp4S5wXhiEhFNDnvLK8a8u4o89e5NpnVTqak | B47: 51DJzasHMHHbJJst9QKNMcj5jx1nsYtj2XKFm65dqcxAN8erbKSCWUw7nQwaWNZu8djHy7iMJhprLKrdipf2D6Bf | C47: 2024-10-18T10:35:00 | D47: 296298351 | E47: 675kPX9MHTjS2zt1qfr1NYHuzeLXfQM9H24wFSUt1Mp8 | F47: Jupiter_v6 | G47: b | H47: 1.74913948 | I47: -0.99 | J47: 5.657e-07 | L47: 203709826.9 | M47: 115.96 | N47: 2.362219153e+10
A48: Pd7rFYevhfkob7YtmrYdJtDGop9cGQgb8yRRe2K4YEv | B48: 4pbcUP2FtFMZofuLAshF5ovrs9ypRuaQjqXXUjrbDH2untjxveNEkqQrbGBLPFA9yvTRqQ2junL3TS5QLtxrHSZF | C48: 2024-10-18T10:35:00 | D48: 296298357 | E48: 675kPX9MHTjS2zt1qfr1NYHuzeLXfQM9H24wFSUt1Mp8 | F48: direct | G48: b | H48: 0.34991535 | I48: -0.2 | J48: 5.716e-07 | L48: 203359911.6 | M48: 116.16 | N48: 2.362228733e+10
A49: CjAGwwnFwFmrMhmbzT5Y9qwxhKaC19TdxqpZRNpr8USM | B49: jRRdGvvYWF7xGH8N8JpHDxXdDH9Vdi2PwRpWN5BD9a6fqXj5Jv45ce67XCxnLgFoviHoqgxDvnY6yuRSFuCdfXH | C49: 2024-10-18T10:35:00 | D49: 296298363 | E49: 675kPX9MHTjS2zt1qfr1NYHuzeLXfQM9H24wFSUt1Mp8 | F49: direct | G49: b | H49: 1.73169125 | I49: -1 | J49: 5.775e-07 | L49: 201628220.3 | M49: 117.16 | N49: 2.362276229e+10
A50: 6LxiLdPzEpBxGNwMGiXJ53fb27wGVj1ZxH7GNvzZvPZN | B50: 3SRFEZ17XZLDAgyBNdir6fUMqiV1vTNeHRM1GLs3qfmJTv3MF52BFaYGECZcuHzLViRfaus4yidBAcbKyh7sUqd7 | C50: 2024-10-18T10:36:00 | D50: 296298441 | E50: 675kPX9MHTjS2zt1qfr1NYHuzeLXfQM9H24wFSUt1Mp8 | F50: direct | G50: s | H50: -2.59753687 | I50: 1.49 | J50: 5.722e-07 | L50: 204225757.2 | M50: 115.67 | N50: 2.362279333e+10
A51: CXyB9nFGtmkxbkJixot6ZFckmyuhDpqg99Ro3neFruqY | B51: wo1hoUK5FcepdaUdS9vqetE1rSNvnJyDYYtUyhDJHeLyFqvndSctfNT4vGsKGNiD6aXc3un8fy6H74ssBxtRZ4H | C51: 2024-10-18T10:36:00 | D51: 296298490 | E51: 675kPX9MHTjS2zt1qfr1NYHuzeLXfQM9H24wFSUt1Mp8 | F51: OKX_v2 | G51: b | H51: 0.16089224 | I51: -0.09 | J51: 5.682e-07 | L51: 204064864.9 | M51: 115.76 | N51: 2.362254876e+10
A52: HshjAKBheiY18Aa2nfXKLrKHscErKHnstj9rVmdjgBG8 | B52: 4ucCZy4DFtW7rr1UfZvFRpRLw9MZb23MpWSV6eBfzs5atnucWfkSciLwhMWURcpnYK7WgUffF4gaKMT1YSH7nvLV | C52: 2024-10-18T10:36:00 | D52: 296298534 | E52: 675kPX9MHTjS2zt1qfr1NYHuzeLXfQM9H24wFSUt1Mp8 | F52: direct | G52: s | H52: -1.82402134 | I52: 1.02 | J52: 5.608e-07 | L52: 205888886.3 | M52: 114.74 | N52: 2.362369081e+10
A53: DNBRsfgRTJhmuBFxkzxNZ4NtfRF4RdFwyjFcq3NeQ826 | B53: 3ghTR8DeFrgzvSy4rjd6QYgtbfp85gpJC9p1yrfNJfGr2AiW5EKNgCAKiEbay3pM9vLszqs7gyG1k2zd2PERjcNk | C53: 2024-10-18T10:36:00 | D53: 296298546 | E53: 675kPX9MHTjS2zt1qfr1NYHuzeLXfQM9H24wFSUt1Mp8 | F53: direct | G53: b | H53: 1.77470564 | I53: -1 | J53: 5.635e-07 | L53: 204114180.6 | M53: 115.74 | N53: 2.362417527e+10
A54: 6gNWYyX5zp4S5wXhiEhFNDnvLK8a8u4o89e5NpnVTqak | B54: 22ULi9isbM8yr2HksvB5kXjHd15X8wsBcc1UZuxfGBgZKippiuRyco2e4wiyTAVe8ttfpZRZRjsMnRXPQYG4ufHX | C54: 2024-10-18T10:36:00 | D54: 296298548 | E54: 675kPX9MHTjS2zt1qfr1NYHuzeLXfQM9H24wFSUt1Mp8 | F54: Banana_Gun | G54: s | H54: -1.74913948 | I54: 0.98 | J54: 5.608e-07 | L54: 205863320.1 | M54: 114.76 | N54: 2.362487462e+10
A55: B93X6ZpMb4nN4Heg5KeLaFmdd9S7rQXq1J7t6tYq1r9g | B55: mwr7xTgX4LYCqw4QFin3qha911idZZQrJiubaBoRmJrvTHZ6XufX414itC6kunPsSpcmiSpbbLDA3ehehz3WokF | C55: 2024-10-18T10:37:00 | D55: 296298576 | E55: 675kPX9MHTjS2zt1qfr1NYHuzeLXfQM9H24wFSUt1Mp8 | F55: Jupiter_v6 | G55: s | H55: -4.658523 | I55: 2.53 | J55: 5.437e-07 | L55: 210521843.1 | M55: 112.23 | N55: 2.362686645e+10
A56: CLmjrZMkqHqJCdTcG6apgvyhaod5EUJQC13YPvH7TJdk | B56: yB1HcDfcqiK3MUdXmxKDFgW8TTR8rvCD1c2x3e1PN5oNpWp4uQNuRGVcQA5PQ98HTU3U76RtGTc176oxTQhkvun | C56: 2024-10-18T10:37:00 | D56: 296298581 | E56: 675kPX9MHTjS2zt1qfr1NYHuzeLXfQM9H24wFSUt1Mp8 | F56: direct | G56: b | H56: 0.70874656 | I56: -0.38 | J56: 5.362e-07 | L56: 209813096.6 | M56: 112.61 | N56: 2.36270528e+10
A57: 6W3Z732QBdnxLPSi5kx1EURsEAoc7PiMbhMV9c6bTHVK | B57: 1ZYkgYheYfpHYDPK4bJoq3vgawkp1U2cyuoxfFGHF6J9oQ2kyLoVfGGPX4k6uVZsYG91cnpV7gj7FNJCUc7jJ82 | C57: 2024-10-18T10:37:00 | D57: 296298638 | E57: 675kPX9MHTjS2zt1qfr1NYHuzeLXfQM9H24wFSUt1Mp8 | F57: Jupiter_v6 | G57: b | H57: 0.42666098 | I57: -0.23 | J57: 5.391e-07 | L57: 209386435.6 | M57: 112.84 | N57: 2.362716539e+10
A58: AtNWDhTmRYDs2drnMcz7rXEztRx9oFnv36RMzoHb1Y1c | B58: 3BxAGk1Vwthr42Com7tdxivbeq6vqjJGuuafNomvaXpx78T6b5yWoYykcbszDnBo7pgC2Qb4aBa1M9nHyc6Axymk | C58: 2024-10-18T10:37:00 | D58: 296298640 | E58: 675kPX9MHTjS2zt1qfr1NYHuzeLXfQM9H24wFSUt1Mp8 | F58: direct | G58: s | H58: -0.35799863 | I58: 0.19 | J58: 5.366e-07 | L58: 209744434.2 | M58: 112.65 | N58: =L58*M58 -> 2.362771051e+10
A59: 96V1nQxvkTYmmSr5fTgh3j2v9MCjGbe92vAvNzLmko7y | B59: 5infzbM4iJ78aXrPERBJy5HUHugwsZAaAWHaX42BRfJCiPTGd4RDqjJzuF5fCxpogbM1Fx7g46AxEuqQzC4KfgZb | C59: 2024-10-18T10:37:00 | D59: 296298649 | E59: 675kPX9MHTjS2zt1qfr1NYHuzeLXfQM9H24wFSUt1Mp8 | F59: direct | G59: b | H59: 0.37086187 | I59: -0.2 | J59: 5.393e-07 | L59: 209373572.3 | M59: 112.85 | N59: 2.362780764e+10
A60: 2wGAjx9jJoeDrfFxXQZE6SzqJjQcxHZcoCEWWnvxuHR3 | B60: 2b8Pw12enZ6D2BSTeW4wPeqb1tFF7KrvxX1a2u6eCL64neV3vYj59io77xQnFbRs8BDwACrErmmfNk26GHNcLNUm | C60: 2024-10-18T10:37:00 | D60: 296298663 | E60: 675kPX9MHTjS2zt1qfr1NYHuzeLXfQM9H24wFSUt1Mp8 | F60: direct | G60: b | H60: 0.18493874 | I60: -0.1 | J60: 5.407e-07 | L60: 209188633.6 | M60: 112.95 | N60: 2.362785616e+10
A61: 8noaTH1j74MXSugCpg1mbn5mn2WHr7VGCKd4QKCdFFQp | B61: 4hYv4HXwHywzVR53ADDzRg1BC1dEYHysMkuZ4kvZFEYzRqcQzC66oD38dDbLCBWQz4VPyD5XewDdie1HQYPE3aQ8 | C61: 2024-10-18T10:39:00 | D61: 296298804 | E61: 675kPX9MHTjS2zt1qfr1NYHuzeLXfQM9H24wFSUt1Mp8 | F61: Jupiter_v6 | G61: b | H61: 0.55285993 | I61: -0.3 | J61: 5.426e-07 | L61: 208635773.7 | M61: 113.25 | N61: 2.362800137e+10
A62: 66i8zoehRxtysS1y2YLMbv3zBwQnfLnAr9w3k6TBJGHC | B62: 2WpacGi6jPvDFLsJnMFFoUGUG5aq12Zq3jt1txe6xAYjPFZLpuAf6HZjnpRfh8RZ2Znv65LAwHGUieZPP9wYVrYF | C62: 2024-10-18T10:39:00 | D62: 296298828 | E62: 675kPX9MHTjS2zt1qfr1NYHuzeLXfQM9H24wFSUt1Mp8 | F62: Jupiter_v6 | G62: b | H62: 0.04682339 | I62: -0.03 | J62: 5.442e-07 | L62: 208588950.3 | M62: 113.28 | N62: 2.362895629e+10
A63: DNBRsfgRTJhmuBFxkzxNZ4NtfRF4RdFwyjFcq3NeQ826 | B63: 2ck3BuArrZtLzRjGGPffKHs4U585u4zBNQACRBWF8uk1B5rJabXRTYUTUHpWvoshKUEDaeQvz1D54fXNDLHCT83N | C63: 2024-10-18T10:39:00 | D63: 296298921 | E63: 675kPX9MHTjS2zt1qfr1NYHuzeLXfQM9H24wFSUt1Mp8 | F63: direct | G63: s | H63: -1.77470564 | I63: 0.95 | J63: 5.37e-07 | L63: 210363655.9 | M63: 112.33 | N63: 2.363014947e+10
A64: 9kTx1no1d1C81N8zFT6ck4S5zvKsgpbbLEUf5KZJeC32 | B64: d7RuP3u5uA3G5uv87LczZEiHK2e6yLfzFErtXzGNWwDHHPS7AZEdhdXX3s3LQVuiQCfaj6XPfqVGLEj7p45YkwB | C64: 2024-10-18T10:40:00 | D64: 296299009 | E64: 675kPX9MHTjS2zt1qfr1NYHuzeLXfQM9H24wFSUt1Mp8 | F64: OKX_v2 | G64: b | H64: 2.51053243 | I64: -1.36 | J64: 5.416e-07 | L64: 207853123.5 | M64: 113.69 | N64: 2.363082161e+10
A65: 5U89F211PGHH846rZhukXmweJuTtiNKhjvZPubhv2yTA | B65: 3hoP2wpP5Pj6NHM4zZ6vRhvDZFVGyF5n81c7fYkJJSQbPD5nRX6DeZ7PJeBBwNiXPrJQv2kH3HHw3VXFqVxXg843 | C65: 2024-10-18T10:41:00 | D65: 296299095 | E65: 675kPX9MHTjS2zt1qfr1NYHuzeLXfQM9H24wFSUt1Mp8 | F65: Jupiter_v6 | G65: s | H65: -2.49022967 | I65: 1.34 | J65: 5.39e-07 | L65: 210343353.2 | M65: 112.35 | N65: 2.363207573e+10
A66: 66i8zoehRxtysS1y2YLMbv3zBwQnfLnAr9w3k6TBJGHC | B66: 3VHx8GVnfKaqffcLh7kXTjcumJMracdgaKMu5YEigmRwqXMqVtucWSZrSgkr8wA86fLo4etkVHAQhQTG4DALnd8H | C66: 2024-10-18T10:41:00 | D66: 296299162 | E66: 675kPX9MHTjS2zt1qfr1NYHuzeLXfQM9H24wFSUt1Mp8 | F66: OKX_v2 | G66: s | H66: -0.14725318 | I66: 0.08 | J66: 5.323e-07 | L66: 210490606.3 | M66: 112.27 | N66: 2.363178037e+10
A67: B9tNReDM9vP2WWrcmKFUKu9FW3kbjvFU8hC7woa1NGmA | B67: 4YZwoDw7hVV9yWbrBVtc5fPy5NS7u4BBNwc5Z3ZfwZ2n76CoeUZuzGanfdvTQUdf5XBYqwVsYQEVhv17FPKYbjvd | C67: 2024-10-18T10:42:00 | D67: 296299251 | E67: 675kPX9MHTjS2zt1qfr1NYHuzeLXfQM9H24wFSUt1Mp8 | F67: direct | G67: s | H67: -1.0747371 | I67: 0.57 | J67: 5.292e-07 | L67: =L66-H67*1000000 -> 211565343.4 | M67: =M66-I67 -> 111.7 | N67: 2.363184886e+10
A68: AtNWDhTmRYDs2drnMcz7rXEztRx9oFnv36RMzoHb1Y1c | B68: 2cspmVXEM6sLdcomxDxtiqZVA88wmegqstkUUxqjvDdtdaCaWGFhjA7NcZH2u5c3S9cJ6L4PMiYDxJ56CHjjf9f1 | C68: 2024-10-18T10:42:00 | D68: 296299256 | E68: 675kPX9MHTjS2zt1qfr1NYHuzeLXfQM9H24wFSUt1Mp8 | F68: direct | G68: s | H68: -0.35799863 | I68: 0.19 | J68: 5.256e-07 | L68: 211923342.1 | M68: 111.51 | N68: 2.363157187e+10
A69: HVN56EmhnpMCP4xC6zkDecpuYrJVXEUg5xJLFFYpWeqn | B69: 3b15pSGHVBE8FphRkJbHfyAtkFyzmBmBEK631eYX4s4yHEYQFsWqk15PSFVVaBBt811NJUFf3r23XUW1tWQJUG7e | C69: 2024-10-18T10:45:00 | D69: 296299563 | E69: 675kPX9MHTjS2zt1qfr1NYHuzeLXfQM9H24wFSUt1Mp8 | F69: MaestroAAe9ge5HTc64VbBQZ6fP77pwvrhM8i1XWSAx | G69: b | H69: 0.09476634 | I69: -0.05 | J69: 5.276e-07 | L69: 211828575.7 | M69: 111.56 | N69: 2.363159591e+10
A70: Pd7rFYevhfkob7YtmrYdJtDGop9cGQgb8yRRe2K4YEv | B70: 64GMurwJk8xa9Z69uNpvpNAGM4SQvHrcNrnwuhLpfwuGYuNAwwx3JtyLnZwowHdYZ61rLrpYcoCq8ALXcxRkkr7e | C70: 2024-10-18T10:46:00 | D70: 296299733 | E70: 675kPX9MHTjS2zt1qfr1NYHuzeLXfQM9H24wFSUt1Mp8 | F70: direct | G70: s | H70: -0.34991535 | I70: 0.18 | J70: 5.244e-07 | L70: 212178491.1 | M70: 111.38 | N70: 2.363244034e+10
A71: CjAGwwnFwFmrMhmbzT5Y9qwxhKaC19TdxqpZRNpr8USM | B71: bCzLLrmDYghmhfQap25rYv1RbRABhHG8oFe1qEwj7xP2vHVewWray6dzzSYuszmx2uYV6rAEkpeKfwXU3sVRugZ | C71: 2024-10-18T10:46:00 | D71: 296299739 | E71: 675kPX9MHTjS2zt1qfr1NYHuzeLXfQM9H24wFSUt1Mp8 | F71: direct | G71: s | H71: -1.73169125 | I71: 0.9 | J71: 5.193e-07 | L71: 213910182.3 | M71: 110.48 | N71: 2.363279694e+10
A72: 7XegKTXQgeDKcNmtVYvvaRq91yAYwqLUdMa5kyfMopk7 | B72: 5XZH63aU2s4qkJk7JMafULeHs4yFWVghce3nf4C68uKxdpCzWPckpe5DbvPp8KuXcYEg6dWLFMV4bx8noRkoXXY | C72: 2024-10-18T10:46:00 | D72: 296299792 | E72: 675kPX9MHTjS2zt1qfr1NYHuzeLXfQM9H24wFSUt1Mp8 | F72: direct | G72: b | H72: 1.91455592 | I72: -1 | J72: 5.223e-07 | L72: 211995626.4 | M72: 111.48 | N72: 2.363327243e+10
A73: BNWqc7WArDnKf9DK12EJFN2nQDw81bjmYKm3vgxEzF9e | B73: UojX55HcVrt8VsCbfoeUxwcFRuPfKS4Lkn6H5ZtHBmpp7L7HwtprekHozBWLn5xcLxwxawPx2cd2VttnCAovzqc | C73: 2024-10-18T10:47:00 | D73: 296299817 | E73: 675kPX9MHTjS2zt1qfr1NYHuzeLXfQM9H24wFSUt1Mp8 | F73: direct | G73: b | H73: 0.18956809 | I73: -0.1 | J73: 5.275e-07 | L73: 211806058.3 | M73: 111.58 | N73: 2.363331999e+10
A74: 68qu6HmiWChah5R4W9EE6R9JAxpfwEwM8ZCMrt6Gk4V | B74: 3c1xWgYkxCYYmRefFbqKSLkWnBYroQETRn81RFqYMi2dz5hWzZzD3BMe8xCCiDN85rQFwhoXQVYKCnCED3sDEWZg | C74: 2024-10-18T10:47:00 | D74: 296299870 | E74: 675kPX9MHTjS2zt1qfr1NYHuzeLXfQM9H24wFSUt1Mp8 | F74: Jupiter_v6 | G74: s | H74: -0.36983556 | I74: 0.19 | J74: 5.244e-07 | L74: 212175893.9 | M74: 111.39 | N74: 2.363427282e+10
A75: 7heu5KZ1PoXmxia5dD51hayBBCRFVEtknpPUbfoYseNP | B75: fHNu1qfG8epqwwKbf2WEpJNVX57odRbwWYgSzbhyXeXSEqevCkUpGb7S1eB418B8ZuktYwGSebkZ1ESyG1QRqV3 | C75: 2024-10-18T10:47:00 | D75: 296299901 | E75: 675kPX9MHTjS2zt1qfr1NYHuzeLXfQM9H24wFSUt1Mp8 | F75: direct | G75: b | H75: 0.94605937 | I75: -0.5 | J75: 5.285e-07 | L75: 211229834.5 | M75: 111.89 | N75: 2.363450618e+10
A76: GECiHatSQ6ZVnXA4dRA2VU5F9sSx7o8VSySe6P253BHH | B76: 3QkwEd5UJuTBcuBqRR9LY4M3qA2fZoijHHNBRaQrWs7fopsZum4LQYw9EAsdnTBhhXehtstTfQ7i7MsdA84cCK38 | C76: 2024-10-18T10:49:00 | D76: 296300151 | E76: 675kPX9MHTjS2zt1qfr1NYHuzeLXfQM9H24wFSUt1Mp8 | F76: direct | G76: b | H76: 3.70130855 | I76: -2 | J76: 5.403e-07 | L76: 207528525.9 | M76: 113.89 | N76: 2.363542382e+10
A77: 883faqjeCWhtxdkYkoZxFQF6cH5Hi5eEA6uvpSMrrCZM | B77: 2tx9U229JmyFV2QswJ1jgzfi5ShHbPFzExqDsgpA4HVfmhBdAM9WhJB8qXqU4pbFTYG1EaVZE9KEozJPcKckhRyb | C77: 2024-10-18T10:49:00 | D77: 296300161 | E77: 675kPX9MHTjS2zt1qfr1NYHuzeLXfQM9H24wFSUt1Mp8 | F77: OKX_v2 | G77: s | H77: -0.01726595 | I77: 0.01 | J77: 5.472e-07 | L77: 207545791.9 | M77: 113.88 | N77: 2.363531478e+10
A78: AFAzjA9SG9zxz36wBLFY1LigSrR5Ki7XzDU7MLninuDv | B78: TX2PQUA8MKVvUy6Z8VNxQT77rAEQY7P2rCisYvpbPBuCmm2UEVUZ61VwMuPg1EMKepYuv8vFZFDeNNxLhf2pzLK | C78: 2024-10-18T10:49:00 | D78: 296300184 | E78: 675kPX9MHTjS2zt1qfr1NYHuzeLXfQM9H24wFSUt1Mp8 | F78: direct | G78: b | H78: 0.17987035 | I78: -0.1 | J78: 5.504e-07 | L78: 207365921.6 | M78: 113.98 | N78: 2.363556774e+10
A79: B9tNReDM9vP2WWrcmKFUKu9FW3kbjvFU8hC7woa1NGmA | B79: b9BPhqNjEM2ziMSNd3wsFsmFfCMe3pcsJjJJM3DRWBm2Vj5WSyp7Ez965TBnMRFARX4t2EPc5cumBZNkXeTZ7Li | C79: 2024-10-18T10:49:00 | D79: 296300196 | E79: 675kPX9MHTjS2zt1qfr1NYHuzeLXfQM9H24wFSUt1Mp8 | F79: direct | G79: b | H79: 0.39604432 | I79: -0.22 | J79: 5.519e-07 | L79: 206969877.2 | M79: 114.2 | N79: 2.363595998e+10
A80: AtNWDhTmRYDs2drnMcz7rXEztRx9oFnv36RMzoHb1Y1c | B80: 3UMgYiaaCae4f8jXrACUd6Lgp77W8iwFkKDfeHJyhRVC68aUdPYYmpSzmRqAHtcwPbE8SBCKxr7MxQ9mzg31AStL | C80: 2024-10-18T10:49:00 | D80: 296300208 | E80: 675kPX9MHTjS2zt1qfr1NYHuzeLXfQM9H24wFSUt1Mp8 | F80: direct | G80: b | H80: 0.39453252 | I80: -0.22 | J80: 5.54e-07 | L80: 206575344.7 | M80: 114.42 | N80: 2.363635094e+10
A81: 8QAurtEohFiiLqDTfWtePNjGr6asMgZTZFXiCquotzpa | B81: 3uUnZtKmQzzciBkKdQ7B1SSc9X2A22t7vU93XgmbhSa2qpxfitDVuvHj6ZKqz3vy5QeyunGfq9oov6Se9tyVXQxi | C81: 2024-10-18T10:52:00 | D81: 296300472 | E81: 675kPX9MHTjS2zt1qfr1NYHuzeLXfQM9H24wFSUt1Mp8 | F81: direct | G81: b | H81: 0.46732037 | I81: -0.26 | J81: 5.564e-07 | L81: 206108024.3 | M81: 114.68 | N81: 2.363646823e+10
A82: 2QnjgMAfLBYtZDMV48STD4h1w2LwqrxKjLrBMfWMEvmy | B82: 5Q2Vfjg38UT5sabeS2dmgeimqTBcUdhxKW3ST6AWYWdA2p3L4b5UR4NK9tNBUS6XqWQREPUaDEw8qbiRZa9BBpXh | C82: 2024-10-18T10:55:00 | D82: 296300883 | E82: 675kPX9MHTjS2zt1qfr1NYHuzeLXfQM9H24wFSUt1Mp8 | F82: direct | G82: s | H82: -0.74016296 | I82: 0.41 | J82: 5.529e-07 | L82: 206848187.3 | M82: 114.27 | N82: 2.363654236e+10
A83: 7TwCAjeCkyrVmL9khDEj8oMnJpqxgNzZxgXitojufEXK | B83: twq6TESRUnPXUf3495DLNVYsHtfL1JG3xA4AaT85rPJk51HNgZQ27MadUr1BkGkyhusfdvvLYCdM5A6mQGDQuw1 | C83: 2024-10-18T10:55:00 | D83: 296300948 | E83: 675kPX9MHTjS2zt1qfr1NYHuzeLXfQM9H24wFSUt1Mp8 | F83: OKX_v2 | G83: b | H83: 0.89917261 | I83: -0.5 | J83: 5.561e-07 | L83: 205949014.7 | M83: 114.77 | N83: 2.363676842e+10
A84: DPE41MUY4pmpJWm1T9DSzAjxQ5E7QaMexLtszktFuo3N | B84: 2yCHQz5Ezg7kVfbFTgPH24gEgnqBhCqqTkMZvL1MvkZBEZwU7KQWPJcEzx9ASxVcnBiwAfGAFSfoQ3GL41r541FC | C84: 2024-10-18T10:56:00 | D84: 296301062 | E84: 675kPX9MHTjS2zt1qfr1NYHuzeLXfQM9H24wFSUt1Mp8 | F84: direct | G84: s | H84: -0.40359539 | I84: 0.22 | J84: 5.546e-07 | L84: 206352610.1 | M84: 114.55 | N84: 2.363769148e+10
A85: 7TwCAjeCkyrVmL9khDEj8oMnJpqxgNzZxgXitojufEXK | B85: 4P1tmD14gh5G4fHEPePzBxaGq2F3An2DAoAapXFDQDMwTmddVFJ9XjzPGfvXoFUV8Q75SscAScGEutVfPjHTno2i | C85: 2024-10-18T10:56:00 | D85: 296301126 | E85: 675kPX9MHTjS2zt1qfr1NYHuzeLXfQM9H24wFSUt1Mp8 | F85: OKX_v2 | G85: b | H85: 2.13471441 | I85: -1.2 | J85: 5.621e-07 | L85: 204217895.7 | M85: 115.75 | N85: 2.363822142e+10
A86: 9kTx1no1d1C81N8zFT6ck4S5zvKsgpbbLEUf5KZJeC32 | B86: 5Ak2pcpWSXFf1hsnDoGcyjbXW1z4DcqZkrpR7XGei4Tsj9SgLXWukBU2oNHVRrg4KQ9fyhjCCYkfwCXLsLqj3sKy | C86: 2024-10-18T10:57:00 | D86: 296301166 | E86: 675kPX9MHTjS2zt1qfr1NYHuzeLXfQM9H24wFSUt1Mp8 | F86: OKX_v2 | G86: b | H86: 0.68652769 | I86: -0.39 | J86: 5.699e-07 | L86: 203531368 | M86: 116.14 | N86: 2.363813308e+10
A87: 6nei5odjriLZv7gebQDM59o1Rp9PhxP2cfSxmpv7KnHb | B87: 37rhkJHdKh5Vgkzd7b5zMUKRcFje7iSToRBy44z6HccX9ioJMa5S3mtRya5w6R8veF1c5u6vdRJRRVUKBzQ8sMQh | C87: 2024-10-18T10:58:00 | D87: 296301331 | E87: 675kPX9MHTjS2zt1qfr1NYHuzeLXfQM9H24wFSUt1Mp8 | F87: direct | G87: s | H87: -0.18071986 | I87: 0.1 | J87: 5.685e-07 | L87: 203712087.8 | M87: 116.04 | N87: 2.363875067e+10
A88: Czosq3SmDiD95XFHK7YsLFzWxpFGo9Z7S8tctyDXAoiQ | B88: 4mP22cxXrLvuxWPEvYoyZbxZG6NvPAUfRSRUGEeYqB7RmEmAoagCFboJkKFuNowD4tJ2tmcDtXavgAxwrqf5rQRm | C88: 2024-10-18T10:58:00 | D88: 296301356 | E88: 675kPX9MHTjS2zt1qfr1NYHuzeLXfQM9H24wFSUt1Mp8 | F88: direct | G88: b | H88: 0.95892802 | I88: -0.55 | J88: 5.736e-07 | L88: 202753159.8 | M88: 116.59 | N88: 2.36389909e+10
A89: 8QAurtEohFiiLqDTfWtePNjGr6asMgZTZFXiCquotzpa | B89: 46Nh5czmbzykfcrxUDPwu92RnP4ZzCAzJwkfKT8fxDx6EgwFfUwDud2CA3JKyHx4nN6Pef8iLWAYd1FjqiwyEXKq | C89: 2024-10-18T10:58:00 | D89: 296301390 | E89: 675kPX9MHTjS2zt1qfr1NYHuzeLXfQM9H24wFSUt1Mp8 | F89: direct | G89: b | H89: 1.29315772 | I89: -0.75 | J89: 5.8e-07 | L89: 201460002.1 | M89: 117.34 | N89: 2.363931665e+10
A90: BinxSAgqE1qe77s1781CNKjNTgZSqpuqWf63saUBX91q | B90: 2KeC4tK1KJZtTt261X3ZffiUT8NKF8xYTNJ9CxHKyrCEDSLdE3GFtPLqFt3fexh4LPrw63DS9dEtsent31jqjhjJ | C90: 2024-10-18T10:59:00 | D90: 296301434 | E90: 675kPX9MHTjS2zt1qfr1NYHuzeLXfQM9H24wFSUt1Mp8 | F90: Jupiter_v6 | G90: b | H90: 0.10273873 | I90: -0.06 | J90: 5.84e-07 | L90: 201357263.4 | M90: 117.4 | N90: 2.363934272e+10
A91: 2cVXEr6CNDbcNK5giknD5HXmrWMBmvvVNouz3gDfbeLs | B91: 3VHzBHH3LGyq4uFv98Un4HGVgAw5bqjrDFWVxynTmMcPFxERt5AaX7jHhNjQAWNcw7vB4J3328Kwi861UGx6Fh2M | C91: 2024-10-18T10:59:00 | D91: 296301484 | E91: 675kPX9MHTjS2zt1qfr1NYHuzeLXfQM9H24wFSUt1Mp8 | F91: direct | G91: s | H91: -1.62348541 | I91: 0.94 | J91: 5.767e-07 | L91: 202980748.8 | M91: 116.46 | N91: 2.3639138e+10
A92: 6q2G9RiA3MQyvFetMvmFyQMEeBFY5U9aYf5i58zRocBJ | B92: 5kHfDiVAPrQ6uEepVkA3o8c3j1aQkULH7x7DEztC3aWYXJAa8ecT1Qdve4hYWjZYdH62Njd2dT1mHsfewx6tqijx | C92: 2024-10-18T11:00:00 | D92: 296301624 | E92: 675kPX9MHTjS2zt1qfr1NYHuzeLXfQM9H24wFSUt1Mp8 | F92: direct | G92: b | H92: 0.86584624 | I92: -0.5 | J92: 5.775e-07 | L92: 202114902.5 | M92: 116.96 | N92: 2.3639359e+10
A93: Hg8cQChQzy6VmnyNwLB5KstFx39TNfvRYL4RYfyjVcba | B93: 36cLDKByrgLGLXZCDWHmRmn792L9bpTkBjtCBPoVB3FTHCUato2V6V2k5iuWXVhD4yYC1nTuZ72BVv2asMCR8HwK | C93: 2024-10-18T11:02:00 | D93: 296301848 | E93: 675kPX9MHTjS2zt1qfr1NYHuzeLXfQM9H24wFSUt1Mp8 | F93: direct | G93: b | H93: 1.69274758 | I93: -0.99 | J93: 5.848e-07 | L93: 200422155 | M93: 117.95 | N93: 2.363979318e+10
A94: 9pgTMyrZjNrKFMC1zN3BrUUyRyPa8dLAcQQCHE7EtQDx | B94: 2XBa9YKucSH6eZCPJh6DTzhqvGBeqYtW1W2Dokr9PXo5THuLM8Usp8cRQETwj4NKMz3kPwX6terSY6CqNv4uB92z | C94: 2024-10-18T11:03:00 | D94: 296301962 | E94: 675kPX9MHTjS2zt1qfr1NYHuzeLXfQM9H24wFSUt1Mp8 | F94: OKX_v2 | G94: s | H94: -0.02463675 | I94: 0.01 | J94: 5.868e-07 | L94: 200446791.7 | M94: 117.94 | N94: 2.364069461e+10
A95: 8QAurtEohFiiLqDTfWtePNjGr6asMgZTZFXiCquotzpa | B95: 67jffHMYwfhpz4HuC5d3E569HjDWqeGQtwtuqmdxmyyGiDKkPMqrPqJwY2ejkaVzpVaUEbLh1P2Eg6Ng3LCK7Dar | C95: 2024-10-18T11:04:00 | D95: 296302076 | E95: 675kPX9MHTjS2zt1qfr1NYHuzeLXfQM9H24wFSUt1Mp8 | F95: direct | G95: b | H95: 0.45685115 | I95: -0.27 | J95: 5.91e-07 | L95: 199989940.6 | M95: 118.21 | N95: 2.364081087e+10
A96: B9tNReDM9vP2WWrcmKFUKu9FW3kbjvFU8hC7woa1NGmA | B96: 26eD5r2AsySNPLgphghbn3f92EnYy46cF6pBmTNCyZB8UG9H3X1jpa1uWarv2ukw267H6e9uYhtbQeANsLd5BwV6 | C96: 2024-10-18T11:04:00 | D96: 296302092 | E96: 675kPX9MHTjS2zt1qfr1NYHuzeLXfQM9H24wFSUt1Mp8 | F96: direct | G96: b | H96: 0.2544396 | I96: -0.15 | J96: 5.931e-07 | L96: 199735501 | M96: 118.36 | N96: 2.364069389e+10
A97: 5FZ6h28UnFkZ43PRFvMcwSE9kcdT4YNmcxvqdpHe6MuW | B97: 3PFXzrn86uLNVzq7Acm1ZHctUAyqoT3j3WLNbidfG3FMeqwgC3wBySwAFFuvKQCCzrLw8szUomDyhd4zGZQBVzvT | C97: 2024-10-18T11:04:00 | D97: 296302118 | E97: 675kPX9MHTjS2zt1qfr1NYHuzeLXfQM9H24wFSUt1Mp8 | F97: direct | G97: b | H97: 8.0788401 | I97: -5 | J97: 6.189e-07 | L97: 191656660.9 | M97: 123.36 | N97: =L97*M97 -> 2.364276568e+10
A98: AtNWDhTmRYDs2drnMcz7rXEztRx9oFnv36RMzoHb1Y1c | B98: 4mT9rbyioq8usgYvVUTghCcKRfiF6DYe3w6NvwD2UXnxEFVeQHziSMzcCSuBr7NHNHErNLptHBFMbgcMCyrCY3qr | C98: 2024-10-18T11:05:00 | D98: 296302275 | E98: 675kPX9MHTjS2zt1qfr1NYHuzeLXfQM9H24wFSUt1Mp8 | F98: direct | G98: s | H98: -0.39453252 | I98: 0.25 | J98: 6.405e-07 | L98: 192051193.4 | M98: 123.11 | N98: =L98*M98 -> 2.364342242e+10
A99: B9tNReDM9vP2WWrcmKFUKu9FW3kbjvFU8hC7woa1NGmA | B99: 4HrS7p5rs4An19vDsZiU6RuQdjmP5LaqRxZcxZ56pF6PTdzZ7EZKZff3SiC7bTCtVXhmhX521ygpbmu9mypmauQu | C99: 2024-10-18T11:05:00 | D99: 296302292 | E99: 675kPX9MHTjS2zt1qfr1NYHuzeLXfQM9H24wFSUt1Mp8 | F99: direct | G99: s | H99: -0.65048391 | I99: 0.41 | J99: 6.37e-07 | L99: 192701677.3 | M99: 122.7 | N99: =L99*M99 -> 2.36444958e+10
A100: C36Rb8sCHiSMgALreRAEn5ViQK6We35MoNnLFBvYhTbT | B100: 214uDASeFLmvLp6aMW6ti4na39qhrJ1DmN1sJepSwwiHcEqKEDf1Nyj1FJ3xiCygvU2pyQZLEihQB4tfkXDfGqJw | C100: 2024-10-18T11:06:00 | D100: 296302407 | E100: 675kPX9MHTjS2zt1qfr1NYHuzeLXfQM9H24wFSUt1Mp8 | F100: Jupiter_v6 | G100: b | H100: 0.60950189 | I100: -0.39 | J100: 6.401e-07 | L100: 192092175.4 | M100: 123.09 | N100: =L100*M100 -> 2.364462587e+10
A101: B9tNReDM9vP2WWrcmKFUKu9FW3kbjvFU8hC7woa1NGmA | B101: 61fuW4XU2h2YfPz6cqB8TqjJYnzveTeyLqZwtVWabSvFmd6t93UWbq9U2V6YPuhn76TN4A2eebAvPNmYZkpPULad | C101: 2024-10-18T11:06:00 | D101: 296302412 | E101: 675kPX9MHTjS2zt1qfr1NYHuzeLXfQM9H24wFSUt1Mp8 | F101: direct | G101: b | H101: 0.3660296 | I101: -0.24 | J101: 6.434e-07 | L101: 191726145.8 | M101: 123.33 | N101: =L101*M101 -> 2.364558556e+10
A102: AtNWDhTmRYDs2drnMcz7rXEztRx9oFnv36RMzoHb1Y1c | B102: 3DvJb25DpaQGE9gnfhU8E1oVs4ywD1VhNYmVvdv2mWAdRQaSc1zGHgDBuDQcQRioQ1Uqo2aV21eT99pm3GapE9MB | C102: 2024-10-18T11:07:00 | D102: 296302441 | E102: 675kPX9MHTjS2zt1qfr1NYHuzeLXfQM9H24wFSUt1Mp8 | F102: direct | G102: b | H102: 0.36463559 | I102: -0.24 | J102: 6.458e-07 | L102: 191361510.2 | M102: 123.57 | N102: =L102*M102 -> 2.364654182e+10
A103: 7PXAh12kVHji6FRdtpnZprZog9zC5aboVZRt5UnP961n | B103: dg2hzn8NXSsamXogWXUBDCEsR7pSNQxxkD1c5WdugeGtCpaD7L35gwjHXFKeKTfyFKWzJD6FBjwwt3EsnmfTimM | C103: 2024-10-18T11:07:00 | D103: 296302443 | E103: 675kPX9MHTjS2zt1qfr1NYHuzeLXfQM9H24wFSUt1Mp8 | F103: direct | G103: b | H103: 0.76961115 | I103: -0.5 | J103: 6.497e-07 | L103: 190591899.1 | M103: 124.07 | N103: 2.364673692e+10
A104: Hg8cQChQzy6VmnyNwLB5KstFx39TNfvRYL4RYfyjVcba | B104: 24HoPvh9Y7axuXLQvA8R3L3oe9LZeSn6KZ6SYmKv2AURwpi3ptjQeMVEpGP72iApoe6z876dhqDDqBrUTv7oXtdg | C104: 2024-10-18T11:07:00 | D104: 296302472 | E104: 675kPX9MHTjS2zt1qfr1NYHuzeLXfQM9H24wFSUt1Mp8 | F104: direct | G104: b | H104: 1.50569642 | I104: -0.99 | J104: 6.575e-07 | L104: 189086202.6 | M104: 125.06 | N104: 2.36471205e+10
A105: HqVxz1ve5YgFW3xyxrj6PyPgWm4cYutfnewJ3kUoYrNZ | B105: yi3Vk1WViUjsqrZGZ4ws5LKa6r8n5FfCe3dXw6b5oNXujb6YhRsUppUFJNzpm3zS6GoApdGjk98p6MuQBoNqFxC | C105: 2024-10-18T11:07:00 | D105: 296302515 | E105: 675kPX9MHTjS2zt1qfr1NYHuzeLXfQM9H24wFSUt1Mp8 | F105: direct | G105: b | H105: 4.42075139 | I105: -3 | J105: 6.786e-07 | L105: 184665451.2 | M105: 128.06 | N105: 2.364825769e+10
A106: 3dgRAqmiHFmF73YLxAR9WX1MD9t8H8SQMip7DgcXnJ56 | B106: 35bfm1iwyR413PTCbgC8RbUbsoQzf6Gan5v9Qtif6oxFBM5ZGV27gLBxfUsM2ENDRugswGEqNksUmpTNT8AHFEfE | C106: 2024-10-18T11:07:00 | D106: 296302552 | E106: 675kPX9MHTjS2zt1qfr1NYHuzeLXfQM9H24wFSUt1Mp8 | F106: OKX_v2 | G106: s | H106: -0.1153067 | I106: 0.08 | J106: 6.91e-07 | L106: 184780757.9 | M106: 127.98 | N106: 2.36482414e+10
A107: AdjbofGap84T6FkrXFwMZZuseB3W1Ku9sjgbhTwcRJia | B107: 263vR1kgTjK2sHCzNLckEYDpWAJ3XvJfCJo6bWdsZkzVeYUDAhsmd8Br4fRVFLDTYEpHbJ2yK85nQwsmDy3nWQn3 | C107: 2024-10-18T11:08:00 | D107: 296302561 | E107: 675kPX9MHTjS2zt1qfr1NYHuzeLXfQM9H24wFSUt1Mp8 | F107: direct | G107: s | H107: -0.33444988 | I107: 0.23 | J107: 6.893e-07 | L107: 185115207.8 | M107: 127.75 | N107: 2.36484678e+10
A108: 7heu5KZ1PoXmxia5dD51hayBBCRFVEtknpPUbfoYseNP | B108: 2u1tJmVAGghF2zDUTe2PUy24aSbg2Qf8Ae9snArqDnX91TfHnS93zuHvpGcz2eihxR3TWCs4G8TEwT2bkb39r8fF | C108: 2024-10-18T11:08:00 | D108: 296302563 | E108: 675kPX9MHTjS2zt1qfr1NYHuzeLXfQM9H24wFSUt1Mp8 | F108: direct | G108: b | H108: 1.00673502 | I108: -0.7 | J108: 6.953e-07 | L108: 184108472.8 | M108: 128.45 | N108: 2.364873333e+10
A109: AtNWDhTmRYDs2drnMcz7rXEztRx9oFnv36RMzoHb1Y1c | B109: 5wsYVTGH46bADxJT1jPVHs8cAE4yBBZ1iArpWxudTcxDbxPwbwjuoVNvPH2XNYf9UCHMxmQnYuYVdU9jDzbBB7Bu | C109: 2024-10-18T11:08:00 | D109: 296302576 | E109: 675kPX9MHTjS2zt1qfr1NYHuzeLXfQM9H24wFSUt1Mp8 | F109: direct | G109: s | H109: -0.18231779 | I109: 0.13 | J109: 6.985e-07 | L109: 184290790.6 | M109: 128.32 | N109: 2.364819425e+10
A110: B9tNReDM9vP2WWrcmKFUKu9FW3kbjvFU8hC7woa1NGmA | B110: 4Kx6gK6AVANhJfpK6Ch5PfmCnizcJgu6EwGooNf13zooVwVKeya5QfP2v4QAWhXkpzv4stR65yUkTYhg3Kj45YTx | C110: 2024-10-18T11:08:00 | D110: 296302576 | E110: 675kPX9MHTjS2zt1qfr1NYHuzeLXfQM9H24wFSUt1Mp8 | F110: direct | G110: b | H110: 0.46894191 | I110: -0.33 | J110: 7.009e-07 | L110: 183821848.7 | M110: 128.65 | N110: 2.364868083e+10
A111: 7TwCAjeCkyrVmL9khDEj8oMnJpqxgNzZxgXitojufEXK | B111: 21fmVc4h2u3yeEGhjgVS5wu42rbkZq8k67JMLUbfJWekVVyLtx8G4VH6SXVBTZxNU2ukKxCEvK7wtWLrabiNi9xX | C111: 2024-10-18T11:08:00 | D111: 296302603 | E111: 675kPX9MHTjS2zt1qfr1NYHuzeLXfQM9H24wFSUt1Mp8 | F111: OKX_v2 | G111: b | H111: 2.18387098 | I111: -1.55 | J111: 7.097e-07 | L111: 181637977.7 | M111: 130.2 | N111: =L111*M111 -> 2.36492647e+10
A112: 9kTx1no1d1C81N8zFT6ck4S5zvKsgpbbLEUf5KZJeC32 | B112: 4ZGaXFZAgqLcX9Sz39KQtekVNXzcCNCqbKWFSzbDE4smZ4Fw51ydZN6Ku9AEaK797cEv2gbdEy6DfpdZ72RoWobr | C112: 2024-10-18T11:08:00 | D112: 296302655 | E112: 675kPX9MHTjS2zt1qfr1NYHuzeLXfQM9H24wFSUt1Mp8 | F112: OKX_v2 | G112: b | H112: 1.12941413 | I112: -0.82 | J112: 7.228e-07 | L112: 180508563.6 | M112: 131.02 | N112: 2.3650232e+10
A113: 8qnqtn2VXdtqtvL33eVZ1WWdpMUCsPJAs2ZppEpN1xEm | B113: 67Dbfc449VFqog8Wf7C35J6XKrRjA2hjN8sDAHmrfkt4bnviG41bmvZuWa6hdLGyy7D16reNXUTMdDqY1Q4GhvyS | C113: 2024-10-18T11:09:00 | D113: 296302743 | E113: 675kPX9MHTjS2zt1qfr1NYHuzeLXfQM9H24wFSUt1Mp8 | F113: direct | G113: s | H113: -0.5847907 | I113: 0.42 | J113: 7.214e-07 | L113: 181093354.3 | M113: 130.6 | N113: 2.365079207e+10
A114: 6nei5odjriLZv7gebQDM59o1Rp9PhxP2cfSxmpv7KnHb | B114: 7UsBxULTT8U1xQV9m99jnkvbiDcTKJadqbFa5hJmzYK21SSf9YGeMBBF2pa9MH1aHhzMFqmbBbyj7ZxkUz7nySu | C114: 2024-10-18T11:09:00 | D114: 296302793 | E114: 675kPX9MHTjS2zt1qfr1NYHuzeLXfQM9H24wFSUt1Mp8 | F114: direct | G114: s | H114: -0.1413979 | I114: 0.1 | J114: 7.185e-07 | L114: 181234752.2 | M114: 130.5 | N114: 2.365113516e+10
A115: BodPAcQsBE55C5jYn2UwpKK232YdLnhDaWYamshzvX5t | B115: 37mfFSvAY1kHLCwu3ti2vJWQY3hq2EobnKTkJdXk4wbdQaqdS6dbWf7H6ercQgywUy467LnGE7ACQzKXn8Cc1RiC | C115: 2024-10-18T11:11:00 | D115: 296303079 | E115: 675kPX9MHTjS2zt1qfr1NYHuzeLXfQM9H24wFSUt1Mp8 | F115: direct | G115: s | H115: -0.47602936 | I115: 0.34 | J115: 7.16e-07 | L115: 181710781.5 | M115: 130.16 | N115: 2.365147533e+10
A116: 9g83FvMBUEnrkmLiR5cynTE31qnp7RVR5vc7pUb9kvsk | B116: 53vWJ5D2WcjuvJEfmyGUytvxZxyZ45YHYhXMAsQihYzyzmShXhjXyR6UddhrxA5uYEtjfTfYgA2nLWnme6xmUNTJ | C116: 2024-10-18T11:12:00 | D116: 296303105 | E116: 675kPX9MHTjS2zt1qfr1NYHuzeLXfQM9H24wFSUt1Mp8 | F116: direct | G116: b | H116: 0.27822139 | I116: -0.2 | J116: 7.189e-07 | L116: 181432560.2 | M116: 130.36 | N116: 2.365154854e+10
A117: BN1N6fmvPx79At26CMhuS9PPNKGnArQjShHQzyzvkaSh | B117: zTH3WBLnygeuVTbPHr6rav4MkQgU6tLYMXqvdjriUJFYKBVJAvbwjHGnmmXYxDY3A3g3kmDvnazAsnMGLuV296W | C117: 2024-10-18T11:16:00 | D117: 296303615 | E117: 675kPX9MHTjS2zt1qfr1NYHuzeLXfQM9H24wFSUt1Mp8 | F117: OKX_v2 | G117: s | H117: -1.77725749 | I117: 1.26 | J117: 7.094e-07 | L117: 183209817.6 | M117: 129.1 | N117: 2.365238746e+10
A118: 7heu5KZ1PoXmxia5dD51hayBBCRFVEtknpPUbfoYseNP | B118: 2ndFKWXJQwij3BSZ7iwhjmuNWBdXj6YbabpGSUd4acgbTaCL3RZx9J9RNNz642eQWn4sRNmYHEuhBZhBB9sjReYg | C118: 2024-10-18T11:16:00 | D118: 296303679 | E118: 675kPX9MHTjS2zt1qfr1NYHuzeLXfQM9H24wFSUt1Mp8 | F118: direct | G118: s | H118: -0.97639719 | I118: 0.68 | J118: 6.988e-07 | L118: 184186214.8 | M118: 128.42 | N118: 2.365319371e+10
A119: B9tNReDM9vP2WWrcmKFUKu9FW3kbjvFU8hC7woa1NGmA | B119: 3eaGE3qWVNAmGCxR44b1WueKb8fdBKLp2mq5dhvjDS9JPHyL9xeNQYEiMxFHP7YEa6QjtXsT4PNKnEFhD8Uat8e8 | C119: 2024-10-18T11:16:00 | D119: 296303690 | E119: 675kPX9MHTjS2zt1qfr1NYHuzeLXfQM9H24wFSUt1Mp8 | F119: direct | G119: s | H119: -0.41748575 | I119: 0.29 | J119: 6.936e-07 | L119: 184603700.6 | M119: 128.13 | N119: 2.365327216e+10
A120: AtNWDhTmRYDs2drnMcz7rXEztRx9oFnv36RMzoHb1Y1c | B120: 5EugKtMf4j7vJ6jDbpPN4Pr4vh6sXLeTKhsCuqRTX1QukjQxvKLMb2MgXcL8wdxi9T5PxfL4eiU9u4R59ptBXGTV | C120: 2024-10-18T11:16:00 | D120: 296303700 | E120: 675kPX9MHTjS2zt1qfr1NYHuzeLXfQM9H24wFSUt1Mp8 | F120: direct | G120: s | H120: -0.18231779 | I120: 0.13 | J120: 6.913e-07 | L120: 184786018.4 | M120: 128 | N120: 2.365261035e+10
A121: 6JJwJ15dtZs33AyAozaQcHnQBdy1vSqArNyWdoFwytkg | B121: HiN59NzeaDsfFQfLgmBMNadEtJU9cV9R8d9Uu981JLPQEfdoSKoGyj8v51ThHYzWFSLu8qLw9ZkMt5rePWcia8H | C121: 2024-10-18T11:16:00 | D121: 296303718 | E121: 675kPX9MHTjS2zt1qfr1NYHuzeLXfQM9H24wFSUt1Mp8 | F121: MaestroAAe9ge5HTc64VbBQZ6fP77pwvrhM8i1XWSAx | G121: b | H121: 0.43120913 | I121: -0.3 | J121: 6.957e-07 | L121: 184354809.2 | M121: 128.3 | N121: 2.365272203e+10
A122: 7heu5KZ1PoXmxia5dD51hayBBCRFVEtknpPUbfoYseNP | B122: 5aJzw3QNKvUgi4BJsXRaLH3DFikzBYfwyp5dzbeRKhGJrNFtH2V4d12sXPi2qaNp7eqK7UN84sBeWzZchiqB6u1F | C122: 2024-10-18T11:17:00 | D122: 296303783 | E122: 675kPX9MHTjS2zt1qfr1NYHuzeLXfQM9H24wFSUt1Mp8 | F122: direct | G122: s | H122: -0.4881986 | I122: 0.34 | J122: 6.92e-07 | L122: 184843007.8 | M122: 127.96 | N122: 2.365251128e+10
A123: HL5vuKpF1uUEbn4AqoAVmTieQxrhksk5nhZH12C8XSoe | B123: 3rtdiYFtQF1ZZq7gS5cw8ozPQReCvJS6v8DujaVNTNERMT9MCucFaaCf8UY7NGbCR6M5RV7odXFbQN29naX1fJdK | C123: 2024-10-18T11:17:00 | D123: 296303800 | E123: 675kPX9MHTjS2zt1qfr1NYHuzeLXfQM9H24wFSUt1Mp8 | F123: direct | G123: s | H123: -0.06444969 | I123: 0.04 | J123: 6.9e-07 | L123: 184907457.5 | M123: 127.92 | N123: 2.365336197e+10
A124: sS9d5ZvqrH9pgLZCe7XP7kD3aNXdgtD7KoCNMJpDSUf | B124: 4TZSfJebSXNng1PYYQ3DdAMDEx7PJzcEMAvrw1RASRVNsHz4sYjzQUuisU6xYCDoRXwdmvMX6t46forsyvcoYWAL | C124: 2024-10-18T11:18:00 | D124: 296303955 | E124: 675kPX9MHTjS2zt1qfr1NYHuzeLXfQM9H24wFSUt1Mp8 | F124: OKX_v2 | G124: s | H124: -2.53154944 | I124: 1.72 | J124: 6.804e-07 | L124: 187439007 | M124: 126.2 | N124: 2.365480268e+10
A125: ArSLk1CdfKj3NFYFespctPYwtyTTukuGEPRExEkUg5yh | B125: F2pzbn3xorNzrJJGM4B7Vq8Phkf77vmNk1TWL2eBQz5F5uXQYEy9FrNqYfrgbFXt8Nw4wBQUhfozaNqsyxjFW4S | C125: 2024-10-18T11:19:00 | D125: 296304001 | E125: 675kPX9MHTjS2zt1qfr1NYHuzeLXfQM9H24wFSUt1Mp8 | F125: direct | G125: s | H125: -0.50560467 | I125: 0.34 | J125: 6.694e-07 | L125: 187944611.6 | M125: 125.86 | N125: 2.365470882e+10
A126: B9tNReDM9vP2WWrcmKFUKu9FW3kbjvFU8hC7woa1NGmA | B126: 2u37HpSnREe6Y4RUgV9ec3rssBdVcoQSmbH9CqXiewiQFQrYiiyrFL8nci3AmriD9iN1e8DKttGRqKF5Wap23oqt | C126: 2024-10-18T11:20:00 | D126: 296304208 | E126: 675kPX9MHTjS2zt1qfr1NYHuzeLXfQM9H24wFSUt1Mp8 | F126: direct | G126: s | H126: -0.41748575 | I126: 0.28 | J126: 6.662e-07 | L126: 188362097.4 | M126: 125.58 | N126: 2.365451219e+10
A127: 9kTx1no1d1C81N8zFT6ck4S5zvKsgpbbLEUf5KZJeC32 | B127: 5YPbTSEeAhaqffLfDmAn46pyLLrdoXrtFXrtPstpzS8XjWS6wbZ7Nxz9mQcN2pKgjY6Z3R2vU5WS9bVdhajnh2i9 | C127: 2024-10-18T11:21:00 | D127: 296304332 | E127: 675kPX9MHTjS2zt1qfr1NYHuzeLXfQM9H24wFSUt1Mp8 | F127: OKX_v2 | G127: b | H127: 1.96861229 | I127: -1.33 | J127: 6.751e-07 | L127: 186393485.1 | M127: 126.91 | N127: 2.365519719e+10
A128: AtNWDhTmRYDs2drnMcz7rXEztRx9oFnv36RMzoHb1Y1c | B128: 3sBVdTri794Yx4zxmJNHKuPBJzqxsr2jij4y6EGgoRjTCjQ3cEGJEKxMMsaHmRm2meFnb9Wb4wvVBrnbxpao5gPu | C128: 2024-10-18T11:21:00 | D128: 296304347 | E128: 675kPX9MHTjS2zt1qfr1NYHuzeLXfQM9H24wFSUt1Mp8 | F128: direct | G128: b | H128: 0.3525725 | I128: -0.24 | J128: 6.835e-07 | L128: 186040912.6 | M128: 127.15 | N128: 2.365510204e+10
A129: 6JJwJ15dtZs33AyAozaQcHnQBdy1vSqArNyWdoFwytkg | B129: YCR5SbVKNXn9NkpbW46juNArDt6dHLTjJLErx1AR2H3m3Hz7vb3cWVKwdgNfcFMYVdKeod3z1eiDu6sjS82EboW | C129: 2024-10-18T11:23:00 | D129: 296304539 | E129: 675kPX9MHTjS2zt1qfr1NYHuzeLXfQM9H24wFSUt1Mp8 | F129: MaestroAAe9ge5HTc64VbBQZ6fP77pwvrhM8i1XWSAx | G129: s | H129: -0.43120913 | I129: 0.29 | J129: 6.798e-07 | L129: 186472121.7 | M129: 126.86 | N129: 2.365585336e+10
A130: ARSCioZQ9wr9gFczLPCQJB73QHCKMGuXfz2bY7K7wh78 | B130: 5J62BDMrZsZJfKfCm4keq7x2Rw6pA2arChPbQXXHw77F8NTc4J7kqQMRaQoHLaaC4FVBDMmoEHVY57fx2SkhRgp1 | C130: 2024-10-18T11:28:00 | D130: 296305219 | E130: 675kPX9MHTjS2zt1qfr1NYHuzeLXfQM9H24wFSUt1Mp8 | F130: 5YBiKeEKz9PrDcdLkdQL89gVW7re3S3KVpUcbEhHBigz | G130: b | H130: 0.4263126 | I130: -0.29 | J130: 6.721e-07 | L130: 186045809.1 | M130: 127.15 | N130: 2.365572463e+10
A131: AQaUXKHsEWisCC9JfcVZSLmCTSUWRit2P2PEqBNd29aX | B131: 3HXrz3TRBhvukh2mFymftueHfHyVHAbzagcanDyDj6CDFjNqB3Wm6BwDxx4jj9pXTgb9Uso8aJnSAe7tgpimfwNW | C131: 2024-10-18T11:28:00 | D131: 296305219 | E131: 675kPX9MHTjS2zt1qfr1NYHuzeLXfQM9H24wFSUt1Mp8 | F131: OKX_v2 | G131: s | H131: -1.11663734 | I131: 0.75 | J131: 6.712e-07 | L131: =L130-H131*1000000 -> 187162446.5 | M131: =M130-I131 -> 126.4 | N131: 2.365733323e+10
A132: ARSCioZQ9wr9gFczLPCQJB73QHCKMGuXfz2bY7K7wh78 | B132: 3KcUFD2ueJdDA8v5CZYSrBYKVWYM76qKBjL4WQeLyX81XUpToeSUc5FSciKwPvb5KnAe9WQZbFaE7RpEH51XPgYo | C132: 2024-10-18T11:28:00 | D132: 296305219 | E132: 675kPX9MHTjS2zt1qfr1NYHuzeLXfQM9H24wFSUt1Mp8 | F132: 5YBiKeEKz9PrDcdLkdQL89gVW7re3S3KVpUcbEhHBigz | G132: s | H132: -0.42629788 | I132: 0.29 | J132: 6.767e-07 | L132: 187588744.3 | M132: 126.11 | N132: 2.365681655e+10
A133: GRQV68VbgR33nFyodZzQwLAuAaq9XN1YmN36o6DBk4eJ | B133: 3fEXiyPv8DD1pjvu3L39hjSm4uzPM95f9xtgGS2se5eGNa8AXpDjNWjA2NXCEuizGWz2PmkLQyR2PULey1tjpGcc | C133: 2024-10-18T11:30:00 | D133: 296305545 | E133: 675kPX9MHTjS2zt1qfr1NYHuzeLXfQM9H24wFSUt1Mp8 | F133: direct | G133: s | H133: -3.78444251 | I133: 2.49 | J133: 6.57e-07 | L133: 191373186.9 | M133: 123.62 | N133: 2.365755336e+10
A134: AtNWDhTmRYDs2drnMcz7rXEztRx9oFnv36RMzoHb1Y1c | B134: 5AVRWw2wGfyKx9GZHLuNDFEnZBNZQ8KswwRaQvkwKpufwETYPM9xedYcTD5rpkYbytXQhVQLsTVHibWgHDcsEN1G | C134: 2024-10-18T11:30:00 | D134: 296305552 | E134: 675kPX9MHTjS2zt1qfr1NYHuzeLXfQM9H24wFSUt1Mp8 | F134: direct | G134: s | H134: -0.17628625 | I134: 0.11 | J134: 6.434e-07 | L134: 191549473.1 | M134: 123.51 | N134: =L134*M134 -> 2.365827542e+10
A135: 7heu5KZ1PoXmxia5dD51hayBBCRFVEtknpPUbfoYseNP | B135: 3rvXhXzbWe6hGnx4ukmZER3jK2kAdDfJRgrVNV1UzdM6aTv5Rz2i6wex7pDC935wKtVqyp95SR5Bd7EKpytGe47Z | C135: 2024-10-18T11:31:00 | D135: 296305620 | E135: 675kPX9MHTjS2zt1qfr1NYHuzeLXfQM9H24wFSUt1Mp8 | F135: direct | G135: b | H135: 1.53544461 | I135: -1 | J135: 6.513e-07 | L135: 190014028.5 | M135: 124.51 | N135: 2.365864669e+10
A136: 5E7G5aiJcsNa6euqxEXgZdwGM3fu9sAVpqY8S5Hz2ETY | B136: 2QWkhsicjFJSNhySfMyeynmx9igpB4ZPyQqHCvvkNGwQn4qXevvJYRXyvfXUDehnhcuFr3HACX4w4mQENuszZrX7 | C136: 2024-10-18T11:33:00 | D136: 296305873 | E136: 675kPX9MHTjS2zt1qfr1NYHuzeLXfQM9H24wFSUt1Mp8 | F136: OKX_v2 | G136: s | H136: -0.99197618 | I136: 0.64 | J136: 6.47e-07 | L136: 191006004.7 | M136: 123.87 | N136: 2.36599138e+10
A137: ARSCio5CJmQV1V7bxF3k12crr9HRKcoesSQX15EDtNv5 | B137: NU7rh1c6g3yv6wcXQj4iT6q2wA9p8eMWFi1eTRdakBH9ha12uRqV4DoFxMCKB8JEwwus4Bn4HVZghAXpbGsAsAE | C137: 2024-10-18T11:33:00 | D137: 296305873 | E137: 675kPX9MHTjS2zt1qfr1NYHuzeLXfQM9H24wFSUt1Mp8 | F137: 5YBiKeEKz9PrDcdLkdQL89gVW7re3S3KVpUcbEhHBigz | G137: b | H137: 0.42632193 | I137: -0.28 | J137: 6.483e-07 | L137: 190579682.8 | M137: 124.15 | N137: 2.366046761e+10
A138: ARSCio5CJmQV1V7bxF3k12crr9HRKcoesSQX15EDtNv5 | B138: 4WMe7tuwzL2fkYsxKAamfYXE8TKGsANxbeQHtoyxBGqB4z4WxgYBtbmYHKnYQbbrxjpfzmLGLDpFHYtRYtEadZc | C138: 2024-10-18T11:33:00 | D138: 296305873 | E138: 675kPX9MHTjS2zt1qfr1NYHuzeLXfQM9H24wFSUt1Mp8 | F138: 5YBiKeEKz9PrDcdLkdQL89gVW7re3S3KVpUcbEhHBigz | G138: s | H138: -0.42631046 | I138: 0.28 | J138: 6.518e-07 | L138: 191005993.2 | M138: 123.87 | N138: 2.365991238e+10
A139: AtNWDhTmRYDs2drnMcz7rXEztRx9oFnv36RMzoHb1Y1c | B139: 2qrduA53GxarQVvyXxgTw5vbTc8EDijSZ7PKzVde7pSwFjpJAfiwbG2wykGX38Lbnh9JkJ7SB1mCiKsW1Qa2C7gp | C139: 2024-10-18T11:33:00 | D139: 296305883 | E139: 675kPX9MHTjS2zt1qfr1NYHuzeLXfQM9H24wFSUt1Mp8 | F139: direct | G139: s | H139: -0.17628625 | I139: 0.11 | J139: 6.459e-07 | L139: 191182279.5 | M139: 123.76 | N139: 2.366071891e+10
A140: 5E7G5aiJcsNa6euqxEXgZdwGM3fu9sAVpqY8S5Hz2ETY | B140: 3AxeSEmApUm1geDisvUS9xpn2vFmkvVujvRgvLncMHZQ8sj84KTw7CsHXxKmT74GMCMoTcLYtmtJmoTf8GFb9Ccg | C140: 2024-10-18T11:33:00 | D140: 296305926 | E140: 675kPX9MHTjS2zt1qfr1NYHuzeLXfQM9H24wFSUt1Mp8 | F140: OKX_v2 | G140: s | H140: -0.99297104 | I140: 0.64 | J140: 6.42e-07 | L140: 192175250.5 | M140: 123.12 | N140: 2.366061684e+10
A141: ARSCio1mWfBruKb5Nx2gCHoXuy1buo4D9y61WNSyqMpd | B141: 2nFbfhfmEfWn21CaqLNkpq57NyENSkhgzJZF2uP4ihCccyaSTfcKZJtPMYTHcxpZvXXT42j86exeKm2MwFU8jPc | C141: 2024-10-18T11:34:00 | D141: 296305978 | E141: 675kPX9MHTjS2zt1qfr1NYHuzeLXfQM9H24wFSUt1Mp8 | F141: 5YBiKeEKz9PrDcdLkdQL89gVW7re3S3KVpUcbEhHBigz | G141: s | H141: -0.42632027 | I141: 0.27 | J141: 6.373e-07 | L141: 192601570.8 | M141: 122.85 | N141: 2.366110297e+10
A142: ARSCio1mWfBruKb5Nx2gCHoXuy1buo4D9y61WNSyqMpd | B142: 3BEJijYYSgpPA6svAorsUQzFqWMeS5D9kM9qw2dUNL7MQW7mRfvUgt62QRk46Hk4KAxZUHx8cHUWTg1RcxpS5zhk | C142: 2024-10-18T11:34:00 | D142: 296305978 | E142: 675kPX9MHTjS2zt1qfr1NYHuzeLXfQM9H24wFSUt1Mp8 | F142: 5YBiKeEKz9PrDcdLkdQL89gVW7re3S3KVpUcbEhHBigz | G142: b | H142: 0.42633175 | I142: -0.27 | J142: 6.339e-07 | L142: 192175239 | M142: 123.12 | N142: 2.366061543e+10
A143: 5E7G5aiJcsNa6euqxEXgZdwGM3fu9sAVpqY8S5Hz2ETY | B143: 3uvd1TU5xcDKbb6dFoPKAR6ng25ReC3Aqq7u4bZPBPwDtAT4nu5ZmzPGxFsurRop2rpYGtm6HDaSxGuYogMKbRzD | C143: 2024-10-18T11:34:00 | D143: 296305978 | E143: 675kPX9MHTjS2zt1qfr1NYHuzeLXfQM9H24wFSUt1Mp8 | F143: OKX_v2 | G143: s | H143: -1.00407056 | I143: 0.64 | J143: 6.326e-07 | L143: 193179309.6 | M143: 122.48 | N143: 2.366060184e+10
A144: ARSCioZQ9wr9gFczLPCQJB73QHCKMGuXfz2bY7K7wh78 | B144: 2kamrJskNs9kUDEDS67awqozXLWqY87whvjDvY7s3AMDNjgPbWtr5LP2FGKkYPKXY4TxAUf4prey5s2LJeXneAaz | C144: 2024-10-18T11:34:00 | D144: 296306075 | E144: 675kPX9MHTjS2zt1qfr1NYHuzeLXfQM9H24wFSUt1Mp8 | F144: 5YBiKeEKz9PrDcdLkdQL89gVW7re3S3KVpUcbEhHBigz | G144: b | H144: 0.42634193 | I144: -0.27 | J144: 6.272e-07 | L144: 192752967.7 | M144: 122.75 | N144: 2.366042678e+10
A145: 5E7G5aiJcsNa6euqxEXgZdwGM3fu9sAVpqY8S5Hz2ETY | B145: 2vKVJsgDXWR8Hft1r4Rxm4Zed14J6Q8JMs2aKymUBwj2SDC34qkxHKtaW3i1WMXJag1fichSDUZenaPJn5zw7u6h | C145: 2024-10-18T11:34:00 | D145: 296306075 | E145: 675kPX9MHTjS2zt1qfr1NYHuzeLXfQM9H24wFSUt1Mp8 | F145: OKX_v2 | G145: s | H145: -1.02619922 | I145: 0.64 | J145: 6.26e-07 | L145: 193779166.9 | M145: 122.11 | N145: 2.366237407e+10
A146: ARSCioZQ9wr9gFczLPCQJB73QHCKMGuXfz2bY7K7wh78 | B146: 4TD46tQokp3v1vRHrH5AmG9ygE2rkMU6bzik8QcWiFvkx2ZSbwwPEJz9Ce9HRwjsjSjLZtXS7VFegTgNwrPFfEBW | C146: 2024-10-18T11:34:00 | D146: 296306075 | E146: 675kPX9MHTjS2zt1qfr1NYHuzeLXfQM9H24wFSUt1Mp8 | F146: 5YBiKeEKz9PrDcdLkdQL89gVW7re3S3KVpUcbEhHBigz | G146: s | H146: -0.42633008 | I146: 0.27 | J146: 6.307e-07 | L146: 194205496.9 | M146: 121.84 | N146: 2.366199775e+10
A147: 7XegKTXQgeDKcNmtVYvvaRq91yAYwqLUdMa5kyfMopk7 | B147: 3PEAorDVTF5MdnndwsDedCHmzRnqD2ZaAZ93SpzBgatjBTawNBF5Wqj3emxGPjsBiNXhh9eVaUc7efiP5TxqzNrz | C147: 2024-10-18T11:35:00 | D147: 296306091 | E147: 675kPX9MHTjS2zt1qfr1NYHuzeLXfQM9H24wFSUt1Mp8 | F147: direct | G147: s | H147: -1.91455592 | I147: 1.19 | J147: 6.193e-07 | L147: 196120052.9 | M147: 120.65 | N147: 2.366188438e+10
A148: 5E7G5aiJcsNa6euqxEXgZdwGM3fu9sAVpqY8S5Hz2ETY | B148: 49mf3R1qMK1mKhQ4TWzPP8wdCz1Pt74MshR1YfPUnWrnE98pYD1wzbQubRyoJzKXniCdjfNQ4zzSYXC34Kj4KvFZ | C148: 2024-10-18T11:35:00 | D148: 296306146 | E148: 675kPX9MHTjS2zt1qfr1NYHuzeLXfQM9H24wFSUt1Mp8 | F148: OKX_v2 | G148: s | H148: -1.05786928 | I148: 0.65 | J148: 6.1e-07 | L148: 197177922.2 | M148: 120 | N148: 23661350658
A149: 5E7G5aiJcsNa6euqxEXgZdwGM3fu9sAVpqY8S5Hz2ETY | B149: 54hfnUp728Hj6EMhs4QrGqkQ1HVsbFVk3yVqFuuTsi14Q7ETyw7PJHnqR9jVVmFmpyhzeuXw8c41knwrN5fE2MP1 | C149: 2024-10-18T11:36:00 | D149: 296306203 | E149: 675kPX9MHTjS2zt1qfr1NYHuzeLXfQM9H24wFSUt1Mp8 | F149: OKX_v2 | G149: s | H149: -1.05786928 | I149: 0.64 | J149: 6.009e-07 | L149: 198235791.4 | M149: 119.36 | N149: 2.366142407e+10
A150: ARSCioN9K9nuwpnVZMqW4nopJFBPbcxByWAy24vvUW9o | B150: 21GENBPuNkj6nYAvtN2UGkzBrG39LfzdBQGZCQktgdFw1uKhfLNH43P3bzyzuPTi76UWovS1ZZWjTAWLvcoTEd2M | C150: 2024-10-18T11:36:00 | D150: 296306203 | E150: 675kPX9MHTjS2zt1qfr1NYHuzeLXfQM9H24wFSUt1Mp8 | F150: 5YBiKeEKz9PrDcdLkdQL89gVW7re3S3KVpUcbEhHBigz | G150: s | H150: -0.42634022 | I150: 0.26 | J150: 6.054e-07 | L150: 198662131.7 | M150: 119.1 | N150: 2.366065988e+10
A151: ARSCioN9K9nuwpnVZMqW4nopJFBPbcxByWAy24vvUW9o | B151: 2XjUCLigx4CYYZeQh3sc7tRWJ353tbaknTXxiLwAfuC1D6sgXEqygShAnaRjeuVURKUjfaM3XUGAt7xL4Sr6hD2q | C151: 2024-10-18T11:36:00 | D151: 296306203 | E151: 675kPX9MHTjS2zt1qfr1NYHuzeLXfQM9H24wFSUt1Mp8 | F151: 5YBiKeEKz9PrDcdLkdQL89gVW7re3S3KVpUcbEhHBigz | G151: b | H151: 0.42635229 | I151: -0.26 | J151: 6.02e-07 | L151: 198235779.4 | M151: 119.36 | N151: 2.366142262e+10
A152: 5E7G5aiJcsNa6euqxEXgZdwGM3fu9sAVpqY8S5Hz2ETY | B152: 3LqNMPLcHaoDhE6Fh2MhWUvg6huaY7wYxgFiAETHGnaBebfTxqmSzQCTuF85p9nvMzfzDSiLnoxGywJTjD77HZJA | C152: 2024-10-18T11:36:00 | D152: 296306242 | E152: 675kPX9MHTjS2zt1qfr1NYHuzeLXfQM9H24wFSUt1Mp8 | F152: Jupiter_v6 | G152: s | H152: -1.06919829 | I152: 0.64 | J152: 5.971e-07 | L152: 199304977.7 | M152: 118.72 | N152: 2.366148695e+10
A153: 5E7G5aiJcsNa6euqxEXgZdwGM3fu9sAVpqY8S5Hz2ETY | B153: 3twwnPEVc5P7pJ2pYazbCNr2ggu3LC7e8wKLL7gjave8j4V95k7xJ4q81RMtTPwXyVqzZF5qrmLRo5vVqEsjPZz7 | C153: 2024-10-18T11:36:00 | D153: 296306284 | E153: 675kPX9MHTjS2zt1qfr1NYHuzeLXfQM9H24wFSUt1Mp8 | F153: OKX_v2 | G153: s | H153: -3.27725405 | I153: 1.91 | J153: 5.843e-07 | L153: 202582231.7 | M153: 116.81 | N153: 2.366363048e+10
A154: 7xD6be2qJdrioDS7diixyYUkCdSpzbwfjSTc9w6NjZJg | B154: NFCTejmtdyWRBsDK7e6y8EVTzaLfWbnamw8SytKSTQ9AHCb8Q4E6dLdu5WQZY3HT7kLJzXV9adH49eYAfp1oBJt | C154: 2024-10-18T11:37:00 | D154: 296306436 | E154: 675kPX9MHTjS2zt1qfr1NYHuzeLXfQM9H24wFSUt1Mp8 | F154: Jupiter_v6 | G154: s | H154: -0.04749205 | I154: 0.03 | J154: 5.747e-07 | L154: 202629723.8 | M154: 116.78 | N154: 2.366309914e+10
A155: 6q2G9RiA3MQyvFetMvmFyQMEeBFY5U9aYf5i58zRocBJ | B155: NAYQQ4D8Gzg2W3MSnnNyg2WecXbYdBEH7XgdhZvG8KKR2M4VqdiLPaA8cMT87GqNFodKvEfPdVnYpcxcMcz2bAR | C155: 2024-10-18T11:38:00 | D155: 296306494 | E155: 675kPX9MHTjS2zt1qfr1NYHuzeLXfQM9H24wFSUt1Mp8 | F155: Jupiter_v6 | G155: s | H155: -0.86584624 | I155: 0.5 | J155: 5.721e-07 | L155: 203495570 | M155: 116.28 | N155: 2.366246488e+10
A156: AhhBaYPCeS2dt1nSEqMWRqpSxKyWoqiPX5VTM4WQgAfB | B156: 4MjeG17ewCAY8528eyjGU7GvTpUVhX5UKxVUWbidHwYEsh41cQ527uwGvMFbFjxajaXBhuqSyAMLRf9jRDBgFKCZ | C156: 2024-10-18T11:38:00 | D156: 296306536 | E156: 675kPX9MHTjS2zt1qfr1NYHuzeLXfQM9H24wFSUt1Mp8 | F156: Jupiter_v6 | G156: s | H156: -0.33459091 | I156: 0.19 | J156: 5.688e-07 | L156: 203830160.9 | M156: 116.09 | N156: 2.366264338e+10
A157: GECiHatSQ6ZVnXA4dRA2VU5F9sSx7o8VSySe6P253BHH | B157: 2Ne562fNCyxb3ExXiUBo5BRDzvoskqLXkpgGDaLoHG82jwPManJptkwyUgUQPePx8ZY8jke2rjdBKiZC7K9v7mmT | C157: 2024-10-18T11:40:00 | D157: 296306809 | E157: 675kPX9MHTjS2zt1qfr1NYHuzeLXfQM9H24wFSUt1Mp8 | F157: direct | G157: s | H157: -3.70130855 | I157: 2.06 | J157: 5.577e-07 | L157: 207531469.4 | M157: 114.03 | N157: 2.366481346e+10
A158: 5E7G5aiJcsNa6euqxEXgZdwGM3fu9sAVpqY8S5Hz2ETY | B158: 35kWjRmAaQm9LnTaCagLsk9PADwzvTFz42pVTF4AzMpwuVYHeRENoyLURj2xUxfTJXTxSd5U1JTH81t4v9zPqFTe | C158: 2024-10-18T11:41:00 | D158: 296306842 | E158: 675kPX9MHTjS2zt1qfr1NYHuzeLXfQM9H24wFSUt1Mp8 | F158: Jupiter_v6 | G158: b | H158: 2.32134483 | I158: -1.29 | J158: 5.568e-07 | L158: 205210124.6 | M158: 115.32 | N158: 2.366483157e+10
A159: 9kTx1no1d1C81N8zFT6ck4S5zvKsgpbbLEUf5KZJeC32 | B159: 5VJhj3odMUnfajoKrDZhzQnwoKwPApPb9Yg6oogj53nEYytw6wFVffyzUi4THNxXSDTjTjhm3m2ZtcpkgPE6PUBR | C159: 2024-10-18T11:41:00 | D159: 296306849 | E159: 675kPX9MHTjS2zt1qfr1NYHuzeLXfQM9H24wFSUt1Mp8 | F159: OKX_v2 | G159: s | H159: -3.333333 | I159: 1.84 | J159: 5.513e-07 | L159: 208543457.6 | M159: 113.48 | N159: 2.366551157e+10
A160: AiAc8DHYuoK1cbpxCXxu5E5n9zVcBiA6hvNLCQATCc7S | B160: 4ow9xdHgYwQhp1XGxk5mfjfkYDssjUpsDBoRbuUcjvTegQvN4XN3LreyN4jyUZETcX1PqN1En9t44bvKc8PC8krS | C160: 2024-10-18T11:41:00 | D160: 296306853 | E160: 675kPX9MHTjS2zt1qfr1NYHuzeLXfQM9H24wFSUt1Mp8 | F160: Jupiter_v6 | G160: b | H160: 0.9130038 | I160: -0.5 | J160: 5.476e-07 | L160: 207630453.8 | M160: 113.98 | N160: 2.366571913e+10
A161: CEQx31PZz7xtGdvgVhx2KtAnSCzBTGg7A9icgvYd7toJ | B161: 27ZroezHHbHwgKs8pUzoo8HoHi15whdVQ9sB44LKC98d5KkA62FEYDnECb7RWTz3GHiHn9PQyBzrsS6fH22NTMks | C161: 2024-10-18T11:41:00 | D161: 296306865 | E161: 675kPX9MHTjS2zt1qfr1NYHuzeLXfQM9H24wFSUt1Mp8 | F161: Jupiter_v6 | G161: b | H161: 0.90503449 | I161: -0.5 | J161: 5.525e-07 | L161: 206725419.3 | M161: 114.48 | N161: 2.3665926e+10
A162: EtQaZk79fRU5ftU9cXVYsqfsaWphTxk3LrsSyWNf4wv8 | B162: 3xbUz4SpfWFhN3zo3NXj262x3vrmaMvUGE8LEARBcpkSdeGMjAgRxTro2wVV1tieRn8D1b7aP1nxpWh1LE5dRPp4 | C162: 2024-10-18T11:41:00 | D162: 296306941 | E162: 675kPX9MHTjS2zt1qfr1NYHuzeLXfQM9H24wFSUt1Mp8 | F162: Jupiter_v6 | G162: b | H162: 8.63443724 | I162: -5 | J162: 5.791e-07 | L162: 198090982.1 | M162: 119.48 | N162: 2.366791054e+10
A163: 7ti77iFqKbFvEtmgzdobwYxSDNcfnkEwFtv5RUzpiKbc | B163: 2ydqgrf6YfhZk4niwWK2JrjZigwQi5TQLcw6xgjDaTbzPQ2AjKM5BGSqCr6DxYgs9CggAS4GtbDrXR6UEzuZ5bs8 | C163: 2024-10-18T11:41:00 | D163: 296306961 | E163: 675kPX9MHTjS2zt1qfr1NYHuzeLXfQM9H24wFSUt1Mp8 | F163: Jupiter_v6 | G163: b | H163: 0.13720217 | I163: -0.08 | J163: 6.048e-07 | L163: 197953779.9 | M163: 119.56 | N163: 2.366735393e+10
A164: L8mi4TWi2ZT6CoxtLLptw9w3A7h7qkcH6YMbsrN2ABP | B164: iX5TMBcB2B5pfnH4YNZWBi9iDPsGopoWYH3TABuxmRTVVyiCkcamBS6cKPZPEgDfkchGucAABpqX5pdE94SBtQe | C164: 2024-10-18T11:42:00 | D164: 296306979 | E164: 675kPX9MHTjS2zt1qfr1NYHuzeLXfQM9H24wFSUt1Mp8 | F164: OKX_v2 | G164: s | H164: -1.42791045 | I164: 0.85 | J164: 5.979e-07 | L164: 199381690.4 | M164: 118.71 | N164: 2.366860046e+10
A165: CLmjrZMkqHqJCdTcG6apgvyhaod5EUJQC13YPvH7TJdk | B165: Be7A13rWcVApvZpkCAgZnku21Ypovo7hC9oLCiyDeMCNoFz2GxyrYEXDcxhLUMuffuBwSKitZhBUingmMzXwWm7 | C165: 2024-10-18T11:42:00 | D165: 296307080 | E165: 675kPX9MHTjS2zt1qfr1NYHuzeLXfQM9H24wFSUt1Mp8 | F165: direct | G165: b | H165: 0.08377405 | I165: -0.05 | J165: 5.968e-07 | L165: 199297916.3 | M165: 118.76 | N165: 2.366862054e+10
A166: BJmzvYR3N1TtJPmuGMA9Hc1JCcEXBiGbVVRZJKPjT8WK | B166: gQxfJP7yYYdwtApH2AKZS8Ne6xmeeujQwXUUvAwhVkBzMijBGJuVKRZRfE5wTL2PQzbUcii7S7kQJynGTj9c28G | C166: 2024-10-18T11:42:00 | D166: 296307083 | E166: 675kPX9MHTjS2zt1qfr1NYHuzeLXfQM9H24wFSUt1Mp8 | F166: direct | G166: s | H166: -5.18461227 | I166: 3 | J166: 5.791e-07 | L166: 204482528.6 | M166: 115.76 | N166: 2.367089751e+10
A167: B9tNReDM9vP2WWrcmKFUKu9FW3kbjvFU8hC7woa1NGmA | B167: 4QPyLczwEzjLZnTmGaAqBiavyaHTck6L9SPbFYuk8pjDWR7XqGasEWS9hZiHA7GnmuQdwZc7TNhAXSwn1UpnsFdo | C167: 2024-10-18T11:42:00 | D167: 296307084 | E167: 675kPX9MHTjS2zt1qfr1NYHuzeLXfQM9H24wFSUt1Mp8 | F167: direct | G167: b | H167: 0.53409215 | I167: -0.3 | J167: 5.687e-07 | L167: 203948436.4 | M167: 116.06 | N167: 2.367025553e+10
A168: AtNWDhTmRYDs2drnMcz7rXEztRx9oFnv36RMzoHb1Y1c | B168: 2ijPeK4EX7Sk64uyeZezsostvmNYHrdznNMkzSaSvdP8fSvME9xPzLMZx7njmY7A74UQ5xGapPQK7dcrUH8i2YTk | C168: 2024-10-18T11:42:00 | D168: 296307088 | E168: 675kPX9MHTjS2zt1qfr1NYHuzeLXfQM9H24wFSUt1Mp8 | F168: direct | G168: b | H168: 0.53130594 | I168: -0.3 | J168: 5.717e-07 | L168: 203417130.5 | M168: 116.36 | N168: 2.36696173e+10
A169: 86ddJhVfunNDyyzBm8XTrsLHoy6kfVp2ceYkzT5qXHFE | B169: 4FSBFVjdZBEGy8NHPYXNW3mkatGFx8bA5SMXBoHBK3FtPcVkipYPXnCrh8WUAZZAVAc6yKsrpF1kfATaTGqfBboh | C169: 2024-10-18T11:43:00 | D169: 296307123 | E169: 675kPX9MHTjS2zt1qfr1NYHuzeLXfQM9H24wFSUt1Mp8 | F169: Jupiter_v6 | G169: s | H169: -0.01805429 | I169: 0.01 | J169: 5.703e-07 | L169: 203435184.8 | M169: 116.35 | N169: 2.366968375e+10
A170: 7ti77iFqKbFvEtmgzdobwYxSDNcfnkEwFtv5RUzpiKbc | B170: 39fSVro45PrvBXtdpNhdKQxVUJRYpP2BqxozLPKv26En688ZtkfVbSYSmvPjjY2Hj3cV8tGPpby6gtjXosjNoorq | C170: 2024-10-18T11:45:00 | D170: 296307360 | E170: 675kPX9MHTjS2zt1qfr1NYHuzeLXfQM9H24wFSUt1Mp8 | F170: Jupiter_v6 | G170: s | H170: -0.13720217 | I170: 0.08 | J170: 5.699e-07 | L170: 203572387 | M170: 116.27 | N170: 2.366936143e+10
A171: ZG98FUCjb8mJ824Gbs6RsgVmr1FhXb2oNiJHa2dwmPd | B171: 54AUWDwxdv45YivZG39Nd3eNgL35jGjoZSoYUjqvVySCdZavpzXS9zHtFpyx6KqwdzugVTa8hajhE4CT9tgCyyos | C171: 2024-10-18T11:48:00 | D171: 296307833 | E171: 675kPX9MHTjS2zt1qfr1NYHuzeLXfQM9H24wFSUt1Mp8 | F171: Jupiter_v6 | G171: s | H171: -0.01847858 | I171: 0.01 | J171: 5.694e-07 | L171: 203590865.5 | M171: 116.26 | N171: 2.366947403e+10
A172: 5E7G5aiJcsNa6euqxEXgZdwGM3fu9sAVpqY8S5Hz2ETY | B172: nQXFqfu56jmw8X6qMgwve3gHeGGUGxExwBXg7dv6RVPvJfxjrsbHwL18osZNYNYwk1VrdMkiuDvc551bcrrdZVg | C172: 2024-10-18T11:49:00 | D172: 296307986 | E172: 675kPX9MHTjS2zt1qfr1NYHuzeLXfQM9H24wFSUt1Mp8 | F172: OKX_v2 | G172: s | H172: -2.60106851 | I172: 1.46 | J172: 5.622e-07 | L172: 206191934.1 | M172: 114.8 | N172: 2.367083403e+10
A173: FRP9Q5LamSb5w96yE1o6oT6TK3wu2GSi3w3URriLgFc5 | B173: 33YQRusAvjX8tX8PKAug6Qw2V6zjsYHGHLNeryAFFEYQasjwyFKwx4vvLUCCi75DB7htvEPBsewUR3tV32fgxr5m | C173: 2024-10-18T11:50:00 | D173: 296308012 | E173: 675kPX9MHTjS2zt1qfr1NYHuzeLXfQM9H24wFSUt1Mp8 | F173: direct | G173: b | H173: 1.77700014 | I173: -1 | J173: 5.627e-07 | L173: 204414933.9 | M173: 115.8 | N173: 2.367124935e+10
A174: 2qRvQR5kQepYCkzj3BRokFskM8nRuTUsXLKokaxkxbRd | B174: H5rsuWSN5Ztco5PEukFxZj9QNQvwYXcMa8GdwQ5VejoJ8KA5XnV8kziXeECZyVn8XSspXhfQy42ZABJg41RQL5R | C174: 2024-10-18T11:50:00 | D174: 296308014 | E174: 675kPX9MHTjS2zt1qfr1NYHuzeLXfQM9H24wFSUt1Mp8 | F174: direct | G174: b | H174: 1.74659541 | I174: -1 | J174: 5.725e-07 | L174: 202668338.5 | M174: 116.8 | N174: 2.367166194e+10
A175: DPM88u5nzCC532cCDsQPfkXYcdCNEauVFj9TEdaHvTSu | B175: 3csJVqUUvoWaX6nwxYuBRTU21a7PE9Kzsw1tCjYijtPUD62PXqrnErn2KHNjsDkp9BsZBfhTEF4ivsuGQKBc3Su3 | C175: 2024-10-18T11:50:00 | D175: 296308056 | E175: 675kPX9MHTjS2zt1qfr1NYHuzeLXfQM9H24wFSUt1Mp8 | F175: direct | G175: b | H175: 4.05957573 | I175: -3 | J175: 7.39e-07 | L175: 198608762.8 | M175: 119.8 | N175: 2.379332978e+10
A176: FtnFweTgBRZB8BEq5Eo6SnAiSWwftNXD8ZY154VcDQgW | B176: 5boZjTp1AXMqUvWNfKEC8waPAuL53m1Yqgvgdr5uE4B793YkCgQyCYWhe9ip2RPveoLxQBkDsBewYzh3MGd6VVrK | C176: 2024-10-18T11:50:00 | D176: 296308056 | E176: 675kPX9MHTjS2zt1qfr1NYHuzeLXfQM9H24wFSUt1Mp8 | F176: sra4HHgwsn5Ts6V1TUdLykK1gRJwDQhgscuvXDHxSCx | G176: s | H176: -21.44478559 | I176: 14.39 | J176: 6.712e-07 | L176: 220053548.4 | M176: 105.41 | N176: 2.319584453e+10
A177: FtnFweTgBRZB8BEq5Eo6SnAiSWwftNXD8ZY154VcDQgW | B177: 2NQB2u7giQGeGFWeoKHEbDeNHhruRpwZwKZhQ2iVrJYuqU5eRhHSadphhpnABRdDefGoaerhVgHvvCAysPDsNuna | C177: 2024-10-18T11:50:00 | D177: 296308056 | E177: 675kPX9MHTjS2zt1qfr1NYHuzeLXfQM9H24wFSUt1Mp8 | F177: sra4HHgwsn5Ts6V1TUdLykK1gRJwDQhgscuvXDHxSCx | G177: b | H177: 21.44478559 | I177: -13.85 | J177: 6.458e-07 | L177: 198608762.8 | M177: 119.26 | N177: 2.368608105e+10
A178: CEQx31PZz7xtGdvgVhx2KtAnSCzBTGg7A9icgvYd7toJ | B178: 2pNwUSegQ3qGYQExfVGV2ugGvQSb2mpevS75DAatyCJPXxjtaGJR9s7k6kfesLa1vA7tag4S3ZAajKhEVKhWYv2v | C178: 2024-10-18T11:52:00 | D178: 296308340 | E178: 675kPX9MHTjS2zt1qfr1NYHuzeLXfQM9H24wFSUt1Mp8 | F178: Jupiter_v6 | G178: s | H178: -0.90503449 | I178: 0.54 | J178: 5.96e-07 | L178: 199513797.3 | M178: 118.72 | N178: 2.368627801e+10
A179: FRP9Q5LamSb5w96yE1o6oT6TK3wu2GSi3w3URriLgFc5 | B179: 4XJ4fbT5wTqntWB695EiRype3FXAkNDVts6EPX64Rx7Nbz7b4p3NHuwm5iEDPkVUCNRUWrUvXW9iWRbzaYPR6Vg1 | C179: 2024-10-18T11:54:00 | D179: 296308545 | E179: 675kPX9MHTjS2zt1qfr1NYHuzeLXfQM9H24wFSUt1Mp8 | F179: direct | G179: s | H179: -1.77700014 | I179: 1.04 | J179: 5.881e-07 | L179: 201290797.4 | M179: 117.68 | N179: 2.368790104e+10
A180: 4Q7KUg2mTacPrrPLXKz3PsQANQJc3bbPNMJRmcGKP7H7 | B180: 4MB3j93g5JxQ68Vof3EnFsvLXkN6xPTGdaaLNFn2hRYnLiCzfguc4qihgNGkNV8Bji1ZRByLanmBnZRG9DMY2zo5 | C180: 2024-10-18T11:54:00 | D180: 296308560 | E180: 675kPX9MHTjS2zt1qfr1NYHuzeLXfQM9H24wFSUt1Mp8 | F180: MaestroAAe9ge5HTc64VbBQZ6fP77pwvrhM8i1XWSAx | G180: b | H180: 3.35727153 | I180: -2 | J180: 5.957e-07 | L180: 197933525.9 | M180: 119.68 | N180: 2.368868438e+10
A181: 2QPophMG9bRHf58JtUHgJWnVtVv2aWSrSDDFX7QrWX97 | B181: FBAW5U8XA1Ut7YyysA8mTjfQf9vUnoVwGYfXmJ9UUrDt19ZtxLaCJSJ37jbKKAViRg1ywq4nwNuVnCsMAmwS1PC | C181: 2024-10-18T11:54:00 | D181: 296308574 | E181: 675kPX9MHTjS2zt1qfr1NYHuzeLXfQM9H24wFSUt1Mp8 | F181: Jupiter_v6 | G181: b | H181: 1.636919 | I181: -1 | J181: 6.109e-07 | L181: 196296606.9 | M181: 120.68 | N181: 2.368907452e+10
A182: 7ti77iFqKbFvEtmgzdobwYxSDNcfnkEwFtv5RUzpiKbc | B182: 59VmJRg78ucHUR6UD1wSw29zjYZztZbHuKbnHBjdEnTDkRGdGUPGRKWtxieMUqqeCeJcKHPzEFWoPWgd4nAyrJmc | C182: 2024-10-18T11:54:00 | D182: 296308588 | E182: 675kPX9MHTjS2zt1qfr1NYHuzeLXfQM9H24wFSUt1Mp8 | F182: Jupiter_v6 | G182: b | H182: 0.47851419 | I182: -0.3 | J182: 6.175e-07 | L182: 195818092.7 | M182: 120.98 | N182: 2.369007285e+10
A183: DKGcVGWRgfMHWvLYA6RmpmqCLcyxnBCMcsswatEvYAYP | B183: 4NhD1922bJu2xhmR8Cmojvyke5ARfmzewgUYRvjHU9VE9c3GJSv6Rxu5fr3s6Jfma87HS366iKRh81Dtsbb8sEhj | C183: 2024-10-18T11:55:00 | D183: 296308640 | E183: 675kPX9MHTjS2zt1qfr1NYHuzeLXfQM9H24wFSUt1Mp8 | F183: OKX_v2 | G183: s | H183: -0.01244563 | I183: 0.01 | J183: 6.159e-07 | L183: 195830538.3 | M183: 120.97 | N183: 2.368962022e+10
A184: FRP9Q5LamSb5w96yE1o6oT6TK3wu2GSi3w3URriLgFc5 | B184: 33nGTF6jhqGCDG8bk7VePufo1rjQnyAv3khux7ZkoFTXGjMf2TMN9DkXNmQ87ANTr7WxrYD3seaNe3g6uQRqE4J2 | C184: 2024-10-18T11:55:00 | D184: 296308656 | E184: 675kPX9MHTjS2zt1qfr1NYHuzeLXfQM9H24wFSUt1Mp8 | F184: direct | G184: b | H184: 0.80450053 | I184: -0.5 | J184: 6.215e-07 | L184: 195026037.8 | M184: 121.47 | N184: 2.368981281e+10
A185: B9tNReDM9vP2WWrcmKFUKu9FW3kbjvFU8hC7woa1NGmA | B185: 3FaTirKnAveeEk3UBSS7FgF92RTb2bm5Xo8wVw6kD6LQhXQCuYWbZcKM3B6VcCoypWXdeCyhRbWnPQxgWnKsN9Vb | C185: 2024-10-18T11:55:00 | D185: 296308671 | E185: 675kPX9MHTjS2zt1qfr1NYHuzeLXfQM9H24wFSUt1Mp8 | F185: direct | G185: b | H185: 0.2476688 | I185: -0.15 | J185: 6.249e-07 | L185: 194778369 | M185: 121.62 | N185: 2.368894524e+10
A186: AQaUXKHsEWisCC9JfcVZSLmCTSUWRit2P2PEqBNd29aX | B186: xt2oDQYhCzZmwCJJTiCT23Qc78bFLEAMoq1ydRm6wVvqBjBq9kMUk2fq4LLsUsYhbx4XFNCNZoNrxFeS7SVB5oP | C186: 2024-10-18T11:55:00 | D186: 296308720 | E186: 675kPX9MHTjS2zt1qfr1NYHuzeLXfQM9H24wFSUt1Mp8 | F186: OKX_v2 | G186: b | H186: 0.94621098 | I186: -0.59 | J186: 6.287e-07 | L186: 193832158 | M186: 122.21 | N186: 2.368822803e+10
A187: ARSCiocqpiT1QH9TEH2wHHpM5Nf9977hokipkYHGKRk4 | B187: 4neTX1Cm5QQakDMxr3nF1o3vRGTQNcYTtqW7GjzsSChFhTmXvkLnYpYPGZjC8DuoeHSsP4HFnPM5CWWw8D2KRujv | C187: 2024-10-18T11:55:00 | D187: 296308746 | E187: 675kPX9MHTjS2zt1qfr1NYHuzeLXfQM9H24wFSUt1Mp8 | F187: 5YBiKeEKz9PrDcdLkdQL89gVW7re3S3KVpUcbEhHBigz | G187: s | H187: -1.00465778 | I187: 0.64 | J187: 6.38e-07 | L187: 194836815.8 | M187: 121.57 | N187: 2.368631169e+10
A188: ARSCiocqpiT1QH9TEH2wHHpM5Nf9977hokipkYHGKRk4 | B188: 5QJ8SqyAE4M6aqM14oct7CYbgmNYTLF9Z4EGfWYZJSVAsRetE5gSmX5FqwpAzR64ymhBZduYz72hGEGNjpESKmW2 | C188: 2024-10-18T11:55:00 | D188: 296308746 | E188: 675kPX9MHTjS2zt1qfr1NYHuzeLXfQM9H24wFSUt1Mp8 | F188: 5YBiKeEKz9PrDcdLkdQL89gVW7re3S3KVpUcbEhHBigz | G188: b | H188: 1.00489085 | I188: -0.64 | J188: 6.351e-07 | L188: 193831924.9 | M188: 122.21 | N188: 2.368819955e+10
A189: AQaUXKHsEWisCC9JfcVZSLmCTSUWRit2P2PEqBNd29aX | B189: 4SuZ3XpTytaCegSNf6jehZES8VDNyMCrVZvDZBVCPky7stA6ZnitJR4AEiYcoLg5nUTjUWkuT6T7k17bECt5XY3h | C189: 2024-10-18T11:55:00 | D189: 296308746 | E189: 675kPX9MHTjS2zt1qfr1NYHuzeLXfQM9H24wFSUt1Mp8 | F189: Jupiter_v6 | G189: b | H189: 0.92737137 | I189: -0.59 | J189: 6.415e-07 | L189: 192904553.6 | M189: 122.8 | N189: 2.368867918e+10
A190: 2QPophMG9bRHf58JtUHgJWnVtVv2aWSrSDDFX7QrWX97 | B190: 4nSV8qJLxkZNM1t7fgnM8PSgipCB7yEaKSoyNY8XGDQ7H1LXVDCtD8U6aLHptDBwcu6i7uQkouX86CksHA9Tqp5k | C190: 2024-10-18T11:55:00 | D190: 296308748 | E190: 675kPX9MHTjS2zt1qfr1NYHuzeLXfQM9H24wFSUt1Mp8 | F190: MaestroAAe9ge5HTc64VbBQZ6fP77pwvrhM8i1XWSAx | G190: s | H190: -1.636919 | I190: 1.03 | J190: 6.294e-07 | L190: 194541472.6 | M190: 121.77 | N190: 2.368931511e+10
A191: Hg8cQChQzy6VmnyNwLB5KstFx39TNfvRYL4RYfyjVcba | B191: 5xw7rWEHoxaR5HHU7tuadhG1U9Uan1kXkknp3HB8rVSe2yDbsjT15Av227DNLnuokWFgBXKhmKUY8BpDgNSJLc42 | C191: 2024-10-18T11:56:00 | D191: 296308765 | E191: 675kPX9MHTjS2zt1qfr1NYHuzeLXfQM9H24wFSUt1Mp8 | F191: direct | G191: b | H191: 1.56565757 | I191: -0.99 | J191: 6.323e-07 | L191: 192975815 | M191: 122.76 | N191: 2.368971105e+10
A192: 7ti77iFqKbFvEtmgzdobwYxSDNcfnkEwFtv5RUzpiKbc | B192: 2TLHbVra1MNUehg1oURSHJdfaP8RQPUqp91Zt8jWxjvcTYuK8rZsB7oMtRXNs5MnHAGhsjdkrnV25JCb7QeAZa5D | C192: 2024-10-18T11:57:00 | D192: 296308996 | E192: 675kPX9MHTjS2zt1qfr1NYHuzeLXfQM9H24wFSUt1Mp8 | F192: Jupiter_v6 | G192: s | H192: -0.47851419 | I192: 0.3 | J192: 6.327e-07 | L192: 193454329.2 | M192: 122.46 | N192: 2.369041715e+10
A193: A3QqMrnvFvDeiscbUa8C6gmh67wCbCfjZpSS3e1ZNq2y | B193: 2qV1ALxeDuACbqbDEzJDbya9kRdrFPgxGWGN8CC98Ae6N33DHvuhTGbt1422Aq2YhvEuPHrXYipn43jLj4A5njo9 | C193: 2024-10-18T11:57:00 | D193: 296309017 | E193: 675kPX9MHTjS2zt1qfr1NYHuzeLXfQM9H24wFSUt1Mp8 | F193: Jupiter_v6 | G193: b | H193: 0.42111628 | I193: -0.27 | J193: 6.357e-07 | L193: 193033212.9 | M193: 122.73 | N193: 2.369096622e+10
A194: 9kTx1no1d1C81N8zFT6ck4S5zvKsgpbbLEUf5KZJeC32 | B194: 5Fd212gDBehEm6aEBcFcmd7zkkYp4uFFTVoiVZyYJ2zqEVEFNXGwo5NmyZJzxriS9UR1GNnysc8aPwDoTSsAA3FV | C194: 2024-10-18T11:59:00 | D194: 296309229 | E194: 675kPX9MHTjS2zt1qfr1NYHuzeLXfQM9H24wFSUt1Mp8 | F194: OKX_v2 | G194: b | H194: 2.48597756 | I194: -1.6 | J194: 6.454e-07 | L194: 190547235.3 | M194: 124.33 | N194: 2.369073777e+10
A195: 5ci8DDNfyBhcrV7aqbNRRwQRNSGeZMrtt5xvj79TQMqw | B195: 2xCGNPFe3qFrUzpp2MSQLsm5wGqhC8Q1ihH1Pyiw9LovQwp3jwvQazCr1TzAgMzENk3xLxZbgrfRLbd8gN27oaib | C195: 2024-10-18T12:00:00 | D195: 296309289 | E195: 675kPX9MHTjS2zt1qfr1NYHuzeLXfQM9H24wFSUt1Mp8 | F195: direct | G195: b | H195: 7.35200006 | I195: -5 | J195: 6.801e-07 | L195: =L194-H195*1000000 -> 183195235.3 | M195: =M194-I195 -> 129.33 | N195: 2.369263978e+10
A196: AtNWDhTmRYDs2drnMcz7rXEztRx9oFnv36RMzoHb1Y1c | B196: P253pUzAxfc3fC6CeYPweNT9ZnGpQkZtu9j8XhZJVAcd6MNRZ48t4mhwTVTuw2pQ2Bxyx3Bt6K1KvbLzDkTdz7A | C196: 2024-10-18T12:01:00 | D196: 296309494 | E196: 675kPX9MHTjS2zt1qfr1NYHuzeLXfQM9H24wFSUt1Mp8 | F196: direct | G196: s | H196: -0.53130594 | I196: 0.37 | J196: 7.019e-07 | L196: =L195-H196*1000000 -> 183726541.2 | M196: =M195-I196 -> 128.96 | N196: 2.369337476e+10
A197: B9tNReDM9vP2WWrcmKFUKu9FW3kbjvFU8hC7woa1NGmA | B197: 4ywRupEjD8ztW482i8EhmgeXxQhGKsVquAU15VDAX5R5U7aGVP1pJBxQytUY2WcGSEUUABEkcHZfEozCYHgBTFBz | C197: 2024-10-18T12:01:00 | D197: 296309500 | E197: 675kPX9MHTjS2zt1qfr1NYHuzeLXfQM9H24wFSUt1Mp8 | F197: direct | G197: s | H197: -0.78176095 | I197: 0.54 | J197: 6.969e-07 | L197: =L196-H197*1000000 -> 184508302.2 | M197: =M196-I197 -> 128.42 | N197: 2.369455616e+10
A198: 9kTx1no1d1C81N8zFT6ck4S5zvKsgpbbLEUf5KZJeC32 | B198: 3eTakzqLYdH475BPsBPTiNW3LeeYUgKo2aoCGJvo9zKBzYDbSrndZthMfY6oeAWwzPqUQ7JuicARsm3AzJQPRVNV | C198: 2024-10-18T12:01:00 | D198: 296309524 | E198: 675kPX9MHTjS2zt1qfr1NYHuzeLXfQM9H24wFSUt1Mp8 | F198: OKX_v2 | G198: b | H198: 2.24335064 | I198: -1.58 | J198: 7.06e-07 | L198: =L197-H198*1000000 -> 182264951.5 | M198: =M197-I198 -> 130 | N198: =L198*M198 -> 2.36944437e+10
A199: 9Yjr9BhdFthLzQMW4kY7j6rcDKXC3Wvj74p7bCsFVyyJ | B199: 3P8VoRVx1T4vWqPHGeNh3gL6yGhs7Mh63RJtTCvr7HkM9PSj3a6BhkwdL7L81b2UgCEpN5J2cRQQzT5N2fqWGHfC | C199: 2024-10-18T12:02:00 | D199: 296309537 | E199: 675kPX9MHTjS2zt1qfr1NYHuzeLXfQM9H24wFSUt1Mp8 | F199: direct | G199: b | H199: 6.67222361 | I199: -4.95 | J199: 7.419e-07 | L199: =L198-H199*1000000 -> 175592727.9 | M199: =M198-I199 -> 134.95 | N199: =L199*M199 -> 2.369623863e+10
A200: AtNWDhTmRYDs2drnMcz7rXEztRx9oFnv36RMzoHb1Y1c | B200: 5xJayH8gjrvJXyUqfQLAnaCHskPohh7wAo8g3DoPaRVZDWPjP6pE9PKQ5XGaMAn6X5esANDXNuqBXzfAMto2aTT | C200: 2024-10-18T12:02:00 | D200: 296309550 | E200: 675kPX9MHTjS2zt1qfr1NYHuzeLXfQM9H24wFSUt1Mp8 | F200: direct | G200: b | H200: 0.32335805 | I200: -0.25 | J200: 7.716e-07 | L200: =L199-H200*1000000 -> 175269369.9 | M200: =M199-I200 -> 135.2 | N200: =L200*M200 -> 2.369641881e+10
... 977 more rows

Sheet total_row
A1: trader_id | B1: tx_id | C1: block_time | D1: action_type | E1: token_swap_M | F1: eth_swap_amount | G1: pri
A2: 14DmCqR8bVtmaGAMcCYx48CvRaTzTUFK3pxcCZLcEmJT | B2: 5Ruz1bPCWw4tGxMhs8VBKgfpGhQmWXCkunvmEqdywttNFr2Agq31ShVGhg765eKw9pCc9aiVPf4EujPkbEZjjxgD | C2: 2024-10-18T13:57:00 | D2: b | E2: 3.84188344 | F2: -9.9 | G2: 2.5769e-06
A3: 14DmCqR8bVtmaGAMcCYx48CvRaTzTUFK3pxcCZLcEmJT | B3: 3JuwSu4ykcMYqDbvez6sRTAYPJH1eGCYWTeGKP1yLvFvmyQYVWY8DHNjAnoSNqWSykskmQh4MWuUX4pZBGQeHing | C3: 2024-10-18T15:00:00 | D3: s | E3: -3.84188344 | F3: 5.49 | G3: 1.4296e-06
A4: 296oAuc3HpnWgTTnt5U1Z5Tj2H4UVmiaN8XLmMENVrFX | B4: 2pE1QGo19XYt1AzrnN8PA8ZxdAgbJHeb8q94CxTLD4xGSn3A5aAUbww8u42f5c5kUAZVAaecpoaFx1BezAzEPRA1 | C4: 2024-10-18T12:52:00 | D4: b | E4: 1.03330728 | F4: -1.98 | G4: 1.9191e-06
A5: 296oAuc3HpnWgTTnt5U1Z5Tj2H4UVmiaN8XLmMENVrFX | B5: 3VeX3BM5D7ekTRgUSJd5pFpMLcBWPwRXh1NJnn6MRyoNcgGEdjKPgCGR3EQJiVGipascHytFNpCKofXE7HM2ZGs3 | C5: 2024-10-18T13:00:00 | D5: b | E5: 2.15713084 | F5: -3.97 | G5: 1.8386e-06
A6: 296oAuc3HpnWgTTnt5U1Z5Tj2H4UVmiaN8XLmMENVrFX | B6: 5SLBXE315D7LHunXvnoY4CUqEAmxDnK1CoYSkZtGMguavdR9m7YHcDdAhcSLVE7BhPivWqoMys78HLWMFz7U8kn1 | C6: 2024-10-18T13:02:00 | D6: s | E6: -3.19043813 | F6: 5.75 | G6: 1.8021e-06
A7: 296oAuc3HpnWgTTnt5U1Z5Tj2H4UVmiaN8XLmMENVrFX | B7: 4Lu2CB9n9DnsQTdfnGQ7winLGCMxye4ttBnuBJTQCS8ptrLAufjfdAZURrbmgarK2ji2ujYqtu4oztroo1DbaBDa | C7: 2024-10-18T13:04:00 | D7: b | E7: 5.22464613 | F7: -9.91 | G7: 1.8977e-06
A8: 296oAuc3HpnWgTTnt5U1Z5Tj2H4UVmiaN8XLmMENVrFX | B8: 5XDcH61fZ6GAZw5wXfg9j5mP6LuFYCzppW31o1VRWYz6XnqpLXeCTsyDqZWMDYczSBq62yMdVPvmi4DGs6XB19hs | C8: 2024-10-18T13:20:00 | D8: s | E8: -3 | F8: 7.94 | G8: 2.6472e-06
A9: 296oAuc3HpnWgTTnt5U1Z5Tj2H4UVmiaN8XLmMENVrFX | B9: 3PHUxf6JdTVmSpG3ysRJbcW5288BLT3LNtTnQrpAPULmnK1qkwWUyycSroXhNTkHurNGVNyZqkarFCwEtDLTDhVi | C9: 2024-10-18T14:29:00 | D9: s | E9: -2.22464613 | F9: 3.69 | G9: 1.6602e-06
A10: 2D8XFdGwLcL5VEapayjdEa7VQAfvvWbYbJwqxmKJM36U | B10: 2zBuL3Ltd1cdkKjWVdgUvK2gZuoknV9yGhYtQ8e9LdN95QgPFgYGpW9NNaCeQMwfUUkND3SZaiKviaiZScFNEjyK | C10: 2024-10-18T12:49:00 | D10: b | E10: 0.25785076 | F10: -0.45 | G10: 1.7641e-06
A11: 2D8XFdGwLcL5VEapayjdEa7VQAfvvWbYbJwqxmKJM36U | B11: 3xY5QNWTmKcJmxmxSU4v33CeTpC2R2tZFs6Q9WzfpiXLyDHwufTyD5kvTeCReM1DhDNYDFZbax6t2ZKTA9xTc8qu | C11: 2024-10-18T12:50:00 | D11: s | E11: -0.25785076 | F11: 0.52 | G11: 2.0289e-06
A12: 2D8XFdGwLcL5VEapayjdEa7VQAfvvWbYbJwqxmKJM36U | B12: 4NSkJ3668jgmbEhiGwip8oHfxCQnEJafdsRWKMPjKDQqoTWSayrT3QyB2CNXzHuxWaHqQ4nbMbfAh7bU624Zi6nT | C12: 2024-10-18T12:53:00 | D12: b | E12: 0.29901194 | F12: -0.52 | G12: 1.7414e-06
A13: 2D8XFdGwLcL5VEapayjdEa7VQAfvvWbYbJwqxmKJM36U | B13: 5Ja7ZHt6Js571nKZxf4wbD6M95LsEZLKtTfmPe6Mjk7d5ThmUmqzy24VFodcGRMT6EBG3KG4T9NfrQsBwbfh6Kun | C13: 2024-10-18T12:53:00 | D13: s | E13: -0.29901194 | F13: 0.51 | G13: 1.694e-06
A14: 2D8XFdGwLcL5VEapayjdEa7VQAfvvWbYbJwqxmKJM36U | B14: 441c24UtQiVtBX8p2eidVeVt6t5S2GEMQoGNhC9ZasJYrv2Usw2FtGN2VvGA7E3emnGscHuigbWewpgWzRxPdAXX | C14: 2024-10-18T12:54:00 | D14: b | E14: 0.25843786 | F14: -0.51 | G14: 1.9583e-06
A15: 2D8XFdGwLcL5VEapayjdEa7VQAfvvWbYbJwqxmKJM36U | B15: 2QkDHyqPqBfvU7jSJkmiLxLWMQdCKGVhqB5WN3H7rbFaMWMkPUHPwDmzDT9B48XN9jwk7n9cuaPzj4X7VSXdjKfN | C15: 2024-10-18T12:55:00 | D15: s | E15: -0.25843786 | F15: 0.52 | G15: 2.0002e-06
A16: 2D8XFdGwLcL5VEapayjdEa7VQAfvvWbYbJwqxmKJM36U | B16: 3CYKmEGMJPLb9mQkxKEGDBrMjziCAEVNqbgwpDrkCPkuASKFTJHhVJ3iNujDoxtpW12wY6WgLRSsoo4wE7pqRT6Y | C16: 2024-10-18T12:56:00 | D16: b | E16: 0.26130363 | F16: -0.52 | G16: 1.9767e-06
A17: 2D8XFdGwLcL5VEapayjdEa7VQAfvvWbYbJwqxmKJM36U | B17: 3PZmpfUrvZuY1pNiyLARQxeRVyL2hsKurw457YTWgMoVAtLNZakq5TP24CjbKzFdchRh45sgEEgwcQKbhkHHhqQB | C17: 2024-10-18T12:56:00 | D17: s | E17: -0.26130363 | F17: 0.51 | G17: 1.9464e-06
A18: 2D8XFdGwLcL5VEapayjdEa7VQAfvvWbYbJwqxmKJM36U | B18: 3ytkJCayvNuSSpTxHxb39Q6VbciuhHJy9DrfUVJNTZgfKzroUMpCLZQ9njxf6vBhqtagHCw8D65mijzVmjQLnrPD | C18: 2024-10-18T13:00:00 | D18: b | E18: 0.31043637 | F18: -0.56 | G18: 1.7993e-06
A19: 2D8XFdGwLcL5VEapayjdEa7VQAfvvWbYbJwqxmKJM36U | B19: 28hPquA2vBcTYAB4ULzGtwYBdGgV1oGXaXDgQGwVPSq1E2YCEtojf4TXDWgNsjQtuWyeCyPGdbsTVUgbjLVC6eK5 | C19: 2024-10-18T13:01:00 | D19: s | E19: -0.31043637 | F19: 0.58 | G19: 1.8598e-06
A20: 2D8XFdGwLcL5VEapayjdEa7VQAfvvWbYbJwqxmKJM36U | B20: 2KdvsAjnrYnLR7oyiyqUsV9oYo7RBfB8ALW2ZHYRFTY5TC2HodyhXoib2it21gsaGnRUqbJdABfhdWiSaXQmcjGT | C20: 2024-10-18T13:02:00 | D20: b | E20: 0.3235076 | F20: -0.61 | G20: 1.8906e-06
A21: 2D8XFdGwLcL5VEapayjdEa7VQAfvvWbYbJwqxmKJM36U | B21: 48oApc3Ay6JUUeTKiCutJCYsG49yynWw181zVg5mgggmB8KPfdR4ydaSwVy6ViK8qy6vyTBcA9iXGJCuatLmrKE9 | C21: 2024-10-18T13:03:00 | D21: s | E21: -0.3235076 | F21: 0.59 | G21: 1.8307e-06
A22: 2D8XFdGwLcL5VEapayjdEa7VQAfvvWbYbJwqxmKJM36U | B22: 4ftLNa6C2xkS9fde8b99B7k7gTXvTUrHdquRrqWa7b8gabg7shR4bERx6AWC2MKCgrzbGyv82MaktQqLzBrTCCj1 | C22: 2024-10-18T13:08:00 | D22: b | E22: 0.34253305 | F22: -0.66 | G22: 1.9215e-06
A23: 2D8XFdGwLcL5VEapayjdEa7VQAfvvWbYbJwqxmKJM36U | B23: 3Aj7bfdCE5PyjeHgp5U6J4JwMtKhi6RVLVYEYEVWvauGRup2XuYTr1U3gLic3iiLxmbwpxFm8oj4Mwuez1Kmukdt | C23: 2024-10-18T13:08:00 | D23: s | E23: -0.34253305 | F23: 0.67 | G23: 1.9622e-06
A24: 2D8XFdGwLcL5VEapayjdEa7VQAfvvWbYbJwqxmKJM36U | B24: 3ifeVbdn4BxFXb4Z3NB3zkK9LFuQdPYXfLpMNxjuSoo9zzYjgMEa2iDgnSuN4qcAyFCiDfTS3nvdsT6FZWjEcx7e | C24: 2024-10-18T13:22:00 | D24: b | E24: 0.21907239 | F24: -0.58 | G24: 2.6688e-06
A25: 2D8XFdGwLcL5VEapayjdEa7VQAfvvWbYbJwqxmKJM36U | B25: 32eAHxNac6x5KGVE4FA6sNb3zbepaA2iCikmkCe56fpfXwioADFNnPWCc61pVEvMjhnWnYhXyvRonTW6UfaziM3i | C25: 2024-10-18T13:23:00 | D25: s | E25: -0.21907239 | F25: 0.6 | G25: 2.7372e-06
A26: 2D8XFdGwLcL5VEapayjdEa7VQAfvvWbYbJwqxmKJM36U | B26: 5PrbZfW442PCfG43snGcqoaAgh9aKojzYP4fVmFdfvWB6LTLgRA2Q5GRQxacmXEvc9n1uznCdiqqFacHEJ7kkH4y | C26: 2024-10-18T14:20:00 | D26: b | E26: 0.33832026 | F26: -0.71 | G26: 2.113e-06
A27: 2D8XFdGwLcL5VEapayjdEa7VQAfvvWbYbJwqxmKJM36U | B27: 2sxv1T7jQY6Q9ZFhCB3cYLb3kVwL8kLuzP6zacacxWrxTMpCeXM8VEKAJWPzWHxJeE4NcufosxpAwjsPoRnkBqyy | C27: 2024-10-18T14:21:00 | D27: s | E27: -0.33832026 | F27: 0.72 | G27: 2.1184e-06
A28: 2D8XFdGwLcL5VEapayjdEa7VQAfvvWbYbJwqxmKJM36U | B28: vyRiu6rqXX9gEmFHsa28HGXuezAHmmmNnAjDiwYLcm4XUAdyLBUZHU8SBpYFtDJz661ucEJiVwMZf5w4UqpzJW1 | C28: 2024-10-18T14:36:00 | D28: b | E28: 0.49308926 | F28: -0.7 | G28: 1.4148e-06
A29: 2D8XFdGwLcL5VEapayjdEa7VQAfvvWbYbJwqxmKJM36U | B29: 53ksdzg2o3TCX5CzFJjMWhDqFsm6udYqNA2CAEP8c1JmJgQDYKL5xDBDMdfEpSFKLWb6zQzkyyC88JiGraH3ruYh | C29: 2024-10-18T14:36:00 | D29: s | E29: -0.49308926 | F29: 0.75 | G29: 1.5168e-06
A30: 2D8XFdGwLcL5VEapayjdEa7VQAfvvWbYbJwqxmKJM36U | B30: dfLxSxfhN4kpuPWCBcroxn9q4n2NEFvBmCnnP4Aj2XFzMiByzwZXmGsYab9e1tiH8E6fsRKQHgvwgk35WxS5jZK | C30: 2024-10-18T14:44:00 | D30: b | E30: 0.44520149 | F30: -0.74 | G30: 1.6641e-06
A31: 2D8XFdGwLcL5VEapayjdEa7VQAfvvWbYbJwqxmKJM36U | B31: 4j9yGbg4fSnkcywtDoJXgTfkm4tcHXV1HnDBF15cxqWWNERrumjfr7CfFxMHtgdfLvtRvhpzEpK7hqtcNBCc5wyE | C31: 2024-10-18T14:44:00 | D31: s | E31: -0.44520149 | F31: 0.74 | G31: 1.6676e-06
A32: 2D8XFdGwLcL5VEapayjdEa7VQAfvvWbYbJwqxmKJM36U | B32: 49p2yc9tPkSn77Lp5bzai1a8wX2nfsWVNjYbcxPgU8VH3oXBAaXPcoqBASq9jHfLYRYK6oFrUGPkBJnATS8Gr6AM | C32: 2024-10-18T15:02:00 | D32: b | E32: 0.66274284 | F32: -0.84 | G32: 1.2651e-06
A33: 2D8XFdGwLcL5VEapayjdEa7VQAfvvWbYbJwqxmKJM36U | B33: 5Wn54ZA5MUuMXTKEBo4Vy7KB3Sv8YDA71G62agXdjiDSR35ChFSSZTrHaciUMvSjtsV4PnQyNkfLMwgmhrKCZckg | C33: 2024-10-18T15:03:00 | D33: s | E33: -0.66274284 | F33: 0.86 | G33: 1.2996e-06
A34: 2F8bc1YcoAdaBLLVa626kzjqwqAaoE6KBh9TaB1xbWxQ | B34: 5R4HB7tfS8K7UVxH8KiqCZ52C5upRtrS5wsoMYQ2RDKbehH5mqj95MErC62UTVeMThyzb69AnX2YGrmyrVzqxXce | C34: 2024-10-18T12:44:00 | D34: b | E34: 2.38741232 | F34: -4 | G34: 1.6755e-06
A35: 2F8bc1YcoAdaBLLVa626kzjqwqAaoE6KBh9TaB1xbWxQ | B35: 4rMWmBGW5jXJWxZtunB8mrGXV5ZWzVvF7pWjLCwBctkn5pofZWnXKAB6cUvKrqwKnuW54vTjtEjpQKwBgHTQiCkZ | C35: 2024-10-18T13:07:00 | D35: s | E35: -2.38741232 | F35: 4.61 | G35: 1.9309e-06
A36: 2RqRJqh8F3dAa4U81WPQDWAHhWv1j2RpwE5rtJKMG6At | B36: 2yHgzZ1dnrrgKPC5eTbf4GyGXFnVDsjUiv7WAvY8EmjonNVaL4MCRLHeem5v5EH9kV3fnafrLbeVDPhGUTdwHdab | C36: 2024-10-18T12:46:00 | D36: b | E36: 0.45376639 | F36: -1 | G36: 2.2038e-06
A37: 2RqRJqh8F3dAa4U81WPQDWAHhWv1j2RpwE5rtJKMG6At | B37: 3RxJPVN5QUgaMTvoeMQotjNcgPGpQXHXosQ2TxBsjBtNZiJgRuYtL7UE9LjBHkzBf36kSUfZoSQrZ444MN7Y6YTP | C37: 2024-10-18T12:47:00 | D37: b | E37: 0.50329517 | F37: -1.03 | G37: 2.0471e-06
A38: 2RqRJqh8F3dAa4U81WPQDWAHhWv1j2RpwE5rtJKMG6At | B38: 4CUwsL2bwohoc9oCYPF2BiVQnMHrabVQYCVgkVfiTkD6BMwtPVHEiHNaSUxyB96SnosqzdZyLqqHDNvmjHNbGsVJ | C38: 2024-10-18T14:27:00 | D38: s | E38: -0.95278355 | F38: 1.59 | G38: 1.6665e-06
A39: 3KA2ejsbrbhVuYpL4Xtf2BBgyd7yxm2FfSGaFYVemEBq | B39: 2h4YNDivng1wWPP72sgoqkJqmNHBqZq36UuPwEJq3uatdqXrxFTUm7yWFxZDjK88UgXYpkLHdZiU4BQr5ynTmkdt | C39: 2024-10-18T13:16:00 | D39: b | E39: 3.75656604 | F39: -10 | G39: 2.662e-06
A40: 3KA2ejsbrbhVuYpL4Xtf2BBgyd7yxm2FfSGaFYVemEBq | B40: 2aMsM7GATPTuUiVbvEHibpVsZdz8nwabhHjzKZ992n7MduG6jHrH1Kk929me95JCyu8dsznKMeeQBcG6sy5biZ7V | C40: 2024-10-18T13:21:00 | D40: b | E40: 0.38940848 | F40: -1 | G40: 2.568e-06
A41: 3KA2ejsbrbhVuYpL4Xtf2BBgyd7yxm2FfSGaFYVemEBq | B41: 2qHT9AeRGpDeehKVCVPHNGQfgEr7BBcRWZhcQgyLcGfxuGsJDtvx9d6sNnY5bGuv95BBcffiBCMcQxAqVVqNqATN | C41: 2024-10-18T13:23:00 | D41: b | E41: 0.42540719 | F41: -1 | G41: 2.3507e-06
A42: 3KA2ejsbrbhVuYpL4Xtf2BBgyd7yxm2FfSGaFYVemEBq | B42: 2SW6cXu73NqgAoPUVk4wvHAGM4t2mLLSVQMRhYv8xYNGBmfcRJ35G2bJUKGKTpc6PNfyV92irJZSGJ6U1TcCLkDz | C42: 2024-10-18T14:46:00 | D42: b | E42: 2.34600097 | F42: -4 | G42: 1.705e-06
A43: 3KA2ejsbrbhVuYpL4Xtf2BBgyd7yxm2FfSGaFYVemEBq | B43: ZLJNL2mG7UGXzrZatLNp1uwV9d1gJ1NtWsJDL9KW8GLnwA6jvAB3Dtmw3hkd2sJ2FZ2T6XmviAzdFybwD1jxnoQ | C43: 2024-10-20T17:24:00 | D43: s | E43: -6.91738268 | F43: 14.69 | G43: 2.1239e-06
A44: 3PBiA4dXqLW6eG1H5U6LMBDEq5aFBt3FtMBCPE8end99 | B44: qT7GiXTAHJrLm6JRErtsTDBhQRYXoEFDcWn8tfNmLaXx1rACdfPcVoqBA6aDvXnV1uE1Rc1c31PakKUqyfPmjYR | C44: 2024-10-18T12:51:00 | D44: b | E44: 1.79100299 | F44: -3.5 | G44: 1.9542e-06
A45: 3PBiA4dXqLW6eG1H5U6LMBDEq5aFBt3FtMBCPE8end99 | B45: 5WcmEMqS9tJq7B8qR8LMgygW3CWJ8i188zSsXiwurMeqgEniGBGp19APSJoNeaVT4yfcrYcbhZza5CYc8vrfYg58 | C45: 2024-10-18T13:51:00 | D45: s | E45: -1.79100299 | F45: 4.88 | G45: 2.7254e-06
A46: 3QbJp2NG3qbqqbQksv5aMG3JnWhNjqXpWoBsJdbSTTKD | B46: 5tNkANfaPMWxyG4nRwsc19tuDUtAR574UqANzoNfToaGeAfGngyE6dgiZbvvnrHb29kpczKHmowgaB7b9Fa5yQtW | C46: 2024-10-18T13:17:00 | D46: b | E46: 5.81508198 | F46: -17 | G46: 2.9234e-06
A47: 3QbJp2NG3qbqqbQksv5aMG3JnWhNjqXpWoBsJdbSTTKD | B47: 4FUsuZDsLqJiMqLNFGwtp5QFkB5U3HC7pi4uEXLXpyyjbLuWfayuUduGLMvTEhKwzAr668M7GtHgUdfwspZwMT7 | C47: 2024-10-18T13:36:00 | D47: b | E47: 1.21929192 | F47: -3 | G47: 2.4604e-06
A48: 3QbJp2NG3qbqqbQksv5aMG3JnWhNjqXpWoBsJdbSTTKD | B48: 5fKAtJp442MEte7k33gAPcpPj9BxYp2QM656VLj9R8XFieUJMnMhRAQPPCtY5gvoUDyL1ERk6HcL2NRhJfvs7Wk5 | C48: 2024-10-18T13:45:00 | D48: b | E48: 1.71218973 | F48: -5 | G48: 2.9202e-06
A49: 3QbJp2NG3qbqqbQksv5aMG3JnWhNjqXpWoBsJdbSTTKD | B49: 4EafxpyPEJoHjdywBYHyAFxAm5UBEoXXx3JwbCEpanrA7TbStpRkzctGZ1SQQbcazkKQUc69zjtu1Z21TGVTRbai | C49: 2024-10-18T17:13:00 | D49: b | E49: 4.21804959 | F49: -5 | G49: 1.1854e-06
A50: 3QbJp2NG3qbqqbQksv5aMG3JnWhNjqXpWoBsJdbSTTKD | B50: 2LAuHTvKicQk8cNJNRpw3DyG5GursZX1sZqBoPNuXz9Z7dwiBjWEkNz9XcW4fnPTYr6wZBYpbsouxuHeB3VLSwQX | C50: 2024-10-20T17:02:00 | D50: s | E50: -6.48230661 | F50: 14.82 | G50: 2.2856e-06
A51: 3QbJp2NG3qbqqbQksv5aMG3JnWhNjqXpWoBsJdbSTTKD | B51: 2WYEqbGmVgCEULYVzZ4VYg1NfGRBdvKPRu5vHXDv5UWBzXorxZroJTN98As84q65wSFENT5gQpPLv43KgJE6CCML | C51: 2024-10-20T17:03:00 | D51: s | E51: -6.48230661 | F51: 13.26 | G51: 2.0462e-06
A52: 3dVXK572GvmzXD8rz6Xjfm7TRUQFDG69UNuqnoVootX4 | B52: 3DHLXCrZJoSZdNHJsj7zX1mp8rWcP9GtfTfFWSc2FwftiogZqKeFNfU3RPw5mqMwZJxxD84kYp68vEK3XGPiSSt5 | C52: 2024-10-15T23:10:00 | D52: b | E52: 1.87576807 | F52: -0.8 | G52: 4.265e-07
A53: 3dVXK572GvmzXD8rz6Xjfm7TRUQFDG69UNuqnoVootX4 | B53: 3VtTc4JoZssAfzyRFHSM5i6JR27G7x1sytkKGFb1eozSYA821NjD9MpA1gGKNKdHd2oVDkdJHXZ7W841mRG8DYv1 | C53: 2024-10-15T23:15:00 | D53: s | E53: -1.87576807 | F53: 0.75 | G53: 4.019e-07
A54: 3dVXK572GvmzXD8rz6Xjfm7TRUQFDG69UNuqnoVootX4 | B54: 5siGtb11oGMPSmnuTKUNFTdec8niv8s45cU4iEbSMM8MM9ETbrkAdVLtDiDtR1QxE2MVfwGhjfSHuXnwKozZTx1b | C54: 2024-10-18T13:24:00 | D54: b | E54: 1.17141873 | F54: -3 | G54: 2.561e-06
A55: 3dVXK572GvmzXD8rz6Xjfm7TRUQFDG69UNuqnoVootX4 | B55: pdgeQnpDBa8cR5c4paSWzwH9xFtgNWRgK54BnaEjb65ysUZizygCrT5NnCaPJhRTEQAvJD7Sg4WNp3V3xkH95xT | C55: 2024-10-18T13:28:00 | D55: s | E55: -1.17141873 | F55: 3.55 | G55: 3.0333e-06
A56: 3dVXK572GvmzXD8rz6Xjfm7TRUQFDG69UNuqnoVootX4 | B56: 57XLUh8bSCJLEC3DAizHEBdd57f6pDXsRPmUJT9aY9ZPYGJ3DxL5SGioD98qsxpmYc9Ci833qjqLgcEUeewzzNzp | C56: 2024-10-18T20:39:00 | D56: b | E56: 1.50958263 | F56: -4 | G56: 2.6497e-06
A57: 3dVXK572GvmzXD8rz6Xjfm7TRUQFDG69UNuqnoVootX4 | B57: ERTz3cFYecuvoh1isEE6aYgoZzDx3V6uHfJDLFBfnD8RtzuRphZJLHDh9CQUNYGuUfs6wadw83deEzwDaEYnABm | C57: 2024-10-18T20:46:00 | D57: s | E57: -1.50958263 | F57: 4.32 | G57: 2.8618e-06
A58: 3dVXK572GvmzXD8rz6Xjfm7TRUQFDG69UNuqnoVootX4 | B58: 47xhApkgz7DVR5gM3TeH1AGEF7kQjsfJY8G8ZK84k1myrFA3NLE9fwTrKenwVBC6cgnuQuRR7R1PJ3YjzQjtKuUK | C58: 2024-10-18T23:05:00 | D58: b | E58: 0.07908684 | F58: -0.15 | G58: 1.8966e-06
A59: 3dVXK572GvmzXD8rz6Xjfm7TRUQFDG69UNuqnoVootX4 | B59: 3z6LAxJnc3RycAHXbE8T5qfX3cUdJQNmCkP925TRUHz5Nrgf7RNeQ6KQVDQoL6zxN4wQGB7gq1CHC1nbfhjtdCic | C59: 2024-10-19T09:03:00 | D59: s | E59: -0.07908684 | F59: 0.14 | G59: 1.8025e-06
A60: 3dVXK572GvmzXD8rz6Xjfm7TRUQFDG69UNuqnoVootX4 | B60: xdGLs8WComHvMC9dhRHWfSq4vskX3TDcufWRaF1YumRGRSEh21ceNpWgTffAi3gviNs8o4t9WCjzUiw6FLyEXVN | C60: 2024-10-20T20:31:00 | D60: b | E60: 4.07701538 | F60: -6 | G60: 1.4717e-06
A61: 3dVXK572GvmzXD8rz6Xjfm7TRUQFDG69UNuqnoVootX4 | B61: 5iFTxgSySei5tTACdsBgsEcoW1uGpJMkuaFWzx2kri7iWQLGBovfKeaNro9dLJfPrh2waUYBMG1adv9xhd6u38Fo | C61: 2024-10-20T20:38:00 | D61: s | E61: -4.07701538 | F61: 6 | G61: 1.4706e-06
A62: 3eJkwFDZVB27emciij1oWUVodmFhFdnkpmzKHjDzH34o | B62: 2YooZriJyuikjxLVQ4NVJTVhB7zWhpgPEKXYpzJbBtWC3PjP1n7MaJEZKcGZ2ibaQswL9fVdpmUY1c1XAVseiKXu | C62: 2024-10-15T10:50:00 | D62: b | E62: 2.45655918 | F62: -1.82 | G62: 7.418e-07
A63: 3eJkwFDZVB27emciij1oWUVodmFhFdnkpmzKHjDzH34o | B63: 5CW2wZRGAdRGVhjzWQ5XPoYjok1ktoVUThhSXnAwQMaxcBNMEocDFkfby1yfKRuUZtAGEGhe5CCauRa1iCYrKQwQ | C63: 2024-10-15T11:03:00 | D63: s | E63: -2.45655918 | F63: 2.53 | G63: 1.0309e-06
A64: 3eJkwFDZVB27emciij1oWUVodmFhFdnkpmzKHjDzH34o | B64: 4qoP1pp9A56GTg6cpuKzCcFDw7x6jvFtYJ8WTxMTbABxuPxipdqzLGiPNxtWDdL1xAbzzrVad99WMsGd97LswzAF | C64: 2024-10-15T11:09:00 | D64: b | E64: 0.80201128 | F64: -2 | G64: 2.4937e-06
A65: 3eJkwFDZVB27emciij1oWUVodmFhFdnkpmzKHjDzH34o | B65: 5BwD6kds732TW3wpLLa71sepqgAFzb6uCVgZCAvFaaCPqBjfZkrqR5ZchChWibUWsQGi1pmHbUfw1PZgXprLW2DF | C65: 2024-10-15T11:09:00 | D65: s | E65: -0.80201128 | F65: 2.15 | G65: 2.6774e-06
A66: 3eJkwFDZVB27emciij1oWUVodmFhFdnkpmzKHjDzH34o | B66: 4uiDZPj3hVKqh5oHbht59iBgbsxitNqcVhj3yuFDXsVRqMLLQ2TYrCmqPEP6sYXJv1tEsEa5g8b4oz7aKMqSkXGb | C66: 2024-10-15T11:13:00 | D66: b | E66: 0.90585392 | F66: -2 | G66: 2.2079e-06
A67: 3eJkwFDZVB27emciij1oWUVodmFhFdnkpmzKHjDzH34o | B67: 5BBzhrr3xPxL2TPWxDbA3HBAYes3sv7PttqRB8bF1ghyPevSXap6fSUuG4cBR3sBvHqgDmj94KkdRLnip2SLRZAu | C67: 2024-10-15T11:14:00 | D67: s | E67: -0.90585392 | F67: 2.3 | G67: 2.5423e-06
A68: 3eJkwFDZVB27emciij1oWUVodmFhFdnkpmzKHjDzH34o | B68: 43Y7kbvqTwJhmtmUU2ZgMyvvT3usYNpaDy9Z7VFrdgog8kwtuezvBhiA8oGHFhKVeNM42GsKru7ASEjXyx8eVNdZ | C68: 2024-10-15T11:21:00 | D68: b | E68: 0.94138717 | F68: -2 | G68: 2.1245e-06
A69: 3eJkwFDZVB27emciij1oWUVodmFhFdnkpmzKHjDzH34o | B69: 2h4wi4XCtQPfUxNSpLFasrJFvBgW4uKEuufY6EZXE5MXHohsDAZYgQg1MKiX9xGLCFXE58orq9gifXsCGVzXkKbU | C69: 2024-10-15T11:22:00 | D69: s | E69: -0.94138717 | F69: 1.99 | G69: 2.1152e-06
A70: 3eJkwFDZVB27emciij1oWUVodmFhFdnkpmzKHjDzH34o | B70: nXvXmZCAPeHzRSxBeSts1MPBqjXaA2RNVhZeTnN9FRu2nzEmHednR12W6JDX4oKZRmmBS699dCo9Cs8kNXbgy7L | C70: 2024-10-15T11:24:00 | D70: b | E70: 1.06757058 | F70: -2 | G70: 1.8734e-06
A71: 3eJkwFDZVB27emciij1oWUVodmFhFdnkpmzKHjDzH34o | B71: 3g2TxCBD2inSWngai1bR8Dj4ERgXXBTUrdDordCd7MvgFp78pYeZq4UfFucg92ytqXs9dTLtS4MiS5wtX7EwaPk5 | C71: 2024-10-15T11:24:00 | D71: s | E71: -1.06757058 | F71: 1.85 | G71: 1.7329e-06
A72: 3eJkwFDZVB27emciij1oWUVodmFhFdnkpmzKHjDzH34o | B72: 4uCPLQDsky3de8WAsNxESixq3tsqVeZEq3fo74BLVxn1PeJHBLXbrJFHviD9i5imUM5uUsEJuckP7UPBtBnJ6Yb5 | C72: 2024-10-15T11:26:00 | D72: b | E72: 1.22536586 | F72: -2 | G72: 1.6322e-06
A73: 3eJkwFDZVB27emciij1oWUVodmFhFdnkpmzKHjDzH34o | B73: 42jwnyRxrNT1NBuMED1wjjnTu575MRpx6tuuCMwn58g1PNdbhaX1a3wTGbc3mf8KTL7A4b3WHUHxfnaMFi46NfE8 | C73: 2024-10-15T11:26:00 | D73: s | E73: -1.22536586 | F73: 1.89 | G73: 1.5413e-06
A74: 3eJkwFDZVB27emciij1oWUVodmFhFdnkpmzKHjDzH34o | B74: 66chiVdFgjdXYEdEfTDBHj396gEgoEkASoQtgUTjnBZYfKtWjHvC5ym55hGCP5xkprYqfZHXGsCMuyWbtW1WAfpS | C74: 2024-10-15T11:27:00 | D74: b | E74: 1.53457254 | F74: -2 | G74: 1.3033e-06
A75: 3eJkwFDZVB27emciij1oWUVodmFhFdnkpmzKHjDzH34o | B75: 2PqpSKpGbKY59XfMcd4jEDAYK3o19yFAhpsintBLQ1Uw6ohhUtBtt8v1n8vgJCbyQZLUok3Y8wBb1zCGrfJsnbBz | C75: 2024-10-15T11:27:00 | D75: s | E75: -1.53457254 | F75: 1.97 | G75: 1.2864e-06
A76: 3eJkwFDZVB27emciij1oWUVodmFhFdnkpmzKHjDzH34o | B76: 536L6rcojj4RaGu54rVq4JhsnzqhpYPNWDiGH5ZWVqCS1vBU63xYS6gaycL5NrBgPFDnB1SijdRqDKMmxMZyNpvT | C76: 2024-10-15T11:58:00 | D76: b | E76: 3.71505475 | F76: -1.8 | G76: 4.845e-07
A77: 3eJkwFDZVB27emciij1oWUVodmFhFdnkpmzKHjDzH34o | B77: 5gEEfZDbCwMNazVWuvbsUFUVqHTNVkvaPdcZ1EsMha9gQKTHTR6GYLXwLyBfHk9c6wFuhgYpgQPNA3VbCgGguwQG | C77: 2024-10-15T11:58:00 | D77: s | E77: -3.71505475 | F77: 1.79 | G77: 4.824e-07
A78: 3eJkwFDZVB27emciij1oWUVodmFhFdnkpmzKHjDzH34o | B78: 4VT7Q57EHaqhyWA8wQSyGsscN78wMChd3mP6xgPisQcFiAW8VYkNDRiAAHXuYNiVDWDfUeXqxkhk7eH7XV88BBdW | C78: 2024-10-15T14:22:00 | D78: b | E78: 0.84012488 | F78: -2 | G78: 2.3806e-06
A79: 3eJkwFDZVB27emciij1oWUVodmFhFdnkpmzKHjDzH34o | B79: 5dDHn6AvAmn9nribArukawztcrUuLmzzNTtL8rMGKDFGRWkNDtHiw64cFrTjpNGRGS6bxaQwbTVhG5uPwgckUW7N | C79: 2024-10-15T14:23:00 | D79: s | E79: -0.84012488 | F79: 2.05 | G79: 2.4381e-06
A80: 3eJkwFDZVB27emciij1oWUVodmFhFdnkpmzKHjDzH34o | B80: 3xivsBKi9gwPdYLj5Ttmoytzi8Pa6cdAmqVDEHjQVUwQrkeadXdHPZNdRu32P9ftzj8rDvvm16WCPnoik4xWTauT | C80: 2024-10-15T14:23:00 | D80: b | E80: 0.99502585 | F80: -2 | G80: 2.01e-06
A81: 3eJkwFDZVB27emciij1oWUVodmFhFdnkpmzKHjDzH34o | B81: 2jZaYDcAnZZWhDBU3LdJQovCNBhXSh1maaHbLLs8mnyHNwuM9Ds115te2HKNjhbyanZMaGi1Yzy6RhzvRUQpf1zU | C81: 2024-10-15T14:24:00 | D81: s | E81: -0.99502585 | F81: 2.15 | G81: 2.1642e-06
A82: 3eJkwFDZVB27emciij1oWUVodmFhFdnkpmzKHjDzH34o | B82: 3J4z5N4drQfMDxTYarVTEw3D2j7KVNL7Z7kgH8owaVsQuSb8DRNUsJ7nfvRoR4ZT8FQyo5nPEevRS8VXMyxKjFgm | C82: 2024-10-15T14:25:00 | D82: b | E82: 1.06956067 | F82: -2 | G82: 1.8699e-06
A83: 3eJkwFDZVB27emciij1oWUVodmFhFdnkpmzKHjDzH34o | B83: 3XJyZnzsftXwFFLJwm4WkTnChbifbwXpxVK5cpdg4ZwLShpQH38RUCszQUCKQHZcdzmcfB6M1SefAqQgGkMeTbma | C83: 2024-10-15T14:26:00 | D83: s | E83: -1.06956067 | F83: 2.08 | G83: 1.9474e-06
A84: 3eJkwFDZVB27emciij1oWUVodmFhFdnkpmzKHjDzH34o | B84: TrbmjdYrhtux1a6VWDxfSmXdKncYFb4oDV6iWdJ54wnqt79Q5DWnM9wMjftVXBxVZVGQBi7aL4qnvubyUHjPfXQ | C84: 2024-10-15T14:27:00 | D84: b | E84: 1.17672723 | F84: -2 | G84: 1.6996e-06
A85: 3eJkwFDZVB27emciij1oWUVodmFhFdnkpmzKHjDzH34o | B85: 4tD4CMCpt7r76eyZw884DiKXf7FcKRPqkxVZZczw8qG3mBmbYLc3kUp3v97f3ZmxrXt4Qj1ro1tXC1BJSpar9Xxq | C85: 2024-10-15T14:27:00 | D85: s | E85: -1.17672723 | F85: 1.97 | G85: 1.6773e-06
A86: 3eJkwFDZVB27emciij1oWUVodmFhFdnkpmzKHjDzH34o | B86: 5NTQub9g8hPoHWp3Zwd7oFRXkzVd6vVRR9RtbJ1UzB5ygSKry2vmRhzD9CXoEsXsKoY5aSCxJAapghZU35AaZ3Te | C86: 2024-10-15T14:28:00 | D86: b | E86: 1.39837898 | F86: -2 | G86: 1.4302e-06
A87: 3eJkwFDZVB27emciij1oWUVodmFhFdnkpmzKHjDzH34o | B87: 2nhAcY9cjvbpcfyDgzLc3XzS5hXz3W4UDPWo8WdqCkkcztHfFzq1cQNJSuFQH152kpsk5eDWcD9zgR6ChwPmE8Tf | C87: 2024-10-15T14:28:00 | D87: s | E87: -1.39837898 | F87: 2.12 | G87: 1.5148e-06
A88: 3eJkwFDZVB27emciij1oWUVodmFhFdnkpmzKHjDzH34o | B88: 4B8T75jM98A8TtcACvXEHLs7AEHPHdTFsv9fU72hXZZWiPUZUvLebaGgLWHnQZjaFrhXzBqwB66Q9Z2ZC2iLRTTk | C88: 2024-10-15T14:29:00 | D88: b | E88: 1.40960679 | F88: -2 | G88: 1.4188e-06
A89: 3eJkwFDZVB27emciij1oWUVodmFhFdnkpmzKHjDzH34o | B89: 5NDjL49ahEPsy5kq5ZAqdBSJ4poykvkavcdX358FnwZi7tYKcHyhUFGs3HwrGiVbDUSMARhHP9ARTKDVqJV6cbfV | C89: 2024-10-15T14:29:00 | D89: s | E89: -1.40960679 | F89: 2.53 | G89: 1.7968e-06
A90: 3eJkwFDZVB27emciij1oWUVodmFhFdnkpmzKHjDzH34o | B90: 8h9t7fnP5eyyRDUEzEzWhuZyYeWiufXnQrpAqewMjEBAdP8291kFuoKTZbPZjpWUjgCxEWzJWi7sNTi3MTPuEoC | C90: 2024-10-15T14:58:00 | D90: b | E90: 0.68497077 | F90: -2 | G90: 2.9198e-06
A91: 3eJkwFDZVB27emciij1oWUVodmFhFdnkpmzKHjDzH34o | B91: 4GnNqHKn7R434FHSkhr42vVaGXPVXP9S788vgzYisvPgmZskU4U1N8WRqM4KYv2AhMVBFqkxh2KXNvTkpKcyC5G1 | C91: 2024-10-15T14:58:00 | D91: s | E91: -0.68497077 | F91: 1.94 | G91: 2.8388e-06
A92: 3eJkwFDZVB27emciij1oWUVodmFhFdnkpmzKHjDzH34o | B92: 4gPn42yY8xVeT9paNF8FXdJB3zDuq1gACAC1jNn5eeU7T3dpb6YW3AAjVz14BHE3Q9b27TrwdujkL3qnZsokqc8M | C92: 2024-10-15T15:02:00 | D92: b | E92: 0.87195573 | F92: -2 | G92: 2.2937e-06
A93: 3eJkwFDZVB27emciij1oWUVodmFhFdnkpmzKHjDzH34o | B93: 5uaJVZfdv5n9ieXHDqUqhiPL369kCiRm3Wjh3LoXZCNGnBrRb7iZrij2Fy8P1yW9HMBiMWftKFZPjS1tbQWFniRA | C93: 2024-10-15T15:02:00 | D93: s | E93: -0.87195573 | F93: 2.05 | G93: 2.3528e-06
A94: 3eJkwFDZVB27emciij1oWUVodmFhFdnkpmzKHjDzH34o | B94: 53upxzQyTxAtg36WTCGTsNEMi53pzv8imznCXTj5qJdJPoxmv7LwEcffJVXJeHNkVZUBuM9ZisJnPWe4LXbw3mgS | C94: 2024-10-15T15:03:00 | D94: b | E94: 0.96325383 | F94: -2 | G94: 2.0763e-06
A95: 3eJkwFDZVB27emciij1oWUVodmFhFdnkpmzKHjDzH34o | B95: 4JNZFN2CbG9DtFrpSDxMirSZKcLzj1Cz9cBj3XRsVB5inzkjFmYHcRgTbQfjSek3rGhpYKggc7pAhs386kRvzcor | C95: 2024-10-15T15:04:00 | D95: s | E95: -0.96325383 | F95: 2.08 | G95: 2.1569e-06
A96: 3eJkwFDZVB27emciij1oWUVodmFhFdnkpmzKHjDzH34o | B96: 4mRkDuvY863r8Sg87XcLvtnzrdpVuo9GzXgDFQHyQz5v7pAPg1ub7XHLvhL2HB9PFf69o4VCWYx1FnMC5QBcwgbx | C96: 2024-10-15T16:00:00 | D96: b | E96: 1.22483574 | F96: -2 | G96: 1.6329e-06
A97: 3eJkwFDZVB27emciij1oWUVodmFhFdnkpmzKHjDzH34o | B97: 5bE5m9EFBtMiz48hqZJS9jgLVb6Ng5nLcXc7WGHBA9DsryayJWqXUhF8LLghdkzJ64BnKv9YgVi7zE4xkmYMGoYF | C97: 2024-10-15T16:00:00 | D97: s | E97: -1.22483574 | F97: 1.99 | G97: 1.6248e-06
A98: 3eJkwFDZVB27emciij1oWUVodmFhFdnkpmzKHjDzH34o | B98: 64275JbM4dus5b6QixwBZoFVpBXzjzvEHyvzFkbXhgXbApahRJK7BrWgUYAtN5wJVHA4Sn9GR9NoKEEuddxywjkL | C98: 2024-10-15T16:11:00 | D98: b | E98: 1.70927898 | F98: -1.89 | G98: 1.1077e-06
A99: 3eJkwFDZVB27emciij1oWUVodmFhFdnkpmzKHjDzH34o | B99: 4aHthovu7FGzuxbiCKvc6bVngJuXL5HpEYyGoA5eUNr7muywWBMMLnhaNMLrqGskcffSjBMLBCsbbYMJTa4UdKvM | C99: 2024-10-15T16:11:00 | D99: s | E99: -1.70927898 | F99: 1.96 | G99: 1.1493e-06
A100: 3eJkwFDZVB27emciij1oWUVodmFhFdnkpmzKHjDzH34o | B100: 2yYqjUFLNiQXjJGZRTkk52LbDHh7i1Lbemzki9FJM4sWtnUf1bpMBbxMztYxsHVyvWNdQM7fCocBhSKyXUGsE8D5 | C100: 2024-10-15T16:45:00 | D100: b | E100: 2.16009187 | F100: -2 | G100: 9.259e-07
A101: 3eJkwFDZVB27emciij1oWUVodmFhFdnkpmzKHjDzH34o | B101: uVWstURrhMriFw1xcHWY5pdSHtRNsuaNPsT55vvRAn39oQLwoou8Q17oNQTZEB7Q5mw9WbGyUAE4pqRigzqmJbq | C101: 2024-10-15T16:45:00 | D101: s | E101: -2.16009187 | F101: 2.03 | G101: 9.411e-07
A102: 3eJkwFDZVB27emciij1oWUVodmFhFdnkpmzKHjDzH34o | B102: 2EnfY1Q72uoKBK8Uz5Ea8DZww3u8gNPb65WTEDMTTnCSpZ5PfDoRP4pNGabwPF4ttLsc6aNjXK652ka1F1x3uWQW | C102: 2024-10-15T18:23:00 | D102: b | E102: 1.78351492 | F102: -2 | G102: 1.1214e-06
A103: 3eJkwFDZVB27emciij1oWUVodmFhFdnkpmzKHjDzH34o | B103: 3cREcmv2HiSWmfr8BGvpoZaZf9tYstxNSj8nyNn15qBqkcU87FkDjLDWzYMgmH8J2Nyp71o6N5ouuTveBR5bj4wm | C103: 2024-10-15T18:23:00 | D103: s | E103: -1.78351492 | F103: 2.03 | G103: 1.1362e-06
A104: 3eJkwFDZVB27emciij1oWUVodmFhFdnkpmzKHjDzH34o | B104: ZPt9Hop7Rs86j2xDdFcTYmTEPtm6WTtrmvNxaQBzUtpeYqJ9vmoTAXhxcmES8bwkSsgrJ24QDF8HCtS29HC9kW1 | C104: 2024-10-15T18:46:00 | D104: b | E104: 2.28039595 | F104: -1.85 | G104: 8.115e-07
A105: 3eJkwFDZVB27emciij1oWUVodmFhFdnkpmzKHjDzH34o | B105: 3v22f9gfqHUtn8T77MsP6yoN8BR5gK96YrNaTBaGqZrcrcnu1FWQBmWEgi7W2uvsw9S1WafzAVv85mLFGJVnT2HV | C105: 2024-10-15T18:46:00 | D105: s | E105: -2.28039595 | F105: 1.84 | G105: 8.057e-07
A106: 3eJkwFDZVB27emciij1oWUVodmFhFdnkpmzKHjDzH34o | B106: 4THgkqhmW83TpX5NrPRXCeS7AvkQhMb1v8zzqDgbZGv4oy1MiCWMrmNerYT4QpyMjEjTxZ2AeSjhs1RBBddLZ2F | C106: 2024-10-15T20:00:00 | D106: b | E106: 3.32542163 | F106: -2 | G106: 6.014e-07
A107: 3eJkwFDZVB27emciij1oWUVodmFhFdnkpmzKHjDzH34o | B107: 2zo7uLMMUxqJPVZprFy5K4FUTWPzPoZcaAz2qDafXKKrSUWXKDPUjihh6QqBTutdtRRigKRyNkQiJoobKVf2qNDD | C107: 2024-10-15T20:00:00 | D107: s | E107: -3.32542163 | F107: 1.82 | G107: 5.469e-07
A108: 3eJkwFDZVB27emciij1oWUVodmFhFdnkpmzKHjDzH34o | B108: 2nVVBsnYdkoyksENBC7tDUFvFTPhtDSRNNLrYLMyTPfMk61sAGGzSmqdf6qRq3fSr4aeBe7uhDe7WgSLQRxzm4w9 | C108: 2024-10-15T22:02:00 | D108: b | E108: 3.17626049 | F108: -2.4 | G108: 7.556e-07
A109: 3eJkwFDZVB27emciij1oWUVodmFhFdnkpmzKHjDzH34o | B109: 3xM9TstogGYxmApgtc9hKrR6au6hXdQuY9659mgAtFoN92a3T47Fyv6GZJsDfAmCikAfMnEDKFgGJkBResaadWxt | C109: 2024-10-15T22:02:00 | D109: s | E109: -3.17626049 | F109: 2.17 | G109: 6.834e-07
A110: 3eJkwFDZVB27emciij1oWUVodmFhFdnkpmzKHjDzH34o | B110: 3v2WS2EZBREYLb7MXfeyDJyALBHtekdKPjRhQ2WdfjzVSug9GWRyxYX5vqZNRtY6Ju6HKfk3Mpnn23ZSempPg1Mp | C110: 2024-10-16T06:04:00 | D110: b | E110: 4.18970437 | F110: -1.5 | G110: 3.58e-07
A111: 3eJkwFDZVB27emciij1oWUVodmFhFdnkpmzKHjDzH34o | B111: 657twaEvXpyo3jk2FAf4HtCTApEXkKgTfqonSs6zYF7GyRSQ5Ayvx6hMLs9RSsxSc6PgaTBzAND9vDK7iqVKar97 | C111: 2024-10-16T06:04:00 | D111: s | E111: -4.18970437 | F111: 1.49 | G111: 3.545e-07
A112: 3eJkwFDZVB27emciij1oWUVodmFhFdnkpmzKHjDzH34o | B112: 2Jz8atW37kjXrUhK325y9tqSPJs1iCPNtMpU41yD399gwfP5BxzhCH2VAfWg9csKdvr8UeZW57GdPVkXuYMseGSM | C112: 2024-10-16T09:45:00 | D112: b | E112: 3.36373938 | F112: -1.5 | G112: 4.459e-07
A113: 3eJkwFDZVB27emciij1oWUVodmFhFdnkpmzKHjDzH34o | B113: 4KbLZRXiqDiTkenMxUhk2hS6srs92vqJ89DvDL1fcYiJPvhkJ6Aj9WhzvzyCuorHsoo2wQz8eFgFV5F9b1UGgpiy | C113: 2024-10-16T09:45:00 | D113: s | E113: -3.36373938 | F113: 1.48 | G113: 4.399e-07
A114: 3eJkwFDZVB27emciij1oWUVodmFhFdnkpmzKHjDzH34o | B114: 3jbdAxCpUehCwBGfbMbhT8rJBDuxS3grA34XLr7zUqEjxQpw5j1tmKQqCvVf6yV2BVo3LzhCatGzzuNdRQxnehb2 | C114: 2024-10-16T13:18:00 | D114: b | E114: 2.82783345 | F114: -1.99 | G114: 7.051e-07
A115: 3eJkwFDZVB27emciij1oWUVodmFhFdnkpmzKHjDzH34o | B115: 4XWZR38iBbWYVEfpMAK57vs1bcYGJwbNwbXTQ7WNCfkTuKBUyK8Laf7UGbrhiWupVMGXnrw57Kf2PKDS7XC3S4Yk | C115: 2024-10-16T13:18:00 | D115: s | E115: -2.82783345 | F115: 2.05 | G115: 7.235e-07
A116: 3eJkwFDZVB27emciij1oWUVodmFhFdnkpmzKHjDzH34o | B116: 5TQe2UsTJGsFcTfdvHkSDG7PkEPzJYbn579Mmz5f1CeqFoh7W7niHs5w6psH6vNxQ6d36XGY1wT8pEV6Gae5EUgw | C116: 2024-10-18T12:46:00 | D116: b | E116: 1.71664891 | F116: -3 | G116: 1.7476e-06
A117: 3eJkwFDZVB27emciij1oWUVodmFhFdnkpmzKHjDzH34o | B117: 4GtwXDHHPHBq3jHs9dc6rZDBhD49nScPpXCxA92bMD1n6NNMYLERQ629DcD2SLhJP6UaLGYrvDuz3s5yjazGPejC | C117: 2024-10-18T12:46:00 | D117: s | E117: -1.71664891 | F117: 3.16 | G117: 1.8409e-06
A118: 3eJkwFDZVB27emciij1oWUVodmFhFdnkpmzKHjDzH34o | B118: 5UrrqBztoGqoC8xvGU2nU3YoeXZ3BPtVX7NFCqusT96nU2Jy9WzX2ZMSq2hurez1kFKrjBk8pG5WS12msvqVQHYh | C118: 2024-10-18T12:49:00 | D118: b | E118: 1.68734552 | F118: -3 | G118: 1.7779e-06
A119: 3eJkwFDZVB27emciij1oWUVodmFhFdnkpmzKHjDzH34o | B119: 2EAuwr3Wn7cSFeBG8FNGEDucoTZzFVHM7skVx9H8Sx34JBZYyDj7Jvr8mUhCSEeuQdZBAERfh5D5WcyEVskXPNQr | C119: 2024-10-18T12:49:00 | D119: s | E119: -1.68734552 | F119: 3 | G119: 1.7777e-06
A120: 3eJkwFDZVB27emciij1oWUVodmFhFdnkpmzKHjDzH34o | B120: bYAE5DWfPVoe68SpEh1w3Ad18qTLKyYbJgTFnfg6qXPXCY7qKek4thcRTzWwbm1AzUmTU5tLqwyU8opCndKMqkC | C120: 2024-10-18T13:19:00 | D120: b | E120: 1.12155381 | F120: -3 | G120: 2.6749e-06
A121: 3eJkwFDZVB27emciij1oWUVodmFhFdnkpmzKHjDzH34o | B121: bP2fJS1p2zp3sQbdH1DjoPrx7AWWkLv6ttkWEQ8gvqu7WeU5gSGwRmwsxTmBHQwWYcDYArYjmu4kTch8TWLpDay | C121: 2024-10-18T13:19:00 | D121: s | E121: -1.12155381 | F121: 3.12 | G121: 2.7777e-06
A122: 3eJkwFDZVB27emciij1oWUVodmFhFdnkpmzKHjDzH34o | B122: 4iAmRum6NpXXRprvXyt5fpitc4QX1yCFbnVo5abW5Ghr8ywcff39a5ksoJVSP7DmzH7fkXPfi1RCsKJcViThfeuX | C122: 2024-10-18T13:23:00 | D122: b | E122: 1.20650414 | F122: -2.95 | G122: 2.4462e-06
A123: 3eJkwFDZVB27emciij1oWUVodmFhFdnkpmzKHjDzH34o | B123: 2kqceaZYAgcXKDFHAhWiXgQZd6mqT4MJCKzLy8K4W2QD4WKBkzzVySESrFFSns3dc5JXcSb551pEMNKG9C7HqMrQ | C123: 2024-10-18T13:23:00 | D123: s | E123: -1.20650414 | F123: 3 | G123: 2.4856e-06
A124: 3eJkwFDZVB27emciij1oWUVodmFhFdnkpmzKHjDzH34o | B124: 4KUmWwKeNFFYZUu6kiZFknDKyYw5DWDQDwdFnb2YoiYxeB2FoMMom5cSgdo2WWoM8QgRMF6qqvFvjahJFvzjidTt | C124: 2024-10-18T14:26:00 | D124: b | E124: 1.69997853 | F124: -2.79 | G124: 1.6418e-06
A125: 3eJkwFDZVB27emciij1oWUVodmFhFdnkpmzKHjDzH34o | B125: 5Aq7Pf92PqkCHMHZCtiL1kH2wfSiyeobb2XauVN3ShtT43TstALXJqTAHBPVtsN4HE11KZybDXLZ9eQWDq6aBCj | C125: 2024-10-18T14:26:00 | D125: s | E125: -1.69997853 | F125: 2.93 | G125: 1.7212e-06
A126: 3eJkwFDZVB27emciij1oWUVodmFhFdnkpmzKHjDzH34o | B126: 3HuLwvWBBx2xTS2L2GEmVWS66CVhsQCJRZ2oinNYvNZoTCJT2LWo4pALb2iEXsZMbTHM5kE7PhjmJmttjYAdL1wz | C126: 2024-10-18T15:55:00 | D126: b | E126: 1.59642359 | F126: -2.66 | G126: 1.6635e-06
A127: 3eJkwFDZVB27emciij1oWUVodmFhFdnkpmzKHjDzH34o | B127: 4f4WrZSU4FKS5TpcqvHffNnhtBdc4ZfHtYrbv32b5RU5QrAM8R1faSpbtY3HhkJTMH81Q3m5rEK8zUR4gnHgjVwM | C127: 2024-10-18T15:56:00 | D127: s | E127: -1.59642359 | F127: 2.65 | G127: 1.6592e-06
A128: 3eJkwFDZVB27emciij1oWUVodmFhFdnkpmzKHjDzH34o | B128: 3mSiRxG5QJHLbDCYxHCssGiwRrBYs4YAkrTJsknwvPTWvagdPysjdENWRJrsccLv8QRwaVTxAfLYdeMCNNKkJBFU | C128: 2024-10-18T17:24:00 | D128: b | E128: 1.69650187 | F128: -3 | G128: 1.7683e-06
A129: 3eJkwFDZVB27emciij1oWUVodmFhFdnkpmzKHjDzH34o | B129: N8g1XfsnAK1u3GKuX4LRZF9YN6yvPgRRbzwjyYsLU7vTfoBspeicGoLDzyqTT9LkHU8igwuqqNReqzyzUmxEd4J | C129: 2024-10-18T17:24:00 | D129: s | E129: -1.69650187 | F129: 3.09 | G129: 1.8203e-06
A130: 3eJkwFDZVB27emciij1oWUVodmFhFdnkpmzKHjDzH34o | B130: 3zz93ijDLz8FCXjEq8vRGb2a86R2aRXaPSSg8SvTSTBfpYkThvv5kQtH24wytnvsFy1hs3nJzRmqVXr8jU2hadXi | C130: 2024-10-18T17:55:00 | D130: b | E130: 1.39315945 | F130: -3 | G130: 2.1534e-06
A131: 3eJkwFDZVB27emciij1oWUVodmFhFdnkpmzKHjDzH34o | B131: 4DY6JeUUdxTcnbdjiNaoEoWoxVUWGKgeQUpV6YvcRdPNRBfFdpMHwL7KXBTuR8bb9J6fAmK9EndAjM95Q1h9Kx7S | C131: 2024-10-18T17:55:00 | D131: s | E131: -1.39315945 | F131: 2.99 | G131: 2.1428e-06
A132: 3eJkwFDZVB27emciij1oWUVodmFhFdnkpmzKHjDzH34o | B132: 5kV9UdoAF7J3m13diuN6H6WaBMzzuAviFnA1Qm64jf6iavx4VMWxyMhwDP7GqN67ZrgpFBQ3ss8ZAwEaq5TTVfim | C132: 2024-10-18T20:11:00 | D132: b | E132: 0.96743652 | F132: -3 | G132: 3.101e-06
A133: 3eJkwFDZVB27emciij1oWUVodmFhFdnkpmzKHjDzH34o | B133: 2xbZ8LRDzA4aN17nUVxmAVbACgkCnQcSHw63z7E2dmSDUscYE6NG6YDYibbWsRNuLtFj4CRFpr7hDXQw697BHgAV | C133: 2024-10-18T20:11:00 | D133: s | E133: -0.96743652 | F133: 2.96 | G133: 3.0559e-06
A134: 3eJkwFDZVB27emciij1oWUVodmFhFdnkpmzKHjDzH34o | B134: TBHebPmVtKVvdd6ogYumqjBEcJyK7e2yy88CFYKHGv4a6WetHiJPDxZkESPVXxdfivX5Z4bA43pkKvZ22sRkXxV | C134: 2024-10-18T20:21:00 | D134: b | E134: 0.99292338 | F134: -3 | G134: 3.0214e-06
A135: 3eJkwFDZVB27emciij1oWUVodmFhFdnkpmzKHjDzH34o | B135: 4HntqBbNVmYoX9BW1TJQZ4MFYp13pSgZMat2YyuJcp4gqzzS7yfwhoPQ2NvTJ29AbiEFPgDiHu9GKiayGiF3uEx1 | C135: 2024-10-18T20:21:00 | D135: s | E135: -0.99292338 | F135: 3.09 | G135: 3.1163e-06
A136: 3eJkwFDZVB27emciij1oWUVodmFhFdnkpmzKHjDzH34o | B136: 5kmACywZBafoeJqHr39Gz42FYsNeAApq2Sz6F79xrGinFc1jjyAp3bTeEFec7HrbNRkeiG3NPU2DWupHBUzULSGS | C136: 2024-10-18T20:33:00 | D136: b | E136: 1.08306648 | F136: -3 | G136: 2.7699e-06
A137: 3eJkwFDZVB27emciij1oWUVodmFhFdnkpmzKHjDzH34o | B137: 5i4mUgx8Jhjwgch5C9C8bjWfqhcBXiZa5C2j8ks9wQPx6AwfQNo8zJpPCGh9cm8tvhASmSdKPEC8Mygvqu1HHoPH | C137: 2024-10-18T20:33:00 | D137: s | E137: -1.08306648 | F137: 3 | G137: 2.7667e-06
A138: 3eJkwFDZVB27emciij1oWUVodmFhFdnkpmzKHjDzH34o | B138: 2N9jmoESHBpYf9BzVzRGJmWHcJpWVpyYYfpYCJKEAtxVEvrZfz33YqYoXkzq6jdbNtUmfLu9eXd7TqH7bzVg1nGZ | C138: 2024-10-19T15:15:00 | D138: b | E138: 2.61132886 | F138: -2.76 | G138: 1.0578e-06
A139: 3eJkwFDZVB27emciij1oWUVodmFhFdnkpmzKHjDzH34o | B139: 42oxwMyqoNu77YCGwXfZuwZ96k5zWyys2JFYMNAVGhSgEw6pkdA8FYyHYk4zJJghAJLcomC8hVy3RqqfV6FA72sH | C139: 2024-10-19T15:15:00 | D139: s | E139: -2.61132886 | F139: 2.75 | G139: 1.0526e-06
A140: 3eJkwFDZVB27emciij1oWUVodmFhFdnkpmzKHjDzH34o | B140: 43ys94soCvRJpf5Fa7cU2nMB625kzi1kgCg3hA3fUVRPYFkEnQsXVKSsUVkv3d8vMfNtsmS1B4kdPch5ThcLBRqi | C140: 2024-10-20T17:24:00 | D140: b | E140: 1.47742871 | F140: -3 | G140: 2.0306e-06
A141: 3eJkwFDZVB27emciij1oWUVodmFhFdnkpmzKHjDzH34o | B141: 4RsaH2M7Paa9JrJJ6TL8uTXm6KudMUoskBSdJ9XtyySnXv1wh36RtM649nazbsV3nz87hgi8daHb3J81mFeUg13d | C141: 2024-10-20T17:24:00 | D141: s | E141: -1.47742871 | F141: 2.99 | G141: 2.0214e-06
A142: 3eJkwFDZVB27emciij1oWUVodmFhFdnkpmzKHjDzH34o | B142: 5bHJXhccuxj2Y5VEcUCzeXAxhL3XQuE3NyStxjkMassdrDu2ao1BVC1Fn2PRWVEaCWKbFqgqBk6uLBEWTGnNCkK4 | C142: 2024-10-20T18:22:00 | D142: b | E142: 1.36852026 | F142: -3 | G142: 2.1921e-06
A143: 3eJkwFDZVB27emciij1oWUVodmFhFdnkpmzKHjDzH34o | B143: 5NfsHvBTXjLgPz6ncp6k1RM46yP4McYzSviP8odxexpZaEELReBTi7bBmyEqUudnbmK5T8Jagp5zeECdPvKKaPhU | C143: 2024-10-20T18:22:00 | D143: s | E143: -1.36852026 | F143: 2.97 | G143: 2.1737e-06
A144: 3eJkwFDZVB27emciij1oWUVodmFhFdnkpmzKHjDzH34o | B144: 3NNyUorfENvYQ83PqjTtJJp5a9251n9JVWVCfXfJ5UuJMD9HoyKf7pitmZYpY1avsHHqzeUUvPrNnjU96GVGzsiW | C144: 2024-10-20T18:37:00 | D144: b | E144: 1.38372471 | F144: -2.82 | G144: 2.0362e-06
A145: 3eJkwFDZVB27emciij1oWUVodmFhFdnkpmzKHjDzH34o | B145: 377RCZuapb8Z3HWSYHhFPxjiiUYxYXoYLG3qKoY1DU7WPhbggc6HRfEzaB6oQXNrvHiGPmtZGjL8aL3jHp16jXhX | C145: 2024-10-20T18:37:00 | D145: s | E145: -1.38372471 | F145: 2.8 | G145: 2.0261e-06
A146: 3eJkwFDZVB27emciij1oWUVodmFhFdnkpmzKHjDzH34o | B146: 5KqsgH1Mx5w3niYsEeZCkp5Wy67f5CMKsdXD7ibCdZoYfmS3HYEneSMJaSW6GJCnzF3HsR8upGZhzuYF5fVuufrr | C146: 2024-10-21T19:43:00 | D146: b | E146: 1.7589459 | F146: -2.83 | G146: 1.6116e-06
A147: 3eJkwFDZVB27emciij1oWUVodmFhFdnkpmzKHjDzH34o | B147: 3jn1NySrUkhK8aPErNUbGayMS6fh5rchALufTKcDHXEMCPFbT8WzgvFQGvCX2Pmwk3izV4KWETLrvGmykxcanCKm | C147: 2024-10-21T19:43:00 | D147: s | E147: -1.7589459 | F147: 2.82 | G147: 1.6037e-06
A148: 3eJkwFDZVB27emciij1oWUVodmFhFdnkpmzKHjDzH34o | B148: 4in8D9TgLMmVY5TA9V8yEgAuhGuZGD7az5Y7ya6v2qq4mN4qjEbFMFU2sJgs3XeTt1toYcLKQBzoke6acJWa2Gbb | C148: 2024-11-19T22:39:00 | D148: b | E148: 10.18589439 | F148: -1.5 | G148: 1.473e-07
A149: 3eJkwFDZVB27emciij1oWUVodmFhFdnkpmzKHjDzH34o | B149: 5iA3S2pU7EuDroJ3pFhFLk2ZPJUFfVnJ1tMwz58WmpEuC3FuDLA2GUkLfGwY8LiFoP3YEbWWGpMWndAqmTsFe7X2 | C149: 2024-11-19T22:39:00 | D149: s | E149: -10.18589439 | F149: 1.49 | G149: 1.465e-07
A150: 3vsjyseoDwEFfRPmQRqETfazNEYKEijUFn5bTjVUdMA3 | B150: fgMEBQcsD6qFw97yeYAwkuaAGbWqDtvrB7gjFH1gyGY3mJrY1ktFjyLsPgm4qXnEXx4CEgJ2ADnZvsS1oFpaq9U | C150: 2024-10-18T13:11:00 | D150: b | E150: 2.24921609 | F150: -5 | G150: 2.223e-06
A151: 3vsjyseoDwEFfRPmQRqETfazNEYKEijUFn5bTjVUdMA3 | B151: 4kWEJDSRY6mQJmKe1pBnRNB6WDUo6WYjamKRNXQChN6a3FrrkZ2tRLBNqyZYXecW2KqMnncshHF4rQpMm9cj74U7 | C151: 2024-10-18T13:23:00 | D151: s | E151: -2.24921609 | F151: 5.28 | G151: 2.3477e-06
A152: 3vsjyseoDwEFfRPmQRqETfazNEYKEijUFn5bTjVUdMA3 | B152: UEJBneqmCt9Mp1bawAkWPECGAHRhSHs5hd4hbPEqczqpXzvPBGstsHq4dUn8ca3WtLcJd8WuUcqHb8wHJd8nNuD | C152: 2024-10-18T17:18:00 | D152: b | E152: 3.13863916 | F152: -5 | G152: 1.593e-06
A153: 3vsjyseoDwEFfRPmQRqETfazNEYKEijUFn5bTjVUdMA3 | B153: 4m9hE2RhiPcAdWVHiorVGE57FE8BYMZpe6PWoa7feXiJ8FNAZGGdzKc8hL3zucDtg1Yyt1X2uc7piwpPYayqBjXC | C153: 2024-10-18T17:22:00 | D153: s | E153: -3.13863916 | F153: 6.97 | G153: 2.2212e-06
A154: 3vsjyseoDwEFfRPmQRqETfazNEYKEijUFn5bTjVUdMA3 | B154: 4sqXWGB9YuZhcuDMe3nqsawQ3xWBmNTpe84puJwQTntw8tmAsf3V65ds2AxdsFifhNbVU39MyoVsQM2x9BQr99Cs | C154: 2024-10-18T19:59:00 | D154: b | E154: 2.44978002 | F154: -10 | G154: 4.082e-06
A155: 3vsjyseoDwEFfRPmQRqETfazNEYKEijUFn5bTjVUdMA3 | B155: 3cKTh9wNFY3VcaW8sTkKxb7KTpe564QR7Z2NJjBrvwCqWKZM4mg7me46oKaNPm1oL61csZ8nthikchPfpr8jBCrN | C155: 2024-10-18T20:01:00 | D155: s | E155: -2.44978002 | F155: 8.73 | G155: 3.5617e-06
A156: 3vsjyseoDwEFfRPmQRqETfazNEYKEijUFn5bTjVUdMA3 | B156: 2q5fmwK48UpTdUyF7CV8aLAw9qTDBksC715Bdnhbx8PVeureN7XLkc43nGVxVMFTEB7kCiYC4RcnPzfewzMFFTW5 | C156: 2024-10-20T16:49:00 | D156: b | E156: 0.99169168 | F156: -1 | G156: 1.0084e-06
A157: 3vsjyseoDwEFfRPmQRqETfazNEYKEijUFn5bTjVUdMA3 | B157: 3wLp6whYixFQAt2xNdTK9joxLT4MxhwuCeEUEiusZeWtgyuqdc5PK3UeGAiYSR5KaBGVepfYULwE89sKkUQNqvAY | C157: 2024-10-20T16:56:00 | D157: s | E157: -0.99169168 | F157: 2.27 | G157: 2.288e-06
A158: 3vsjyseoDwEFfRPmQRqETfazNEYKEijUFn5bTjVUdMA3 | B158: 3LDW8GtjCEnsQpsjmZsQ13iuorG9B3zg7dPza2HwYh2EsZ7HpBfGQBPzneoe4yWwiubun3FRNjRBDjhNQT1hwFEq | C158: 2024-10-20T16:59:00 | D158: b | E158: 0.41779987 | F158: -1 | G158: 2.3935e-06
A159: 3vsjyseoDwEFfRPmQRqETfazNEYKEijUFn5bTjVUdMA3 | B159: 4XhtQ6aNnGavqPpcBaaNPFYjyyPR1jxtfoQpPfn6BTUUZiVbN3ikwwasU1Fc9WQ15YHwPt6PGuJtq8F9HQhaeds7 | C159: 2024-10-20T17:02:00 | D159: s | E159: -0.41779987 | F159: 0.95 | G159: 2.279e-06
A160: 3vsjyseoDwEFfRPmQRqETfazNEYKEijUFn5bTjVUdMA3 | B160: 6SrBsdJTe9XMwp2EqWukUVJE49KW6RnE8jiV4BanNx7SP4yg2NSi3wr12FPMzq899PT2AebGbQjrtrU4rrea3gC | C160: 2024-10-20T17:57:00 | D160: b | E160: 1.05427231 | F160: -3 | G160: 2.8456e-06
A161: 3vsjyseoDwEFfRPmQRqETfazNEYKEijUFn5bTjVUdMA3 | B161: 3MDMtoxA6CCWSJcLFLqmv8dSszoLGQovW6DKxHR88cdbCLF53z6WGt2Y81SoN3eHA5BVeADhyCaJHBA3rbTMiD2w | C161: 2024-10-20T18:08:00 | D161: s | E161: -1.05427231 | F161: 2.57 | G161: 2.4389e-06
A162: 41oDYZSKPJo3GLWLzUeKGq1eChyyPykd2rfpWUazHa7H | B162: 36g72THRj1hm3bd1vEpWMyvBAb5DA6Z7gAvpS2TdNWHumHJfRDY5zSv2Jdr2zMmaiCWcBFra2S5JRSmVNYcmLiVE | C162: 2024-10-15T11:05:00 | D162: b | E162: 0.29167146 | F162: -0.4 | G162: 1.3714e-06
A163: 41oDYZSKPJo3GLWLzUeKGq1eChyyPykd2rfpWUazHa7H | B163: 3Wev7wU3WfpRWTfWGkdR1KP7YajAwQySKswSUV8YKNDdFTUpFz8Dh7zjcLFfa1Skgfbr41jx5SLN8Fdz7E6Xhvqz | C163: 2024-10-15T11:24:00 | D163: s | E163: -0.29167146 | F163: 0.54 | G163: 1.8387e-06
A164: 41oDYZSKPJo3GLWLzUeKGq1eChyyPykd2rfpWUazHa7H | B164: 2xMrrhRfmJgNYXj8eQqSBsuXztE4Xf5E3MopCgtmCQwBE2vsD5b5XR55UNeF4viEBVb9V5VPwajcCYebKDejdXo1 | C164: 2024-10-15T13:24:00 | D164: b | E164: 0.09130648 | F164: -0.35 | G164: 3.8332e-06
A165: 41oDYZSKPJo3GLWLzUeKGq1eChyyPykd2rfpWUazHa7H | B165: 2qe4yDKxGsLio3SZR7ezNostTY9oHokAvBnM6LCig1acLF4L8wdaVNsPGY6XV32C1i5Sge5H84NSuNGSRkp7fA6n | C165: 2024-10-15T15:07:00 | D165: s | E165: -0.09130648 | F165: 0.17 | G165: 1.8909e-06
A166: 41oDYZSKPJo3GLWLzUeKGq1eChyyPykd2rfpWUazHa7H | B166: J9mosuA3J7V5P7J87rTX7ApPPeArF7GM2T64ccUB2yiLZQ5v3VeC1rL8PFszwAmuw5it7LqoH1ufKDeQdpat34c | C166: 2024-10-18T12:45:00 | D166: b | E166: 1.57114449 | F166: -3 | G166: 1.9094e-06
A167: 41oDYZSKPJo3GLWLzUeKGq1eChyyPykd2rfpWUazHa7H | B167: 5Y8vsNRqndnyLeShtANVp5BPf6nUaKVqV8EF6G9S618BDSx5wCsnq5CX4h3sRSc1JHQZvMEzwqao6tJACrbjtjeg | C167: 2024-10-18T12:45:00 | D167: s | E167: -0.39278612 | F167: 0.97 | G167: 2.4789e-06
A168: 41oDYZSKPJo3GLWLzUeKGq1eChyyPykd2rfpWUazHa7H | B168: 4e75Tm7Js8KUNFEXrVEdUoaRVMEew1EsrfykViovELAeeVn2Ltm3KSmH9S8YCCjVdxxRH234wg3K4jQUWdi9UH58 | C168: 2024-10-18T13:16:00 | D168: s | E168: -0.47134335 | F168: 1.36 | G168: 2.8873e-06
A169: 41oDYZSKPJo3GLWLzUeKGq1eChyyPykd2rfpWUazHa7H | B169: 643U5RncofvJuCyhsPKq72VjaismVZ2h6hQY2VxhCXHaJwkftjbnNFm4h18xFpJzNuB2k6mN6RfCuHM7JwR6uWx7 | C169: 2024-10-18T13:17:00 | D169: s | E169: -0.70701502 | F169: 1.97 | G169: 2.7901e-06
A170: 41oDYZSKPJo3GLWLzUeKGq1eChyyPykd2rfpWUazHa7H | B170: 37izdco4ddDxREm9DbMdmngkzFfXnGjwkFZGxHquN4pN76q7J16YYQnNkHrxPFHZkgZ1zHjKoMrfg89ooFbMagsA | C170: 2024-10-20T16:56:00 | D170: b | E170: 0.41936013 | F170: -1 | G170: 2.3846e-06
A171: 41oDYZSKPJo3GLWLzUeKGq1eChyyPykd2rfpWUazHa7H | B171: 4jBKTxMDY7dWVRavuxRg8a8MTdN8KfMQRVGWo5jaNEUZLnHZ9jQGwvLqfzCKat99Vv3fHYRtFaj8qK8whdP2MCGZ | C171: 2024-10-20T17:14:00 | D171: s | E171: -0.41936013 | F171: 1.02 | G171: 2.4271e-06
A172: 4N3onKB8GFzCbGBgQTX1ebGmDd15G1KgXYkwJAqZydKw | B172: 2RF1yoUQAWmfhj84wARmKgmNa1VmNb5SQDmEidYcXHjtqJPSZKin48i5Sy5QuJsXTdeW5auMTGn5kMuvn7fKWQZb | C172: 2024-10-18T13:19:00 | D172: b | E172: 1.77242353 | F172: -4.95 | G172: 2.7931e-06
A173: 4N3onKB8GFzCbGBgQTX1ebGmDd15G1KgXYkwJAqZydKw | B173: 4DFXj8XpATyoFKm4gLiYzYybenf3DkgpeDQ9SF5gapVd4GEizYu7mCrxw8k4G8jmQSiBE6v8bEx4ffjTUeD2D9pN | C173: 2024-10-18T13:20:00 | D173: b | E173: 0.94366734 | F173: -2.48 | G173: 2.623e-06
A174: 4N3onKB8GFzCbGBgQTX1ebGmDd15G1KgXYkwJAqZydKw | B174: 4rt1sLhjfn5vfn6Vty8AfZ3a7DE8QSc3TceYdxwZCrQEtBFxqhNt7EFBgaQHthgmVSHjHFEjtvn8jb6UNHY96Ld8 | C174: 2024-10-18T13:22:00 | D174: b | E174: 0.8569988 | F174: -2.48 | G174: 2.8883e-06
A175: 4N3onKB8GFzCbGBgQTX1ebGmDd15G1KgXYkwJAqZydKw | B175: 62z8CpaEJqMfRxadFBHFkdq6hDSsihf2jv4Fw9U8nzrMaLPiTzJhVkAFXExRMrRY9kDgjrMiJzFnxp7ybAUL2xg4 | C175: 2024-10-18T13:23:00 | D175: b | E175: 0.8523557 | F175: -1.98 | G175: 2.3232e-06
A176: 4N3onKB8GFzCbGBgQTX1ebGmDd15G1KgXYkwJAqZydKw | B176: 5zeQ6wDsVmwmrECM7j3Q3fs9DX53AV8bHAVASFRerTs7D4SLDWRqByDeGtmS5TykPwo95cTmHeND6sJfxqxP6xUZ | C176: 2024-10-18T14:37:00 | D176: b | E176: 1.07874612 | F176: -1.98 | G176: 1.8356e-06
A177: 4N3onKB8GFzCbGBgQTX1ebGmDd15G1KgXYkwJAqZydKw | B177: 5DTwGPUAhRLmHSUBJp3iizuK6LNkFHcFc9Xgw24mtKAat7zSwMcY33Wu1ytp5DN724wCks9ERxG1Fp5uRc1cs8Z8 | C177: 2024-10-23T08:31:00 | D177: s | E177: -5.50419149 | F177: 7.5 | G177: 1.3625e-06
A178: 4Q7KUg2mTacPrrPLXKz3PsQANQJc3bbPNMJRmcGKP7H7 | B178: 4MB3j93g5JxQ68Vof3EnFsvLXkN6xPTGdaaLNFn2hRYnLiCzfguc4qihgNGkNV8Bji1ZRByLanmBnZRG9DMY2zo5 | C178: 2024-10-18T11:54:00 | D178: b | E178: 3.35727153 | F178: -2 | G178: 5.957e-07
A179: 4Q7KUg2mTacPrrPLXKz3PsQANQJc3bbPNMJRmcGKP7H7 | B179: 5nrus42nUJabcgBcL5JmHL1UBKcgRHRx3HjetuAWss5xqbPB53nzkq5eVF5PxxsAcE27437fWHo1xJh4MSSF3zga | C179: 2024-10-18T13:28:00 | D179: s | E179: -1.34555672 | F179: 3.9 | G179: 2.9014e-06
A180: 4Q7KUg2mTacPrrPLXKz3PsQANQJc3bbPNMJRmcGKP7H7 | B180: 3C6kvHfzfnrSWFtedS8Jysbh8maaxzUuFgCR7qtjHZQRkqK9HNu2PMF2RfpfGcwf4FM6Y8FJMmRJdLET11qMjxeR | C180: 2024-10-18T14:55:00 | D180: s | E180: -2.01171481 | F180: 3.06 | G180: 1.523e-06
A181: 4bHhWkQ6VL2xF7QsXS9Hqmmid18Uzn8Lzj9suKBGrAWE | B181: zCsadpR68kpnZc6siPWHX4i8cwDwcXhZaftbhYTuiqNwP87iHBaq7PxdDiktrGaLHW6quJmXk9CuYifuVv9kNyD | C181: 2024-10-18T12:55:00 | D181: b | E181: 1.29739091 | F181: -2.57 | G181: 1.9838e-06
A182: 4bHhWkQ6VL2xF7QsXS9Hqmmid18Uzn8Lzj9suKBGrAWE | B182: 2Lz9xePLHyxatpbGk2jazkSk1DmWnnuY43V6PNd8B7yAWnm5NDb5D82Fd98umnj1VPqxfYWYUG1i9zrAGsVs8Sk8 | C182: 2024-10-19T04:53:00 | D182: s | E182: -1.29739091 | F182: 3.22 | G182: 2.481e-06
A183: 4up59VJU1zYbzMYoN9BZS1wHDE4AtRzpPJdRV7TRLbZb | B183: 3hC7V7N83ERS1cLv6Zpd2A2u4YK5XdebuHqgjMge7kZTvNJzN3AwiDXBTM2tXQTQZ56ijXyPpvoDKdjwMbVLVmdb | C183: 2024-10-15T10:26:00 | D183: b | E183: 2.1409452 | F183: -1 | G183: 4.671e-07
A184: 4up59VJU1zYbzMYoN9BZS1wHDE4AtRzpPJdRV7TRLbZb | B184: 2KYwXZRhqFT4CDNrxUfjDYhwWQ2765TkzLZsewqPYcNktoaWwq18f4HFGygozfjzJVJft3cLxFyZjKPSz81RRjor | C184: 2024-10-15T10:27:00 | D184: s | E184: -2.1409452 | F184: 0.85 | G184: 3.949e-07
A185: 4up59VJU1zYbzMYoN9BZS1wHDE4AtRzpPJdRV7TRLbZb | B185: 3ehsiqY9tzRfetgPcUctDYzj7ySBVTVzS9bEWbKESZDvEUpXRZ4qMdhFYHdxBuRJihWMLYX4abUDM7gH3278CcgT | C185: 2024-10-15T10:27:00 | D185: b | E185: 2.14791746 | F185: -1 | G185: 4.656e-07
A186: 4up59VJU1zYbzMYoN9BZS1wHDE4AtRzpPJdRV7TRLbZb | B186: zX62KtizwsK6w3QD8HMWSWchXVXhwdmxcckEyKMzLfq9vBA3aWx4kSSqoESV8zUE3YMGMXSPSioT2WAGk17hxZd | C186: 2024-10-15T10:33:00 | D186: b | E186: 1.90501757 | F186: -0.5 | G186: 2.625e-07
A187: 4up59VJU1zYbzMYoN9BZS1wHDE4AtRzpPJdRV7TRLbZb | B187: PZ8P7SkvrqGpxHaR4bR6QssSw7epCN6jLv3WwW2i2PpRpERaRZdbdJwDJQeTHaRw9sZwfXW7PDUUUTWJnZsgcvX | C187: 2024-10-15T11:49:00 | D187: s | E187: -4.05293503 | F187: 3.26 | G187: 8.05e-07
A188: 4up59VJU1zYbzMYoN9BZS1wHDE4AtRzpPJdRV7TRLbZb | B188: 4nBmsxyPeTJES6DKE9JSiCS3VrdNEANXBYwSqVEAny5kG8kSXYe5mb2kpy69ugnEGgj7iDcDydHaS618y27bS94r | C188: 2024-10-15T12:40:00 | D188: b | E188: 2.08995981 | F188: -1 | G188: 4.785e-07
A189: 4up59VJU1zYbzMYoN9BZS1wHDE4AtRzpPJdRV7TRLbZb | B189: 3eQ2vjbp6HWMLbGaJKjj34jBUhf6VXkXxDz9famUj6nsT75GqwMcUEavTHdiKGsJFyHBJkP4QC5uMDfwb38GLR4q | C189: 2024-10-15T13:53:00 | D189: b | E189: 0.78963011 | F189: -2 | G189: 2.5328e-06
A190: 4up59VJU1zYbzMYoN9BZS1wHDE4AtRzpPJdRV7TRLbZb | B190: 4HimBAuSJwBnwdtAUMztd6BFUN9YfGiPfZoC6VSkLbBtDS4Mob7ETKPeGNa9dzHEj7dvLw4Xbggoxr1SmxYD31NJ | C190: 2024-10-15T13:55:00 | D190: b | E190: 0.2041598 | F190: -0.5 | G190: 2.4491e-06
A191: 4up59VJU1zYbzMYoN9BZS1wHDE4AtRzpPJdRV7TRLbZb | B191: 4mR463NHmc7PRMAtis2tV4iqW46bHqGwKXBhEP3N7nZwMeyxswDzZoWn6Yo4ehxP2uEXeQS5zBzuYJKFHtG8RFWt | C191: 2024-10-15T14:03:00 | D191: b | E191: 0.44901966 | F191: -1 | G191: 2.2271e-06
A192: 4up59VJU1zYbzMYoN9BZS1wHDE4AtRzpPJdRV7TRLbZb | B192: apavbeJ9x8AWHbihTLFf2KkA3joQR3HSm8trJzczHRhT1mzHVUmPFJA2QzFgnAHzULEgWRXB9UgSJKFPRochE9p | C192: 2024-10-15T14:28:00 | D192: s | E192: -3.53276937 | F192: 5.6 | G192: 1.5863e-06
A193: 4up59VJU1zYbzMYoN9BZS1wHDE4AtRzpPJdRV7TRLbZb | B193: 362FM92EuuM1iMB3jFS97wNsgerWVToH9pJaokPQnsrLE64ehPo62bMmuyRhJXEfMxTuNRud5fT64LahwjymHEin | C193: 2024-10-15T14:32:00 | D193: b | E193: 2.36609206 | F193: -5 | G193: 2.1132e-06
A194: 4up59VJU1zYbzMYoN9BZS1wHDE4AtRzpPJdRV7TRLbZb | B194: 5KerhwfGDrUS8fCs98EiXDKV4LirTGWcNFXGVmEcuiEbPibh8FXCqH5KwPbGn18m6k5AaN35yvTbsdKJEoiLVw6X | C194: 2024-10-15T14:39:00 | D194: b | E194: 1.6245058 | F194: -3 | G194: 1.8467e-06
A195: 4up59VJU1zYbzMYoN9BZS1wHDE4AtRzpPJdRV7TRLbZb | B195: 4HtEVSFs7R4SvZby9kHBXpX3r6GsNM19gjbrL5hpcGZQADTFQSTVw2LizAUL2hssJWYi14nh1Fbuj94nvHrptYp1 | C195: 2024-10-15T15:07:00 | D195: b | E195: 1.80836767 | F195: -3 | G195: 1.659e-06
A196: 4up59VJU1zYbzMYoN9BZS1wHDE4AtRzpPJdRV7TRLbZb | B196: 5G2DYPx41wdWBJSTzpnYL2gJEug1YSv5pK7oiBj1ioCTbjepN3vzkAfySS7PXLKp3RNxPmQ49pK9njKWprPHgqjq | C196: 2024-10-15T15:45:00 | D196: b | E196: 0.66223574 | F196: -1 | G196: 1.51e-06
A197: 4up59VJU1zYbzMYoN9BZS1wHDE4AtRzpPJdRV7TRLbZb | B197: 5fg2QieFATU2jFo4DCwoULqFDTcDkdvTthYS9sgV3r3roQ4BFw5aWdTgQkVpqPQKTAJRqzmAKrvDCer9BoboZ5pr | C197: 2024-10-15T21:19:00 | D197: s | E197: -6.46120127 | F197: 3.65 | G197: 5.656e-07
A198: 4up59VJU1zYbzMYoN9BZS1wHDE4AtRzpPJdRV7TRLbZb | B198: 5CcwQh5ZT4yDSHKbMDzkQGvsDtiCV4s9d8useUno6wGikKcBgXdi5Umc41KuCzTq6sHCvBzyc9cPp2gzGDawok6b | C198: 2024-10-15T21:40:00 | D198: b | E198: 4.21256917 | F198: -5 | G198: 1.1869e-06
A199: 4up59VJU1zYbzMYoN9BZS1wHDE4AtRzpPJdRV7TRLbZb | B199: 5X2zHDKsUY4fFWh1oKTUUn1284wSysaV3DsEhuQUZw5N77D86MNAKCU2M6P8tzDz6HAGptg2qEYeA33TFS8zVjsx | C199: 2024-10-15T22:44:00 | D199: s | E199: -4.21256917 | F199: 1.62 | G199: 3.843e-07
A200: 4up59VJU1zYbzMYoN9BZS1wHDE4AtRzpPJdRV7TRLbZb | B200: mQhtTCNrePSfMCV91EdBCts2EnN1R5YfiqHv4WWPPKjjMrAeiQfmZTESwLKkikxja39zJJ9PSVDrER8sBhyBbSD | C200: 2024-10-16T13:16:00 | D200: b | E200: 1.16724989 | F200: -1 | G200: 8.567e-07
... 1770 more rows
